{"text_format":"1","workbook":"xlsx","n_sheets":31,"sheets":["page de garde ","Avertissement","Sommaire","Collectivité","Détail Nominatif","EvRP Methode","Direction","Secrétariat","Chaine de commandement","Services administratifs","STASS","Vie collective","Manœuvre et formation","APS","Espace vert","Habillement","Réserve groupement","Pharmacie","Batiment","Cyno","service général","VIERGE","Grille évaluation","Plan d'Action","Pénibilité","4ièmeCouv","_CF_Calculate_Ranges","_CF_Format_References","BdD","Planing visites","Feuil1"],"not_rendered":{"charts":0,"images":6,"macros":1,"external_links":0,"defined_names":780,"comments":17,"pivot_tables":0},"unopened":[],"bounds":{"document_bytes":16777216,"sheet_cells":100000,"rows_first":2000,"rows_last":500,"rows_between":2000,"halvings":0,"cell_chars":16384,"cell_head_chars":4096},"cells_cut":0,"cells_raw":0,"read":"whole","date_system":"1900"}

{"sheet":"page de garde ","index":0,"n_rows":42,"n_cols":1,"rows_kept":42,"cut":false,"hidden":false,"merged":[[40,0,40,4],[8,0,39,4],[41,0,41,4]]}
[]
[]
[]
[]
[]
[]
[]
[]
["Document unique\nEvaluation des risques professionnels\nDécret n° 2001-1016 du 5 novembre 2001"]
[]
[]
[]
[]
[]
[]
[]
[]
[]
[]
[]
[]
[]
[]
[]
[]
[]
[]
[]
[]
[]
[]
[]
[]
[]
[]
[]
[]
[]
[]
[]
[]
["Centre Mixte "]

{"sheet":"Avertissement","index":1,"n_rows":12,"n_cols":1,"rows_kept":12,"cut":false,"hidden":false,"merged":[[5,0,5,7],[0,0,0,7],[1,0,1,7],[2,0,2,7],[3,0,3,7],[4,0,4,7],[17,0,17,7],[6,0,6,7],[7,0,7,7],[8,0,8,7],[9,0,9,7],[10,0,10,7],[11,0,11,7],[12,0,12,7],[13,0,13,7],[14,0,14,7],[16,0,16,7],[32,0,32,7],[18,0,18,7],[19,0,19,7],[21,0,21,7],[22,0,22,7],[23,0,23,7],[25,0,25,7],[26,0,26,7],[27,0,27,7],[28,0,28,7],[29,0,29,7],[31,0,31,7],[50,0,50,7],[34,0,34,7],[35,0,35,7],[37,0,37,7],[38,0,38,7],[40,0,40,7],[41,0,41,7],[43,0,43,7],[44,0,44,7],[46,0,46,7],[48,0,48,7],[49,0,49,7],[63,0,63,7],[51,0,51,7],[52,0,52,7],[53,0,53,7],[54,0,54,3],[54,4,54,7],[55,0,55,7],[57,0,57,7],[58,0,58,7],[59,0,59,7],[60,0,60,7],[62,0,62,7],[73,0,73,7],[74,0,74,7],[64,0,64,7],[65,0,65,7],[67,0,67,7],[69,0,69,7],[71,0,71,7],[72,0,72,7]]}
["AVERTISSEMENT"]
["•  Référentiel\nArticles L.4121-1 à L.4121-5 et R.4121-1 à R.4121-4 du Code du travail,\nArticle 108-1 de la loi n° 84-53 du 26 janvier 1984 portant dispositions statutaires relatives à la fonction publique territoriale, \nCirculaire ministérielle n° RDFB1314079C de juin 2013 \n"]
["L'évaluation a priori des risques professionnels constitue un des principaux leviers de progrès de la  démarche de prévention des risques professionnels au sein de la Fonction Publique Territoriale. Elle constitue un moyen essentiel de préserver la santé et la sécurité des agents par un diagnostic systématique et exhaustif des facteurs de risques auxquels ils peuvent être exposés dans l'exercice de leurs fonctions."]
["•  L'apport des connaissances scientifiques et l'évolution des conditions de travail ont mis en évidence de nouveaux risques professionnels (amiante, risques à effets différés liés aux  substances dangereuses, troubles-musculo-squelettiques, risques psychosociaux…), qui soulignent la nécessité de renforcer l'analyse préventive des risques. "]
["•  Dans cette perspective, en reposant sur une approche globale et pluridisciplinaire (c'est-à-dire à la fois technique, médicale et organisationnelle) la démarche d'évaluation doit  permettre de comprendre et de traiter l'ensemble des risques professionnels."]
["• Introduite en droit français du travail en 1991, l'évaluation des risques a connu, avec la parution du décret n° 2001-1016 du 5 novembre 2001 portant création d'un document relatif à l'évaluation des risques pour la santé et la sécurité des travailleurs, une nouvelle avancée. Ainsi, les acteurs de la prévention disposent désormais d'une base tangible pour la définition de stratégies d'action dans chaque collectivité."]
["• Le présent document vise à fournir à la collectivité des éléments de droit et de méthode utiles pour réaliser cette évaluation et en faciliter la compréhension par l'ensemble des acteurs. La méthode proposée par le Centre de gestion de la fonction publique du Puy de Dôme repose sur un instrument relativement exhaustif mais dont la mise en œuvre demeure néanmoins souple. Elle s'appuie sur les enseignements tirés des expériences dans la Fonction Publique Territoriale impulsées par le service Prévention, depuis 2003."]
["L'obligation de transcrire dans un document les résultats de l'évaluation des risques n'est pas qu'une obligation matérielle. Elle représente la première étape de la démarche générale de prévention qui incombe à l'employeur. Mais cette formalisation doit aussi contribuer au dialogue social au sein des collectivités, sur l'évaluation elle même, et au delà sur la conception et la réalisation des mesures de prévention qui devront, en tant que de  besoin, faire suite à l'évaluation des risques."]
["Pour les mairies, la validation du document unique doit faire l'objet d'une délibération du conseil municipal car cette compétence ne peut être déléguée au maire par le conseil municipal (article L 2122-21 du code général des collectivités territoriales).\nL'exécution de cette délibération peut se matérialiser par la signature du document unique par le maire.\nLes textes ne prévoient pas, dans cette hypothèse, l'obligation de formaliser le document unique par la signature d'un arrêté."]
["Le comité d'hygiène, de sécurité et des conditions de travail (CHSCT) est consulté sur le document unique dans le cadre des programmes et rapports annuels (articles 39, 49 et 50 du décret 85-603 modifié)."]
[]
["•  Important\nEn application de l'article R 4121-4 du Code du travail, Le document unique d'évaluation des risques est tenu à la disposition notamment des agents, des membres du CHSCT, du médecin de prévention et des représentants du personnel. Un avis indiquant les modalités d'accès des travailleurs au document unique est affiché à une place convenable et accessible dans les lieux de travail. Pour les collectivités disposant d'un règlement intérieur, cet avis est affiché au même emplacement que celui réservé au règlement intérieur.\n"]

{"sheet":"Sommaire","index":2,"n_rows":29,"n_cols":15,"rows_kept":29,"cut":false,"hidden":false,"merged":[[0,0,2,5]]}
["SOMMAIRE"]
[]
[]
["1. Présentation de la collectivité",null,null,null,"Page",7]
["2. Présentation de la methode",null,null,null,"Page",11]
["3. Evaluation par unité de travail",null,null,null,"Page",15]
["     Evaluation unité de travail ",{"$f":"+Collectivité!A32","v":"Direction"},null,null,"Page",15]
["     Evaluation unité de travail ",{"$f":"+Collectivité!A33","v":"Secrétariat"},null,null,"Page",19]
["     Evaluation unité de travail ",{"$f":"+Collectivité!A34","v":"Chaine de commandement"},null,null,"Page",27]
["     Evaluation unité de travail ",{"$f":"+Collectivité!A35","v":"Services administratifs"},null,null,"Page",33]
["     Evaluation unité de travail ",{"$f":"+Collectivité!A36","v":"STASS"},null,null,"Page",37]
["     Evaluation unité de travail ",{"$f":"+Collectivité!A37","v":"Vie collective"},null,null,"Page",38]
["     Evaluation unité de travail ",{"$f":"+Collectivité!A38","v":"Manœuvre et formation"},null,null,"Page",39]
["     Evaluation unité de travail ",{"$f":"+Collectivité!A39","v":"APS"},null,null,"Page",40]
["     Evaluation unité de travail ",{"$f":"+Collectivité!A40","v":"Espace vert"},null,null,"Page",41]
["     Evaluation unité de travail ",{"$f":"+Collectivité!A41","v":"Habillement"},null,null,"Page",42]
["4. Grille d’évaluation",null,null,null,"Page",41,null,null,null,null,null,null,null,null,"   "]
["5. Proposition de Plan d’actions",null,null,null,"Page",43]
["     Proposition de Plan d’actions ",{"$f":"+B7","v":"Direction"},null,null,"Page",45]
["     Proposition de Plan d’actions ","Secrétariat",null,null,"Page",47]
["     Proposition de Plan d’actions ","Chaine de commandement",null,null,"Page",49]
["     Proposition de Plan d’actions ","Services administratifs",null,null,"Page",51]
["     Proposition de Plan d’actions ","STASS",null,null,"Page",53]
["     Proposition de Plan d’actions ","Vie collective",null,null,"Page",55]
["     Proposition de Plan d’actions ","Manœuvre et formation",null,null,"Page",57]
["     Proposition de Plan d’actions ","APS",null,null,"Page",59,null,null,null,null,null,null,null,null,"     "]
["     Proposition de Plan d’actions ","Espace vert",null,null,"Page",61]
["     Proposition de Plan d’actions ","Habillement",null,null,"Page",63]
["6.Pénibilité au travail",null,null,null,"Page",65]

{"sheet":"Collectivité","index":3,"n_rows":74,"n_cols":13,"rows_kept":74,"cut":false,"hidden":false,"merged":[[16,2,16,3],[17,0,17,1],[17,2,17,3],[66,0,66,5],[67,0,67,5],[28,3,28,4],[16,0,16,1],[13,0,13,1],[13,2,13,3],[14,2,14,3],[14,0,14,1],[15,0,15,1],[15,2,15,3],[0,0,2,0],[0,1,0,4],[1,1,1,4],[2,1,2,4],[3,0,3,3],[4,2,4,5],[6,2,6,5],[8,2,8,5],[9,2,9,5],[10,2,10,5]]}
[null,"Evaluation des risques professionnels\nDocument unique",null,null,null,{"$f":"MID(CELL(\"nomfichier\"),FIND(\"[\",CELL(\"nomfichier\"))+1,FIND(\"]\",CELL(\"nomfichier\"))-FIND(\"[\",CELL(\"nomfichier\"))-1)","v":"2018_CIS vierge.xlsm"},null,null,{"$f":"TODAY()","v":"2019-06-12"},{"$f":"DAY(I1)","v":12},{"$f":"MONTH(I1)","v":6},{"$f":"YEAR(I1)","v":2019},{"$f":"J1&\" / \"&K1&\" / \"&L1","v":"12 / 6 / 2019"}]
[null,{"$f":"'page de garde '!A42","v":"Centre Mixte "}]
[null,"1. PRESENTATION DE LA COLLECTIVITE",null,null,null,{"$f":"\"Date d'impression :  \"&M1","v":"Date d'impression :  12 / 6 / 2019"}]
[]
["Adresse"]
[]
["Autorité territoriale"]
[]
["N° Tel "]
["N° Fax"]
["Courriel "]
["Assistant de Prévention ou Conseiller en Prévention"]
[]
["Nom / Prénom",null,"Fonction",null,"Téléphone","Mail"]
["Emilie BARRAT",null,"Conseiller de prévention",null,null,"e_barrat@sdis63.fr"]
["Yoann DEBAILLEUX",null,"Conseiller de prévention",null,null,"y_debailleux@sdis63.fr"]
[null,null,"Assistant de prévention"]
[null,null,"Assistant de prévention"]
[]
["GROUPE DE TRAVAIL"]
[]
[null,"Autorité territoriale","Assistant de Prévention","Médecin du travail","Préventeurs \nSDIS / Cdg 63","CHSCT /\nCCDSPV"]
[]
[]
[]
[]
["DESCRIPTION DE LA COLLECCTIVITE"]
[]
[null,null,null,"EFFECTIFS TOTAL",null,{"$f":"+SUM(E32:E76)","v":12.190000000000001}]
[]
["Unité de travail",null,null,"Nombre d'agent","EqTP","Date Evaluation"]
["Direction",null,null,{"$f":"+'Détail Nominatif'!B17","v":2},{"$f":"+'Détail Nominatif'!B15","v":1.33}]
["Secrétariat",null,null,{"$f":"+'Détail Nominatif'!C17","v":8},{"$f":"+'Détail Nominatif'!C15","v":6.3999999999999995}]
["Chaine de commandement",null,null,{"$f":"+'Détail Nominatif'!D17","v":3},{"$f":"+'Détail Nominatif'!D15","v":1.6}]
["Services administratifs",null,null,{"$f":"+'Détail Nominatif'!E17","v":1},{"$f":"+'Détail Nominatif'!E15","v":0.33}]
["STASS",null,null,{"$f":"+'Détail Nominatif'!F17","v":2},{"$f":"+'Détail Nominatif'!F15","v":0.7}]
["Vie collective",null,null,{"$f":"+'Détail Nominatif'!G17","v":3},{"$f":"+'Détail Nominatif'!G15","v":0.4}]
["Manœuvre et formation",null,null,{"$f":"+'Détail Nominatif'!H17","v":1},{"$f":"+'Détail Nominatif'!H15","v":0.33}]
["APS",null,null,{"$f":"+'Détail Nominatif'!I17","v":2},{"$f":"+'Détail Nominatif'!I15","v":0.4}]
["Espace vert",null,null,{"$f":"+'Détail Nominatif'!J17","v":3},{"$f":"+'Détail Nominatif'!J15","v":0.4}]
["Habillement",null,null,{"$f":"+'Détail Nominatif'!K17","v":3},{"$f":"+'Détail Nominatif'!K15","v":0.30000000000000004}]
["Réserve groupement",null,null,{"$f":"+'Détail Nominatif'!L17","v":0},{"$f":"+'Détail Nominatif'!L15","v":0}]
["Pharmacie",null,null,{"$f":"+'Détail Nominatif'!M17","v":0},{"$f":"+'Détail Nominatif'!M15","v":0}]
["Batiment",null,null,{"$f":"+'Détail Nominatif'!N17","v":0},{"$f":"+'Détail Nominatif'!N15","v":0}]
["Cyno",null,null,{"$f":"+'Détail Nominatif'!O17","v":0},{"$f":"+'Détail Nominatif'!O15","v":0}]
[]
["INDICATEUR DE LA COLLECTIVITE"]
[]
["Les indicateurs RPS :"]
[]
["Taux d’absentéisme pour raisons de santé"]
["Nombre moyen de jours d’absence pour raison de santé par agent = "]
["Nombre de jour d’arrêts pour maladie / Nombre total d’agents "]
[null,"année 2014","année 2015","année 2016","année 2017","année 2018"]
["Taux abs"]
[]
["Taux de rotation des agents :"]
["Taux de rotation des agents = Somme du nombre d’arrivées et du nombre de départs d’agents au cours de l’année / Effectif moyen de l’année n "]
[null,"année 2014","année 2015","année 2016","année 2017","année 2018"]
["Taux rotation"]
[]
["Taux de visite sur demande au médecin de prévention :"]
["Le taux de visite sur demande au médecin de prévention correspond au nombre de demande de visite spontanée au médecin de prévention, pour 100 agents. "]
[null,"année 2014","année 2015","année 2016","année 2017","année 2018"]
["Nb de visite"]
["Nombre d’actes de violence physique envers le personnel : "]
["Il faut comptabiliser le nombre d’actes de violence"]
["Physique envers le personnel, en distinguant 4 catégories : ceux émanant du personnel avec ou sans arrêt de travail et ceux émanant des usagers avec ou sans arrêt de travail,"]
[]
[null,"année 2014","année 2015","année 2016","année 2017","année 2018"]
["Nb d'agression du personnel\nsans arrêt"]
["Nb d'agression du personnel avec arrêt"]
["Nb d'agression des usagers\nsans arrêt"]
["Nb d'agression des usagers\navec arrêt"]

{"sheet":"Détail Nominatif","index":4,"n_rows":18,"n_cols":11,"rows_kept":18,"cut":false,"hidden":false,"merged":[[17,1,17,10],[3,0,3,10],[4,0,5,0],[4,1,4,10],[0,0,2,0],[2,1,2,9],[1,1,1,9],[0,1,0,9]]}
[null,null,null,null,null,null,null,null,null,null,{"$f":"MID(CELL(\"nomfichier\"),FIND(\"[\",CELL(\"nomfichier\"))+1,FIND(\"]\",CELL(\"nomfichier\"))-FIND(\"[\",CELL(\"nomfichier\"))-1)","v":"2018_CIS vierge.xlsm"}]
[]
[null,null,null,null,null,null,null,null,null,null,{"$f":"+TODAY()","v":"2019-06-12"}]
["Liste des agents de la Mairie de au "]
["AGENT\nNom et prénom","En part Equivalent temps plein 35 h"]
[null,{"$f":"+Collectivité!A32","v":"Direction"},{"$f":"+Collectivité!A33","v":"Secrétariat"},{"$f":"+Collectivité!A34","v":"Chaine de commandement"},{"$f":"+Collectivité!A35","v":"Services administratifs"},{"$f":"+Collectivité!A36","v":"STASS"},{"$f":"+Collectivité!A37","v":"Vie collective"},{"$f":"+Collectivité!A38","v":"Manœuvre et formation"},{"$f":"+Collectivité!A39","v":"APS"},{"$f":"+Collectivité!A40","v":"Espace vert"},{"$f":"+Collectivité!A41","v":"Habillement"}]
["Pierre",null,0.8,null,null,0.1,null,null,0.1]
["Paul",0.33,0.8,null,0.33,null,null,0.33]
["Syvie ",null,0.8,0.6,null,null,0.2,null,null,0.1,0.1]
["Leon",null,0.8,null,null,null,null,null,null,null,0.1]
["Audrey",1,0.8]
["Monique",null,0.8,null,null,0.6,null,null,0.3]
["Michel",null,0.8,0.5,null,null,0.1,null,null,0.1]
["Fabien",null,0.8,0.5,null,null,0.1,null,null,0.2,0.1]
["Total",{"$f":"SUM(B7:B14)","v":1.33},{"$f":"SUM(C7:C14)","v":6.3999999999999995},{"$f":"SUM(D7:D14)","v":1.6},0.33,0.7,0.4,0.33,0.4,0.4,0.30000000000000004]
["Part %",{"$f":"+B15/$B$18","v":0.10910582444626743},{"$f":"+C15/$B$18","v":0.5250205086136176},0.13125512715340443,2.7071369975389663E-2,5.7424118129614427E-2,3.2813781788351107E-2,2.7071369975389663E-2,3.2813781788351107E-2,3.2813781788351107E-2,2.461033634126333E-2]
["Nb de personne",{"$f":"+COUNTA(B7:B$14)","v":2},{"$f":"+COUNTA(C7:C14)","v":8},{"$f":"+COUNTA(D7:D14)","v":3},1,2,3,1,2,3,3]
["Total",{"$f":"+SUM(B15:K15)","v":12.190000000000001}]

{"sheet":"EvRP Methode","index":5,"n_rows":131,"n_cols":8,"rows_kept":131,"cut":false,"hidden":false,"merged":[[11,0,11,7],[12,0,12,7],[13,0,13,7],[6,0,6,7],[7,0,7,7],[8,0,8,7],[9,0,9,7],[10,0,10,7],[5,0,5,7],[0,0,0,7],[1,0,1,7],[2,0,2,7],[3,0,3,7],[4,0,4,7],[14,0,14,7],[15,0,15,7],[16,0,16,7],[21,0,21,7],[22,0,22,7],[18,0,18,7],[17,0,17,7],[23,0,23,7],[24,0,24,7],[42,9,42,16],[25,0,25,7],[41,0,41,7],[42,0,42,7],[43,0,43,7],[44,0,44,7],[57,0,57,7],[46,0,46,7],[47,0,47,7],[48,0,48,7],[49,0,49,7],[50,0,50,7],[51,0,51,7],[52,0,52,7],[53,0,53,7],[54,0,54,7],[55,0,55,7],[56,0,56,7],[45,0,45,7],[69,0,69,7],[58,0,58,7],[59,0,59,7],[60,0,60,7],[61,0,61,7],[62,0,62,7],[63,0,63,7],[64,0,64,7],[65,0,65,7],[66,0,66,7],[67,0,67,7],[68,0,68,7],[81,0,81,7],[70,0,70,7],[71,0,71,7],[72,0,72,7],[73,0,73,7],[74,0,74,7],[75,0,75,7],[76,0,76,7],[77,0,77,7],[78,0,78,7],[79,0,79,7],[80,0,80,7],[103,0,103,7],[82,0,82,7],[83,0,83,7],[84,0,84,7],[85,0,85,7],[86,0,86,7],[93,6,93,7],[96,1,96,2],[96,5,96,6],[98,1,98,2],[98,5,98,6],[100,1,100,2],[120,0,120,7],[104,0,104,7],[105,0,105,7],[106,0,106,7],[107,0,107,1],[108,0,108,1],[109,0,109,1],[111,0,112,1],[111,2,112,7],[117,0,117,7],[118,0,118,7],[119,0,119,7],[127,0,127,7],[128,0,128,7],[129,0,129,7],[130,0,130,7],[121,0,121,7],[122,0,122,7],[123,0,123,7],[124,0,124,7],[125,0,125,7],[126,0,126,7]]}
["2. EVALUATION DES RISQUES PROFESSIONNELS : Méthodologie"]
[]
["Le service Prévention, dans le cadre de sa mission de conseil auprès des Collectivités ayant souhaité bénéficier de ses prestations, propose une démarche d’évaluation des risques professionnels."]
[]
["Objectif : "]
["Répondre aux obligations du Décret n°2001-1016 du 5 novembre 2001 : l’employeur doit retranscrire les résultats de l’évaluation des risques professionnels dans un document unique."]
["La mise en place de cette démarche d’évaluation des risques professionnels se déroule en 5 étapes :"]
[]
["2.1. Préparation :"]
["Mise en place d’un groupe de travail afin de piloter la démarche d’évaluation des risques au sein de la collectivité. Il est composé de :"]
[" - Un conseiller en Prévention du SDIS,"]
[" - Un représentant de l’autorité territoriale,"]
[" - Le médecin de prévention pour les PATs et un membre du 3SM pour les SPP et SPV,"]
[" - L'assistant de prévention de la compagnie, "]
[" - Les membres du CHSCT / CCDSPV, "]
[" - Le chef de centre ou son adjoint de l'unité de travail. "]
[]
["Lors de cette préparation, les membres du groupe de travail réaliseront une première visite des locaux de travail avec rencontre des agents en situation afin d’appréhender les conditions réelles de travail.\nSuite à cette visite, les Unités de travail seront définies."]
["Exemple :  "]
[null,"Secteur ",null,"Service",null,"Activités"]
[null,"Service technique",null,"Espaces verts",null,"Elagage"]
["\nExemple :  Service Technique  /  Espaces Verts  /  Elagage\n","Secteur ",null,"Service",null,"Activités"]
["2.2. Identification et évaluation des risques : "]
["L’identification et l’évaluation des risques se fait selon une liste des risques non exhaustive mais volontairement ouverte."]
[]
["Liste des risques : "]
["Chute de plain-pied, ",null,null,null,"Incendie et explosion, "]
["Chute de hauteur,",null,null,null,"Risques liés à l’éclairage, "]
["Effondrements et chute d’objets,",null,null,null,"Utilisation d’écran, "]
["Manutention  manuelle,",null,null,null,"Risques liés aux ambiances climatiques et thermiques,"]
["Ergonomie,",null,null,null,"Risque Biologique,"]
["Risques routiers et conduite d'engin ,",null,null,null,"Manque d'hygiène,"]
["Circulation piétonne, ",null,null,null,"Rayonnement, "]
["Risques liés aux machines et outils,",null,null,null,"Entreprises extérieures, "]
["Bruit,",null,null,null,"Agressions, "]
["Vibrations,",null,null,null,"Risques psychosociaux,"]
["Risque chimique,",null,null,null,"Noyade…"]
["Amiante,"]
["Aération et assainissement de l’air,"]
["Risque électrique,"]
[]
[]
["Lors de cette réunion (environ 1h par corps de métier) la liste des risques est passée en revue et une cotation de chaque exposition est déterminée selon la méthode basée sur la définition d’un risque."]
[]
["RISQUE = GRAVITE POTENTIELLE x EXPOSITION"]
[]
["La gravité potentielle du risque se décline suivant deux critères :"]
[" La gravité du risque"]
[" La maîtrise du risque"]
[]
["L’exposition du personnel au danger se décline, également en deux critères :"]
[" La durée d’exposition"]
[" Le pourcentage de l’effectif total soumis à ce risque"]
[]
["Voici la déclinaison de ces quatre critères qui définissent le risque :"]
[]
["• La gravité du risque"]
[" 0 = Nulle – Pas de lésions"]
[" 1 =  Lésions Mineures – Accident sans Arrêt"]
[" 4 =  Significatif – Accident sans séquelles avec Arrêt"]
[" 7  =  Critique – Accident de Service avec séquelles - Maladie professionnelle"]
[" 10 =  Mortel"]
[]
["• Maîtrise du risque"]
[" 0  =  Risque supprimé / Sécurité intrinsèque"]
[" 1  =  Très Bonne / Risque Isolé / Protections Collectives"]
[" 4  =  Bonne / Equipements Protection Individuelles"]
[" 7  =  Insuffisante / Risque signalé – Affichage"]
[" 10  =  Nul / Aucune maîtrise / Rien n’est fait"]
[]
["• Durée d’ exposition"]
[" 0  =  Nulle – Non exposé"]
[" 1 = Rare – Quelques heures par an"]
[" 4 = Courte – Quelques heures par mois"]
[" 7 = Fréquente – Quelques heures par semaine"]
[" 10 = Très Importante – Quelques heures par jour"]
[]
["• Effectif exposé"]
[" 0 = Nul – 0% de l’effectif total"]
[" 1 = Réduit – Entre 0 et 15%"]
[" 4 = Significatif – Entre Supérieur à 15 % et égale à 45 %"]
[" 7 = Important – Entre Supérieur à 45 % et égale à 75 %"]
[" 10 = Très Important - > 75 %"]
["Les notations sont attribuées par le groupe de travail participant à l'évaluation à partir des éléments fournies par la collectivité et ses agents, ainsi qu'à partir des éléments qui ont pu être montrés lors des visites de site.\nIl appartient à l'autorité territoriale d'en vérifier l'exactitude et qui reste est propriétaire du présent document.\nLe CDG 63 décline toute responsabilité quant à l'utilisation et l'interprétation de ces données basées sur des informations déclaratives qui n'engageraient que ceux les ayant fournies."]
[]
["L’ensemble des risques est hiérarchisé selon le principe suivant :"]
["Matrice de hiérarchisation des risques"]
["EXPOSITION DU PERSONNEL"]
[]
["E≥40"]
["16< E < 40"]
[" 4< E ≤ 16"]
["1 ≤ E ≤ 4"]
["  E = O",null,null,null,null,null,"GRAVITE\nPOTENTIELLE"]
[null,"  G = O","1 ≤ G ≤ 4"," 4< G ≤ 16","16< G < 40","G ≥40"]
[]
[null,"Priorité n°1",null,null,null,"Priorité n°2"]
[]
[null,"Priorité n°3",null,null,null,"Priorité n°4"]
[]
[null,"Priorité n°5"]
[]
[]
["2.3. Retranscription de l’évaluation dans le document unique "]
["Dans cette démarche, les étapes de rédaction sont prises en charge par le service prévention du Centre de Gestion qui formule des propositions qu'il appartient à l'autorité territoriale de valider."]
["Exemple de retranscription pour une unité de travail pour deux  risques (chute de plain-pied, chute de hauteur) :"]
[]
["Date de rédaction :",null,null,null,"Effectif total:"]
["Date de mise à jour :",null,null,null,"Effectif concerné:"]
["Rédacteur :",null,null,null,"Effectif (pourcentage):",null," %"]
["Participants :"]
["Unité de travail : "]
[]
[]
["Liste des risques","Danger Applicable","Commentaires","Gravité","Maîtrise","Durée d'exposition","Effectif","Note Totale"]
["Chute de plain pied"]
["Chute de hauteur"]
[]
["2.4. Rédaction du plan d’action "]
[]
["Un plan d’action est défini pour chacun des risques relevés en tenant compte : "]
[" - du degré d’urgence du problème à traiter, en fonction du niveau de risque (notation), "]
[" - des contraintes technico-économique liées aux solutions retenues (coût, délai de réalisation…)."]
[]
["2.5. Réévaluation"]
[]
["L’autorité territoriale est responsable de la mise à jour du document :"]
["• Au moins une fois par an,"]
["• Lors de toute décision d’aménagement important modifiant les conditions d’hygiène, de sécurité et des conditions de travail,"]
["• Lorsqu’une information supplémentaire concernant l’évaluation d’un risque dans une unité de travail est apportée."]
["A chaque réévaluation, il convient dans un premier temps de vérifier que le découpage en unité de travail est toujours cohérent (ajout ou suppression de compétences, de \"métiers\" etc…).\nEnsuite, vérifier les données relatives à l'effectif en équivalent temps plein de chaque unité de travail.\nEnfin, en fonction des évolutions (avancement du plan d'action) procéder à la mise à jour des notes pour les critères de gravité, maîtrise et durée d'exposition.\nProcéder comme à l'évaluation d'origine en associant des agents (le ou les mêmes voir un nouveau) aux groupe de travail.\nChaque nouvelle évaluation donne lieu à un nouveau plan d'actions."]

{"sheet":"Direction","index":6,"n_rows":33,"n_cols":10,"rows_kept":33,"cut":false,"hidden":false,"merged":[[0,0,0,9],[1,6,1,7],[2,6,2,7],[3,6,3,7],[5,0,6,1],[5,2,6,9]]}
["3. EVALUATION DES RISQUES PAR UNITE DE TRAVAIL"]
["Date de rédaction :",null,null,null,null,null,"Effectif total:",null,null,{"$f":"+Collectivité!F29","v":12.190000000000001}]
["Date de mise à jour :",null,null,null,null,null,"Effectif concerné:",null,null,{"$f":"+Collectivité!E32","v":1.33}]
["Rédacteur :",null,null,null,null,null,"Effectif (pourcentage):",null,null,{"$f":"(J3/J2)*100","v":10.910582444626742}]
["Participants :",null,"Chef de centre/chef de service ou adjoint : \nAssitant de prévention : \nAgent : \nCHSCT/CCDSPV : \nPSSM : \n",null,null,null,null,null,null,{"$f":"C6","v":"Direction"}]
["Unité de travail : ",null,{"$f":"+Collectivité!A32","v":"Direction"}]
[]
[]
["Liste des risques","Danger Applicable","Commentaires","Gravité","Maîtrise","G*M","Durée exposition","Effectif","D*E","Note Totale"]
["Chute de plain pied",null,null,null,null,{"$f":"IF(OR(D10=\"\",E10=\"\"),\"NC\",D10*E10)","v":"NC"},null,{"$f":"IF(J$4=0,\"0\",IF(J$4<=15,\"1\",IF(AND(15<J$4,J$4<=45),\"4\",IF(AND(45<J$4,J$4<=75),\"7\",IF(J$4>75,\"10\",\"\")))))","v":"1"},{"$f":"IF(OR(G10=\"\",H10=\"\"),\"NC\",G10*H10)","v":"NC"},{"$f":"IF(OR(D10=\"\",E10=\"\",G10=\"\",H10=\"\",B10=\"non\"),\"NC\",D10*E10*G10*H10)","v":"NC"}]
["Chute de hauteur",null,null,null,null,{"$f":"IF(OR(D11=\"\",E11=\"\"),\"NC\",D11*E11)","v":"NC"},null,{"$f":"IF(J$4=0,\"0\",IF(J$4<=15,\"1\",IF(AND(15<J$4,J$4<=45),\"4\",IF(AND(45<J$4,J$4<=75),\"7\",IF(J$4>75,\"10\",\"\")))))","v":"1"},{"$f":"IF(OR(G11=\"\",H11=\"\"),\"NC\",G11*H11)","v":"NC"},{"$f":"IF(OR(D11=\"\",E11=\"\",G11=\"\",H11=\"\",B11=\"non\"),\"NC\",D11*E11*G11*H11)","v":"NC"}]
["Effondrement et chutes d'objets\n",null,null,null,null,{"$f":"IF(OR(D12=\"\",E12=\"\"),\"NC\",D12*E12)","v":"NC"},null,"1","NC","NC"]
["Manutention manuelle",null,null,null,null,{"$f":"IF(OR(D13=\"\",E13=\"\"),\"NC\",D13*E13)","v":"NC"},null,"1","NC","NC"]
["Ergonomie",null,null,null,null,"NC",null,"1","NC","NC"]
["Risque Routier - Conduite d'engins",null,null,null,null,"NC",null,"1","NC","NC"]
["Circulation piétonne",null,null,null,null,"NC",null,"1","NC","NC"]
["Risques liés aux machines et outils",null,null,null,null,"NC",null,"1","NC","NC"]
["Bruit",null,null,null,null,"NC",null,"1","NC","NC"]
["Vibrations",null,null,null,null,"NC",null,"1","NC","NC"]
["Risques chimiques",null,null,null,null,"NC",null,"1","NC","NC"]
["Amiante",null,null,null,null,"NC",null,"1","NC","NC"]
["Aération et assainissement de l'air",null,null,null,null,"NC",null,"1","NC","NC"]
["Risque Electrique",null,null,null,null,"NC",null,"1","NC","NC"]
["Incendie - Explosion",null,null,null,null,"NC",null,"1","NC","NC"]
["Risques liés à l'éclairage",null,null,null,null,"NC",null,"1","NC","NC"]
["Utilisation d'écran",null,null,null,null,"NC",null,"1","NC","NC"]
["Risques liés aux ambiances climatiques et thermiques",null,null,null,null,"NC",null,"1","NC","NC"]
["Risque biologique",null,null,null,null,"NC",null,"1","NC","NC"]
["Manque d'hygiène",null,null,null,null,"NC",null,"1","NC","NC"]
["Rayonnement",null,null,null,null,"NC",null,"1","NC","NC"]
["Entreprises Extérieures",null,null,null,null,"NC",null,"1","NC","NC"]
["Agressions",null,null,null,null,"NC",null,"1","NC","NC"]
["Risques psychosociaux","oui","Sur cette unité, les risques psychosociaux sont présents, les principales composantes à maitriser sont :\n1/ intensité du travail : \n-  ;\n2 / Emotionnel :\n- \n3 / Autonomie :\n- \n4 / Rapports sociaux :\n- \n5 / Conflits de Valeur :\n- \n6 / Insécurité de la situation de travail:\n-",null,null,"NC",null,"1","NC","NC"]

{"sheet":"Secrétariat","index":7,"n_rows":33,"n_cols":10,"rows_kept":33,"cut":false,"hidden":false,"merged":[[5,0,6,1],[0,0,0,9],[1,0,1,1],[1,6,1,7],[2,0,2,1],[2,6,2,7],[3,0,3,1],[3,6,3,7],[5,2,6,9]]}
["3. EVALUATION DES RISQUES PAR UNITE DE TRAVAIL"]
["Date de rédaction :",null,{"$f":"+Collectivité!F32","v":"00:00:00"},null,null,null,"Effectif total:",null,null,{"$f":"+Direction!J2","v":12.190000000000001}]
["Date de mise à jour :",null,{"$f":"+C2","v":"00:00:00"},null,null,null,"Effectif concerné:",null,null,{"$f":"+Collectivité!E33","v":6.3999999999999995}]
["Rédacteur :",null,null,null,null,null,"Effectif (pourcentage):",null,null,{"$f":"(J3/J2)*100","v":52.502050861361759}]
["Participants :",null,"Chef de centre/chef de service ou adjoint : \nAssitant de prévention : \nAgent : \nCHSCT/CCDSPV : \nPSSM : \n",null,null,null,null,null,null,{"$f":"C6","v":"Secrétariat"}]
["Unité de travail : ",null,{"$f":"+Collectivité!A33","v":"Secrétariat"}]
[]
[]
["Liste des risques","Danger Applicable","Commentaires","Gravité","Maîtrise","G*M","Durée exposition","Effectif","D*E","Note Totale"]
["Chute de plain pied",null,null,null,null,{"$f":"IF(OR(D10=\"\",E10=\"\"),\"NC\",D10*E10)","v":"NC"},null,{"$f":"IF(J$4=0,\"0\",IF(J$4<=15,\"1\",IF(AND(15<J$4,J$4<=45),\"4\",IF(AND(45<J$4,J$4<=75),\"7\",IF(J$4>75,\"10\",\"\")))))","v":"7"},{"$f":"IF(OR(G10=\"\",H10=\"\"),\"NC\",G10*H10)","v":"NC"},{"$f":"IF(OR(D10=\"\",E10=\"\",G10=\"\",H10=\"\",B10=\"non\"),\"NC\",D10*E10*G10*H10)","v":"NC"}]
["Chute de hauteur",null,null,null,null,4,null,{"$f":"IF(J$4=0,\"0\",IF(J$4<=15,\"1\",IF(AND(15<J$4,J$4<=45),\"4\",IF(AND(45<J$4,J$4<=75),\"7\",IF(J$4>75,\"10\",\"\")))))","v":"7"},{"$f":"IF(OR(G11=\"\",H11=\"\"),\"NC\",G11*H11)","v":"NC"},{"$f":"IF(OR(D11=\"\",E11=\"\",G11=\"\",H11=\"\",B11=\"non\"),\"NC\",D11*E11*G11*H11)","v":"NC"}]
["Effondrement et chutes d'objets\n",null,null,null,null,"NC",null,"7","NC","NC"]
["Manutention manuelle",null,null,null,null,"NC",null,"7","NC","NC"]
["Ergonomie",null,null,null,null,"NC",null,"7","NC","NC"]
["Risque Routier - Conduite d'engins",null,null,null,null,"NC",null,"7","NC","NC"]
["Circulation piétonne",null,null,null,null,"NC",null,"7","NC","NC"]
["Risques liés aux machines et outils",null,null,null,null,"NC",null,"7","NC","NC"]
["Bruit",null,null,null,null,"NC",null,"7","NC","NC"]
["Vibrations",null,null,null,null,"NC",null,"7","NC","NC"]
["Risques chimiques",null,null,null,null,"NC",null,"7","NC","NC"]
["Amiante",null,null,null,null,"NC",null,"7","NC","NC"]
["Aération et assainissement de l'air",null,null,null,null,"NC",null,"7","NC","NC"]
["Risque Electrique",null,null,null,null,"NC",null,"7","NC","NC"]
["Incendie - Explosion",null,null,null,null,"NC",null,"7","NC","NC"]
["Risques liés à l'éclairage",null,null,null,null,"NC",null,"7","NC","NC"]
["Utilisation d'écran",null,null,null,null,"NC",null,"7","NC","NC"]
["Risques liés aux ambiances climatiques et thermiques",null,null,null,null,"NC",null,"7","NC","NC"]
["Risque biologique",null,null,null,null,"NC",null,"7","NC","NC"]
["Manque d'hygiène",null,null,null,null,"NC",null,"7","NC","NC"]
["Rayonnement",null,null,null,null,"NC",null,"7","NC","NC"]
["Entreprises Extérieures",null,null,null,null,"NC",null,"7","NC","NC"]
["Agressions",null,null,null,null,"NC",null,"7","NC","NC"]
["Risques psychosociaux","oui","Sur cette unité, les risques psychosociaux sont présents, les principales composantes à maitriser sont :\n1/ intensité du travail : \n-  ;\n2 / Emotionnel :\n- \n3 / Autonomie :\n- \n4 / Rapports sociaux :\n- \n5 / Conflits de Valeur :\n- \n6 / Insécurité de la situation de travail:\n-",null,null,"NC",null,"7","NC","NC"]

{"sheet":"Chaine de commandement","index":8,"n_rows":33,"n_cols":10,"rows_kept":33,"cut":false,"hidden":false,"merged":[[5,0,6,1],[5,2,6,9],[0,0,0,9],[1,0,1,1],[1,6,1,7],[2,0,2,1],[2,6,2,7],[3,0,3,1],[3,6,3,7]]}
["3. EVALUATION DES RISQUES PAR UNITE DE TRAVAIL"]
["Date de rédaction :",null,{"$f":"+Collectivité!F34","v":"00:00:00"},null,null,null,"Effectif total:",null,null,{"$f":"+Direction!J2","v":12.190000000000001}]
["Date de mise à jour :",null,{"$f":"+C2","v":"00:00:00"},null,null,null,"Effectif concerné:",null,null,{"$f":"+Collectivité!E34","v":1.6}]
["Rédacteur :",null,null,null,null,null,"Effectif (pourcentage):",null,null,{"$f":"(J3/J2)*100","v":13.125512715340443}]
["Participants :",null,"Chef de centre/chef de service ou adjoint : \nAssitant de prévention : \nAgent : \nCHSCT/CCDSPV : \nPSSM : \n",null,null,null,null,null,null,{"$f":"C6","v":"Chaine de commandement"}]
["Unité de travail : ",null,{"$f":"+Collectivité!A34","v":"Chaine de commandement"}]
[]
[]
["Liste des risques","Danger Applicable","Commentaires","Gravité","Maîtrise","G*M","Durée exposition","Effectif","D*E","Note Totale"]
["Chute de plain pied",null,null,null,null,{"$f":"IF(OR(D10=\"\",E10=\"\"),\"NC\",D10*E10)","v":"NC"},null,{"$f":"IF(J$4=0,\"0\",IF(J$4<=15,\"1\",IF(AND(15<J$4,J$4<=45),\"4\",IF(AND(45<J$4,J$4<=75),\"7\",IF(J$4>75,\"10\",\"\")))))","v":"1"},{"$f":"IF(OR(G10=\"\",H10=\"\"),\"NC\",G10*H10)","v":"NC"},{"$f":"IF(OR(D10=\"\",E10=\"\",G10=\"\",H10=\"\",B10=\"non\"),\"NC\",D10*E10*G10*H10)","v":"NC"}]
["Chute de hauteur",null,null,null,null,4,null,{"$f":"IF(J$4=0,\"0\",IF(J$4<=15,\"1\",IF(AND(15<J$4,J$4<=45),\"4\",IF(AND(45<J$4,J$4<=75),\"7\",IF(J$4>75,\"10\",\"\")))))","v":"1"},"NC","NC"]
["Effondrement et chutes d'objets\n",null,null,null,null,"NC",null,"1","NC","NC"]
["Manutention manuelle",null,null,null,null,"NC",null,"1","NC","NC"]
["Ergonomie",null,null,null,null,"NC",null,"1","NC","NC"]
["Risque Routier - Conduite d'engins",null,null,null,null,"NC",null,"1","NC","NC"]
["Circulation piétonne",null,null,null,null,"NC",null,"1","NC","NC"]
["Risques liés aux machines et outils",null,null,null,null,"NC",null,"1","NC","NC"]
["Bruit",null,null,null,null,"NC",null,"1",{"$f":"IF(OR(G18=\"\",H18=\"\"),\"NC\",G18*H18)","v":"NC"},{"$f":"IF(OR(D18=\"\",E18=\"\",G18=\"\",H18=\"\",B18=\"non\"),\"NC\",D18*E18*G18*H18)","v":"NC"}]
["Vibrations",null,null,null,null,"NC",null,"1","NC","NC"]
["Risques chimiques",null,null,null,null,"NC",null,"1","NC","NC"]
["Amiante",null,null,null,null,"NC",null,"1","NC","NC"]
["Aération et assainissement de l'air",null,null,null,null,"NC",null,"1",{"$f":"IF(OR(G22=\"\",H22=\"\"),\"NC\",G22*H22)","v":"NC"},{"$f":"IF(OR(D22=\"\",E22=\"\",G22=\"\",H22=\"\",B22=\"non\"),\"NC\",D22*E22*G22*H22)","v":"NC"}]
["Risque Electrique",null,null,null,null,"NC",null,"1","NC","NC"]
["Incendie - Explosion",null,null,null,null,"NC",null,"1","NC","NC"]
["Risques liés à l'éclairage",null,null,null,null,"NC",null,"1","NC","NC"]
["Utilisation d'écran",null,null,null,null,"NC",null,"1","NC","NC"]
["Risques liés aux ambiances climatiques et thermiques",null,null,null,null,"NC",null,"1","NC","NC"]
["Risque biologique",null,null,null,null,"NC",null,"1","NC","NC"]
["Manque d'hygiène",null,null,null,null,"NC",null,"1","NC","NC"]
["Rayonnement",null,null,null,null,"NC",null,"1","NC","NC"]
["Entreprises Extérieures",null,null,null,null,{"$f":"IF(OR(D31=\"\",E31=\"\"),\"NC\",D31*E31)","v":"NC"},null,{"$f":"IF(J$4=0,\"0\",IF(J$4<=15,\"1\",IF(AND(15<J$4,J$4<=45),\"4\",IF(AND(45<J$4,J$4<=75),\"7\",IF(J$4>75,\"10\",\"\")))))","v":"1"},"NC","NC"]
["Agressions",null,null,null,null,{"$f":"IF(OR(D32=\"\",E32=\"\"),\"NC\",D32*E32)","v":"NC"},null,{"$f":"IF(J$4=0,\"0\",IF(J$4<=15,\"1\",IF(AND(15<J$4,J$4<=45),\"4\",IF(AND(45<J$4,J$4<=75),\"7\",IF(J$4>75,\"10\",\"\")))))","v":"1"},"NC","NC"]
["Risques psychosociaux","oui","Sur cette unité, les risques psychosociaux sont présents, les principales composantes à maitriser sont :\n1/ intensité du travail : \n-  ;\n2 / Emotionnel :\n- \n3 / Autonomie :\n- \n4 / Rapports sociaux :\n- \n5 / Conflits de Valeur :\n- \n6 / Insécurité de la situation de travail:\n-",null,null,{"$f":"IF(OR(D33=\"\",E33=\"\"),\"NC\",D33*E33)","v":"NC"},null,{"$f":"IF(J$4=0,\"0\",IF(J$4<=15,\"1\",IF(AND(15<J$4,J$4<=45),\"4\",IF(AND(45<J$4,J$4<=75),\"7\",IF(J$4>75,\"10\",\"\")))))","v":"1"},"NC","NC"]

{"sheet":"Services administratifs","index":9,"n_rows":33,"n_cols":10,"rows_kept":33,"cut":false,"hidden":false,"merged":[[5,0,6,1],[5,2,6,9],[0,0,0,9],[1,0,1,1],[1,6,1,7],[2,0,2,1],[2,6,2,7],[3,0,3,1],[3,6,3,7]]}
["3. EVALUATION DES RISQUES PAR UNITE DE TRAVAIL"]
["Date de rédaction :",null,{"$f":"+Collectivité!F35","v":"00:00:00"},null,null,null,"Effectif total:",null,null,{"$f":"+Direction!J2","v":12.190000000000001}]
["Date de mise à jour :",null,{"$f":"+C2","v":"00:00:00"},null,null,null,"Effectif concerné:",null,null,{"$f":"+Collectivité!E35","v":0.33}]
["Rédacteur :",null,null,null,null,null,"Effectif (pourcentage):",null,null,{"$f":"(J3/J2)*100","v":2.7071369975389663}]
["Participants :",null,"Chef de centre/chef de service ou adjoint : \nAssitant de prévention : \nAgent : \nCHSCT/CCDSPV : \nPSSM : \n",null,null,null,null,null,null,{"$f":"C6","v":"Services administratifs"}]
["Unité de travail : ",null,{"$f":"+Collectivité!A35","v":"Services administratifs"}]
[]
[]
["Liste des risques","Danger Applicable","Commentaires","Gravité","Maîtrise","G*M","Durée exposition","Effectif","D*E","Note Totale"]
["Chute de plain pied",null,null,null,null,{"$f":"IF(OR(D10=\"\",E10=\"\"),\"NC\",D10*E10)","v":"NC"},null,{"$f":"IF(J$4=0,\"0\",IF(J$4<=15,\"1\",IF(AND(15<J$4,J$4<=45),\"4\",IF(AND(45<J$4,J$4<=75),\"7\",IF(J$4>75,\"10\",\"\")))))","v":"1"},{"$f":"IF(OR(G10=\"\",H10=\"\"),\"NC\",G10*H10)","v":"NC"},{"$f":"IF(OR(D10=\"\",E10=\"\",G10=\"\",H10=\"\",B10=\"non\"),\"NC\",D10*E10*G10*H10)","v":"NC"}]
["Chute de hauteur",null,null,null,null,4,null,{"$f":"IF(J$4=0,\"0\",IF(J$4<=15,\"1\",IF(AND(15<J$4,J$4<=45),\"4\",IF(AND(45<J$4,J$4<=75),\"7\",IF(J$4>75,\"10\",\"\")))))","v":"1"},{"$f":"IF(OR(G11=\"\",H11=\"\"),\"NC\",G11*H11)","v":"NC"},{"$f":"IF(OR(D11=\"\",E11=\"\",G11=\"\",H11=\"\",B11=\"non\"),\"NC\",D11*E11*G11*H11)","v":"NC"}]
["Effondrement et chutes d'objets\n",null,null,null,null,{"$f":"IF(OR(D12=\"\",E12=\"\"),\"NC\",D12*E12)","v":"NC"},null,"1","NC","NC"]
["Manutention manuelle",null,null,null,null,"NC",null,"1","NC","NC"]
["Ergonomie",null,null,null,null,"NC",null,"1","NC","NC"]
["Risque Routier - Conduite d'engins",null,null,null,null,"NC",null,"1","NC","NC"]
["Circulation piétonne",null,null,null,null,"NC",null,"1","NC","NC"]
["Risques liés aux machines et outils",null,null,null,null,"NC",null,"1","NC","NC"]
["Bruit",null,null,null,null,"NC",null,"1","NC","NC"]
["Vibrations",null,null,null,null,"NC",null,"1","NC","NC"]
["Risques chimiques",null,null,null,null,"NC",null,"1","NC","NC"]
["Amiante",null,null,null,null,"NC",null,"1","NC","NC"]
["Aération et assainissement de l'air",null,null,null,null,"NC",null,"1","NC","NC"]
["Risque Electrique",null,null,null,null,"NC",null,"1","NC","NC"]
["Incendie - Explosion",null,null,null,null,"NC",null,"1","NC","NC"]
["Risques liés à l'éclairage",null,null,null,null,"NC",null,"1","NC","NC"]
["Utilisation d'écran",null,null,null,null,"NC",null,"1","NC","NC"]
["Risques liés aux ambiances climatiques et thermiques",null,null,null,null,"NC",null,"1","NC","NC"]
["Risque biologique",null,null,null,null,"NC",null,"1","NC","NC"]
["Manque d'hygiène",null,null,null,null,"NC",null,"1","NC","NC"]
["Rayonnement",null,null,null,null,"NC",null,"1","NC","NC"]
["Entreprises Extérieures",null,null,null,null,"NC",null,"1","NC","NC"]
["Agressions",null,null,null,null,"NC",null,"1","NC","NC"]
["Risques psychosociaux","oui","Sur cette unité, les risques psychosociaux sont présents, les principales composantes à maitriser sont :\n1/ intensité du travail : \n-  ;\n2 / Emotionnel :\n- \n3 / Autonomie :\n- \n4 / Rapports sociaux :\n- \n5 / Conflits de Valeur :\n- \n6 / Insécurité de la situation de travail:\n-",null,null,"NC",null,"1","NC","NC"]

{"sheet":"STASS","index":10,"n_rows":33,"n_cols":10,"rows_kept":33,"cut":false,"hidden":false,"merged":[[5,0,6,1],[5,2,6,9],[0,0,0,9],[1,0,1,1],[1,6,1,7],[2,0,2,1],[2,6,2,7],[3,0,3,1],[3,6,3,7]]}
["3. EVALUATION DES RISQUES PAR UNITE DE TRAVAIL"]
["Date de rédaction :",null,{"$f":"+Collectivité!F36","v":"00:00:00"},null,null,null,"Effectif total:",null,null,{"$f":"+Direction!J2","v":12.190000000000001}]
["Date de mise à jour :",null,{"$f":"+C2","v":"00:00:00"},null,null,null,"Effectif concerné:",null,null,{"$f":"+Collectivité!E36","v":0.7}]
["Rédacteur :",null,null,null,null,null,"Effectif (pourcentage):",null,null,{"$f":"(J3/J2)*100","v":5.7424118129614428}]
["Participants :",null,"Chef de centre/chef de service ou adjoint : \nAssitant de prévention : \nAgent : \nCHSCT/CCDSPV : \nPSSM : \n",null,null,null,null,null,null,{"$f":"C6","v":"STASS"}]
["Unité de travail : ",null,{"$f":"+Collectivité!A36","v":"STASS"}]
[]
[]
["Liste des risques","Danger Applicable","Commentaires","Gravité","Maîtrise","G*M","Durée exposition","Effectif","D*E","Note Totale"]
["Chute de plain pied",null,null,null,null,{"$f":"IF(OR(D10=\"\",E10=\"\"),\"NC\",D10*E10)","v":"NC"},null,{"$f":"IF(J$4=0,\"0\",IF(J$4<=15,\"1\",IF(AND(15<J$4,J$4<=45),\"4\",IF(AND(45<J$4,J$4<=75),\"7\",IF(J$4>75,\"10\",\"\")))))","v":"1"},{"$f":"IF(OR(G10=\"\",H10=\"\"),\"NC\",G10*H10)","v":"NC"},{"$f":"IF(OR(D10=\"\",E10=\"\",G10=\"\",H10=\"\",B10=\"non\"),\"NC\",D10*E10*G10*H10)","v":"NC"}]
["Chute de hauteur",null,null,null,null,4,null,{"$f":"IF(J$4=0,\"0\",IF(J$4<=15,\"1\",IF(AND(15<J$4,J$4<=45),\"4\",IF(AND(45<J$4,J$4<=75),\"7\",IF(J$4>75,\"10\",\"\")))))","v":"1"},{"$f":"IF(OR(G11=\"\",H11=\"\"),\"NC\",G11*H11)","v":"NC"},{"$f":"IF(OR(D11=\"\",E11=\"\",G11=\"\",H11=\"\",B11=\"non\"),\"NC\",D11*E11*G11*H11)","v":"NC"}]
["Effondrement et chutes d'objets\n",null,null,null,null,"NC",null,"1","NC","NC"]
["Manutention manuelle",null,null,null,null,"NC",null,"1","NC","NC"]
["Ergonomie",null,null,null,null,"NC",null,"1","NC","NC"]
["Risque Routier - Conduite d'engins",null,null,null,null,"NC",null,"1","NC","NC"]
["Circulation piétonne",null,null,null,null,"NC",null,"1","NC","NC"]
["Risques liés aux machines et outils",null,null,null,null,"NC",null,"1","NC","NC"]
["Bruit",null,null,null,null,"NC",null,"1","NC","NC"]
["Vibrations",null,null,null,null,"NC",null,"1","NC","NC"]
["Risques chimiques",null,null,null,null,null,null,"1","NC","NC"]
["Amiante",null,null,null,null,"NC",null,"1","NC","NC"]
["Aération et assainissement de l'air",null,null,null,null,"NC",null,"1","NC","NC"]
["Risque Electrique",null,null,null,null,"NC",null,"1","NC","NC"]
["Incendie - Explosion",null,null,null,null,"NC",null,"1","NC","NC"]
["Risques liés à l'éclairage",null,null,null,null,"NC",null,"1","NC","NC"]
["Utilisation d'écran",null,null,null,null,"NC",null,"1","NC","NC"]
["Risques liés aux ambiances climatiques et thermiques",null,null,null,null,"NC",null,"1","NC","NC"]
["Risque biologique",null,null,null,null,"NC",null,"1","NC","NC"]
["Manque d'hygiène",null,null,null,null,"NC",null,"1","NC","NC"]
["Rayonnement",null,null,null,null,"NC",null,"1","NC","NC"]
["Entreprises Extérieures",null,null,null,null,"NC",null,"1","NC","NC"]
["Agressions",null,null,null,null,"NC",null,"1","NC","NC"]
["Risques psychosociaux","oui","Sur cette unité, les risques psychosociaux sont présents, les principales composantes à maitriser sont :\n1/ intensité du travail : \n-  ;\n2 / Emotionnel :\n- \n3 / Autonomie :\n- \n4 / Rapports sociaux :\n- \n5 / Conflits de Valeur :\n- \n6 / Insécurité de la situation de travail:\n-",null,null,null,null,"1","NC","NC"]

{"sheet":"Vie collective","index":11,"n_rows":33,"n_cols":10,"rows_kept":33,"cut":false,"hidden":false,"merged":[[5,0,6,1],[5,2,6,9],[0,0,0,9],[1,0,1,1],[1,6,1,7],[2,0,2,1],[2,6,2,7],[3,0,3,1],[3,6,3,7]]}
["3. EVALUATION DES RISQUES PAR UNITE DE TRAVAIL"]
["Date de rédaction :",null,{"$f":"+Collectivité!F36","v":"00:00:00"},null,null,null,"Effectif total:",null,null,{"$f":"+Direction!J2","v":12.190000000000001}]
["Date de mise à jour :",null,{"$f":"+C2","v":"00:00:00"},null,null,null,"Effectif concerné:",null,null,{"$f":"+Collectivité!E37","v":0.4}]
["Rédacteur :",null,null,null,null,null,"Effectif (pourcentage):",null,null,{"$f":"(J3/J2)*100","v":3.2813781788351108}]
["Participants :",null,"Chef de centre/chef de service ou adjoint : \nAssitant de prévention : \nAgent : \nCHSCT/CCDSPV : \nPSSM : \n",null,null,null,null,null,null,{"$f":"C6","v":"Vie collective"}]
["Unité de travail : ",null,{"$f":"+Collectivité!A37","v":"Vie collective"}]
[]
[]
["Liste des risques","Danger Applicable","Commentaires","Gravité","Maîtrise","G*M","Durée exposition","Effectif","D*E","Note Totale"]
["Chute de plain pied",null,null,null,null,{"$f":"IF(OR(D10=\"\",E10=\"\"),\"NC\",D10*E10)","v":"NC"},null,{"$f":"IF(J$4=0,\"0\",IF(J$4<=15,\"1\",IF(AND(15<J$4,J$4<=45),\"4\",IF(AND(45<J$4,J$4<=75),\"7\",IF(J$4>75,\"10\",\"\")))))","v":"1"},{"$f":"IF(OR(G10=\"\",H10=\"\"),\"NC\",G10*H10)","v":"NC"},{"$f":"IF(OR(D10=\"\",E10=\"\",G10=\"\",H10=\"\",B10=\"non\"),\"NC\",D10*E10*G10*H10)","v":"NC"}]
["Chute de hauteur",null,null,null,null,"NC",null,{"$f":"IF(J$4=0,\"0\",IF(J$4<=15,\"1\",IF(AND(15<J$4,J$4<=45),\"4\",IF(AND(45<J$4,J$4<=75),\"7\",IF(J$4>75,\"10\",\"\")))))","v":"1"},"NC",{"$f":"IF(OR(D11=\"\",E11=\"\",G11=\"\",H11=\"\",B11=\"non\"),\"NC\",D11*E11*G11*H11)","v":"NC"}]
["Effondrement et chutes d'objets\n",null,null,null,null,"NC",null,"1","NC","NC"]
["Manutention manuelle",null,null,null,null,"NC",null,"1","NC","NC"]
["Ergonomie",null,null,null,null,"NC",null,"1","NC","NC"]
["Risque Routier - Conduite d'engins",null,null,null,null,"NC",null,"1","NC","NC"]
["Circulation piétonne",null,null,null,null,"NC",null,"1","NC","NC"]
["Risques liés aux machines et outils",null,null,null,null,"NC",null,"1","NC","NC"]
["Bruit",null,null,null,null,"NC",null,"1","NC","NC"]
["Vibrations",null,null,null,null,"NC",null,"1","NC","NC"]
["Risques chimiques",null,null,null,null,"NC",null,"1","NC","NC"]
["Amiante",null,null,null,null,"NC",null,"1","NC","NC"]
["Aération et assainissement de l'air",null,null,null,null,"NC",null,"1","NC","NC"]
["Risque Electrique",null,null,null,null,"NC",null,"1","NC","NC"]
["Incendie - Explosion",null,null,null,null,"NC",null,"1","NC","NC"]
["Risques liés à l'éclairage",null,null,null,null,"NC",null,"1","NC","NC"]
["Utilisation d'écran",null,null,null,null,"NC",null,"1","NC","NC"]
["Risques liés aux ambiances climatiques et thermiques",null,null,null,null,"NC",null,"1","NC","NC"]
["Risque biologique",null,null,null,null,"NC",null,"1","NC","NC"]
["Manque d'hygiène",null,null,null,null,"NC",null,"1","NC","NC"]
["Rayonnement",null,null,null,null,"NC",null,"1","NC","NC"]
["Entreprises Extérieures",null,null,null,null,"NC",null,"1","NC","NC"]
["Agressions",null,null,null,null,"NC",null,"1","NC","NC"]
["Risques psychosociaux","oui","Sur cette unité, les risques psychosociaux sont présents, les principales composantes à maitriser sont :\n1/ intensité du travail : \n-  ;\n2 / Emotionnel :\n- \n3 / Autonomie :\n- \n4 / Rapports sociaux :\n- \n5 / Conflits de Valeur :\n- \n6 / Insécurité de la situation de travail:\n-",null,null,"NC",null,"1","NC","NC"]

{"sheet":"Manœuvre et formation","index":12,"n_rows":34,"n_cols":10,"rows_kept":34,"cut":false,"hidden":false,"merged":[[5,0,6,1],[5,2,6,9],[0,0,0,9],[1,0,1,1],[1,6,1,7],[2,0,2,1],[2,6,2,7],[3,0,3,1],[3,6,3,7]]}
["3. EVALUATION DES RISQUES PAR UNITE DE TRAVAIL"]
["Date de rédaction :",null,"mardi 23 octobre 2018",null,null,null,"Effectif total:",null,null,{"$f":"+Direction!J2","v":12.190000000000001}]
["Date de mise à jour :",null,{"$f":"+C2","v":"mardi 23 octobre 2018"},null,null,null,"Effectif concerné:",null,null,{"$f":"+Collectivité!E39","v":0.4}]
["Rédacteur : Emilie BARRAT",null,null,null,null,null,"Effectif (pourcentage):",null,null,{"$f":"(J3/J2)*100","v":3.2813781788351108}]
["Participants :",null,"Chef de centre/chef de service ou adjoint : \nAssitant de prévention : \nAgent : \nCHSCT/CCDSPV : \nPSSM : \n",null,null,null,null,null,null,{"$f":"C6","v":"Manœuvre et formation"}]
["Unité de travail : ",null,{"$f":"+Collectivité!A38","v":"Manœuvre et formation"}]
[]
[]
["Liste des risques","Danger Applicable","Commentaires","Gravité","Maîtrise","G*M","Durée exposition","Effectif",{"$f":"IF(OR(G9=\"\",H9=\"\"),\"NC\",G9*H9)","v":{"$error":"#VALUE!"}},"Note Totale"]
["Chute de plain pied",null,null,null,null,null,null,null,"NC",{"$f":"IF(OR(D10=\"\",E10=\"\",G10=\"\",H10=\"\",B10=\"non\"),\"NC\",D10*E10*G10*H10)","v":"NC"}]
["Chute de hauteur",null,null,null,null,null,null,null,"NC",{"$f":"IF(OR(D11=\"\",E11=\"\",G11=\"\",H11=\"\",B11=\"non\"),\"NC\",D11*E11*G11*H11)","v":"NC"}]
["Effondrement et chutes d'objets\n",null,null,null,null,null,null,null,"NC","NC"]
["Manutention manuelle",null,null,null,null,null,null,null,"NC","NC"]
["Ergonomie",null,null,null,null,null,null,null,"NC","NC"]
["Risque Routier - Conduite d'engins",null,null,null,null,null,null,null,"NC","NC"]
["Circulation piétonne",null,null,null,null,null,null,null,"NC","NC"]
["Risques liés aux machines et outils",null,null,null,null,null,null,null,"NC","NC"]
["Bruit",null,null,null,null,null,null,null,"NC","NC"]
["Vibrations",null,null,null,null,null,null,null,"NC","NC"]
["Risques chimiques",null,null,null,null,null,null,null,"NC","NC"]
["Amiante",null,null,null,null,null,null,null,"NC","NC"]
["Aération et assainissement de l'air",null,null,null,null,null,null,null,"NC","NC"]
["Risque Electrique",null,null,null,null,null,null,null,"NC","NC"]
["Incendie - Explosion",null,null,null,null,null,null,null,"NC","NC"]
["Risques liés à l'éclairage",null,null,null,null,null,null,null,"NC","NC"]
["Utilisation d'écran",null,null,null,null,null,null,null,"NC","NC"]
["Risques liés aux ambiances climatiques et thermiques",null,null,null,null,null,null,null,"NC","NC"]
["Risque biologique",null,null,null,null,null,null,null,"NC","NC"]
["Manque d'hygiène",null,null,null,null,null,null,null,"NC","NC"]
["Rayonnement",null,null,null,null,null,null,null,"NC","NC"]
["Entreprises Extérieures",null,null,null,null,null,null,null,"NC","NC"]
["Agressions",null,null,null,null,null,null,null,"NC","NC"]
["Risques psychosociaux","oui","Sur cette unité, les risques psychosociaux sont présents, les principales composantes à maitriser sont :\n1/ intensité du travail : \n-  ;\n2 / Emotionnel :\n- \n3 / Autonomie :\n- \n4 / Rapports sociaux :\n- \n5 / Conflits de Valeur :\n- \n6 / Insécurité de la situation de travail:\n-",null,null,{"$f":"IF(OR(D33=\"\",E33=\"\"),\"NC\",D33*E33)","v":"NC"},null,{"$f":"IF(J$4=0,\"0\",IF(J$4<=15,\"1\",IF(AND(15<J$4,J$4<=45),\"4\",IF(AND(45<J$4,J$4<=75),\"7\",IF(J$4>75,\"10\",\"\")))))","v":"1"},"NC","NC"]
[null,null,null,null,null,null,null,null,null,"NC"]

{"sheet":"APS","index":13,"n_rows":33,"n_cols":10,"rows_kept":33,"cut":false,"hidden":false,"merged":[[5,0,6,1],[5,2,6,9],[0,0,0,9],[1,0,1,1],[1,6,1,7],[2,0,2,1],[2,6,2,7],[3,0,3,1],[3,6,3,7]]}
["3. EVALUATION DES RISQUES PAR UNITE DE TRAVAIL"]
["Date de rédaction :",null,{"$f":"+Collectivité!F36","v":"00:00:00"},null,null,null,"Effectif total:",null,null,{"$f":"+Direction!J2","v":12.190000000000001}]
["Date de mise à jour :",null,{"$f":"+C2","v":"00:00:00"},null,null,null,"Effectif concerné:",null,null,{"$f":"+Collectivité!E39","v":0.4}]
["Rédacteur :",null,null,null,null,null,"Effectif (pourcentage):",null,null,{"$f":"(J3/J2)*100","v":3.2813781788351108}]
["Participants :",null,"Chef de centre/chef de service ou adjoint : \nAssitant de prévention : \nAgent : \nCHSCT/CCDSPV : \nPSSM : \n",null,null,null,null,null,null,{"$f":"C6","v":"APS"}]
["Unité de travail : ",null,{"$f":"+Collectivité!A39","v":"APS"}]
[]
[]
["Liste des risques","Danger Applicable","Commentaires","Gravité","Maîtrise","G*M","Durée exposition","Effectif","D*E","Note Totale"]
["Chute de plain pied",null,null,null,null,{"$f":"IF(OR(D10=\"\",E10=\"\"),\"NC\",D10*E10)","v":"NC"},null,{"$f":"IF(J$4=0,\"0\",IF(J$4<=15,\"1\",IF(AND(15<J$4,J$4<=45),\"4\",IF(AND(45<J$4,J$4<=75),\"7\",IF(J$4>75,\"10\",\"\")))))","v":"1"},{"$f":"IF(OR(G10=\"\",H10=\"\"),\"NC\",G10*H10)","v":"NC"},{"$f":"IF(OR(D10=\"\",E10=\"\",G10=\"\",H10=\"\",B10=\"non\"),\"NC\",D10*E10*G10*H10)","v":"NC"}]
["Chute de hauteur",null,null,null,null,"NC",null,{"$f":"IF(J$4=0,\"0\",IF(J$4<=15,\"1\",IF(AND(15<J$4,J$4<=45),\"4\",IF(AND(45<J$4,J$4<=75),\"7\",IF(J$4>75,\"10\",\"\")))))","v":"1"},"NC",{"$f":"IF(OR(D11=\"\",E11=\"\",G11=\"\",H11=\"\",B11=\"non\"),\"NC\",D11*E11*G11*H11)","v":"NC"}]
["Effondrement et chutes d'objets\n",null,null,null,null,"NC",null,"1","NC","NC"]
["Manutention manuelle",null,null,null,null,"NC",null,"1","NC","NC"]
["Ergonomie",null,null,null,null,"NC",null,"1","NC","NC"]
["Risque Routier - Conduite d'engins",null,null,null,null,"NC",null,"1","NC","NC"]
["Circulation piétonne",null,null,null,null,"NC",null,"1","NC","NC"]
["Risques liés aux machines et outils",null,null,null,null,"NC",null,"1","NC","NC"]
["Bruit",null,null,null,null,"NC",null,"1","NC","NC"]
["Vibrations",null,null,null,null,"NC",null,"1","NC","NC"]
["Risques chimiques",null,null,null,null,"NC",null,"1","NC","NC"]
["Amiante",null,null,null,null,"NC",null,"1","NC","NC"]
["Aération et assainissement de l'air",null,null,null,null,"NC",null,"1","NC","NC"]
["Risque Electrique",null,null,null,null,"NC",null,"1","NC","NC"]
["Incendie - Explosion",null,null,null,null,"NC",null,"1","NC","NC"]
["Risques liés à l'éclairage",null,null,null,null,"NC",null,"1","NC","NC"]
["Utilisation d'écran",null,null,null,null,"NC",null,"1","NC","NC"]
["Risques liés aux ambiances climatiques et thermiques",null,null,null,null,"NC",null,"1","NC","NC"]
["Risque biologique",null,null,null,null,"NC",null,"1","NC","NC"]
["Manque d'hygiène",null,null,null,null,"NC",null,"1","NC","NC"]
["Rayonnement",null,null,null,null,"NC",null,"1","NC","NC"]
["Entreprises Extérieures",null,null,null,null,"NC",null,"1","NC","NC"]
["Agressions",null,null,null,null,"NC",null,"1","NC","NC"]
["Risques psychosociaux","oui","Sur cette unité, les risques psychosociaux sont présents, les principales composantes à maitriser sont :\n1/ intensité du travail : \n-  ;\n2 / Emotionnel :\n- \n3 / Autonomie :\n- \n4 / Rapports sociaux :\n- \n5 / Conflits de Valeur :\n- \n6 / Insécurité de la situation de travail:\n-",null,null,"NC",null,"1","NC","NC"]

{"sheet":"Espace vert","index":14,"n_rows":33,"n_cols":10,"rows_kept":33,"cut":false,"hidden":false,"merged":[[5,0,6,1],[5,2,6,9],[0,0,0,9],[1,0,1,1],[1,6,1,7],[2,0,2,1],[2,6,2,7],[3,0,3,1],[3,6,3,7]]}
["3. EVALUATION DES RISQUES PAR UNITE DE TRAVAIL"]
["Date de rédaction :",null,{"$f":"+Collectivité!F36","v":"00:00:00"},null,null,null,"Effectif total:",null,null,{"$f":"+Direction!J2","v":12.190000000000001}]
["Date de mise à jour :",null,{"$f":"+C2","v":"00:00:00"},null,null,null,"Effectif concerné:",null,null,{"$f":"+Collectivité!E40","v":0.4}]
["Rédacteur :",null,null,null,null,null,"Effectif (pourcentage):",null,null,{"$f":"(J3/J2)*100","v":3.2813781788351108}]
["Participants :",null,"Chef de centre/chef de service ou adjoint : \nAssitant de prévention : \nAgent : \nCHSCT/CCDSPV : \nPSSM : \n",null,null,null,null,null,null,{"$f":"C6","v":"Espace vert"}]
["Unité de travail : ",null,{"$f":"+Collectivité!A40","v":"Espace vert"}]
[]
[]
["Liste des risques","Danger Applicable","Commentaires","Gravité","Maîtrise","G*M","Durée exposition","Effectif","D*E","Note Totale"]
["Chute de plain pied",null,null,null,null,{"$f":"IF(OR(D10=\"\",E10=\"\"),\"NC\",D10*E10)","v":"NC"},null,{"$f":"IF(J$4=0,\"0\",IF(J$4<=15,\"1\",IF(AND(15<J$4,J$4<=45),\"4\",IF(AND(45<J$4,J$4<=75),\"7\",IF(J$4>75,\"10\",\"\")))))","v":"1"},{"$f":"IF(OR(G10=\"\",H10=\"\"),\"NC\",G10*H10)","v":"NC"},{"$f":"IF(OR(D10=\"\",E10=\"\",G10=\"\",H10=\"\",B10=\"non\"),\"NC\",D10*E10*G10*H10)","v":"NC"}]
["Chute de hauteur",null,null,null,null,"NC",null,{"$f":"IF(J$4=0,\"0\",IF(J$4<=15,\"1\",IF(AND(15<J$4,J$4<=45),\"4\",IF(AND(45<J$4,J$4<=75),\"7\",IF(J$4>75,\"10\",\"\")))))","v":"1"},{"$f":"IF(OR(G11=\"\",H11=\"\"),\"NC\",G11*H11)","v":"NC"},{"$f":"IF(OR(D11=\"\",E11=\"\",G11=\"\",H11=\"\",B11=\"non\"),\"NC\",D11*E11*G11*H11)","v":"NC"}]
["Effondrement et chutes d'objets\n",null,null,null,null,"NC",null,"1","NC","NC"]
["Manutention manuelle",null,null,null,null,"NC",null,"1","NC","NC"]
["Ergonomie",null,null,null,null,"NC",null,"1","NC","NC"]
["Risque Routier - Conduite d'engins",null,null,null,null,"NC",null,"1","NC","NC"]
["Circulation piétonne",null,null,null,null,"NC",null,"1","NC","NC"]
["Risques liés aux machines et outils",null,null,null,null,"NC",null,"1","NC","NC"]
["Bruit",null,null,null,null,"NC",null,"1","NC","NC"]
["Vibrations",null,null,null,null,"NC",null,"1","NC","NC"]
["Risques chimiques",null,null,null,null,"NC",null,"1","NC","NC"]
["Amiante",null,null,null,null,"NC",null,"1","NC","NC"]
["Aération et assainissement de l'air",null,null,null,null,"NC",null,"1","NC","NC"]
["Risque Electrique",null,null,null,null,"NC",null,"1","NC","NC"]
["Incendie - Explosion",null,null,null,null,"NC",null,"1","NC","NC"]
["Risques liés à l'éclairage",null,null,null,null,"NC",null,"1","NC","NC"]
["Utilisation d'écran",null,null,null,null,"NC",null,"1","NC","NC"]
["Risques liés aux ambiances climatiques et thermiques",null,null,null,null,"NC",null,"1","NC","NC"]
["Risque biologique",null,null,null,null,"NC",null,"1","NC","NC"]
["Manque d'hygiène",null,null,null,null,"NC",null,"1","NC","NC"]
["Rayonnement",null,null,null,null,"NC",null,"1","NC","NC"]
["Entreprises Extérieures",null,null,null,null,"NC",null,"1","NC","NC"]
["Agressions",null,null,null,null,"NC",null,"1","NC","NC"]
["Risques psychosociaux","oui","Sur cette unité, les risques psychosociaux sont présents, les principales composantes à maitriser sont :\n1/ intensité du travail : \n-  ;\n2 / Emotionnel :\n- \n3 / Autonomie :\n- \n4 / Rapports sociaux :\n- \n5 / Conflits de Valeur :\n- \n6 / Insécurité de la situation de travail:\n-",null,null,"NC",null,"1","NC","NC"]

{"sheet":"Habillement","index":15,"n_rows":33,"n_cols":10,"rows_kept":33,"cut":false,"hidden":false,"merged":[[5,0,6,1],[5,2,6,9],[0,0,0,9],[1,0,1,1],[1,6,1,7],[2,0,2,1],[2,6,2,7],[3,0,3,1],[3,6,3,7]]}
["3. EVALUATION DES RISQUES PAR UNITE DE TRAVAIL"]
["Date de rédaction :",null,{"$f":"+Collectivité!F36","v":"00:00:00"},null,null,null,"Effectif total:",null,null,{"$f":"+Direction!J2","v":12.190000000000001}]
["Date de mise à jour :",null,{"$f":"+C2","v":"00:00:00"},null,null,null,"Effectif concerné:",null,null,{"$f":"Collectivité!D41","v":3}]
["Rédacteur :",null,null,null,null,null,"Effectif (pourcentage):",null,null,{"$f":"(J3/J2)*100","v":24.610336341263327}]
["Participants :",null,"Chef de centre/chef de service ou adjoint : \nAssitant de prévention : \nAgent : \nCHSCT/CCDSPV : \nPSSM : \n",null,null,null,null,null,null,{"$f":"C6","v":"Habillement"}]
["Unité de travail : ",null,{"$f":"+Collectivité!A41","v":"Habillement"}]
[]
[]
["Liste des risques","Danger Applicable","Commentaires","Gravité","Maîtrise","G*M","Durée exposition","Effectif","D*E","Note Totale"]
["Chute de plain pied",null,null,null,null,{"$f":"IF(OR(D10=\"\",E10=\"\"),\"NC\",D10*E10)","v":"NC"},null,{"$f":"IF(J$4=0,\"0\",IF(J$4<=15,\"1\",IF(AND(15<J$4,J$4<=45),\"4\",IF(AND(45<J$4,J$4<=75),\"7\",IF(J$4>75,\"10\",\"\")))))","v":"4"},{"$f":"IF(OR(G10=\"\",H10=\"\"),\"NC\",G10*H10)","v":"NC"},{"$f":"IF(OR(D10=\"\",E10=\"\",G10=\"\",H10=\"\",B10=\"non\"),\"NC\",D10*E10*G10*H10)","v":"NC"}]
["Chute de hauteur",null,null,null,null,"NC",null,{"$f":"IF(J$4=0,\"0\",IF(J$4<=15,\"1\",IF(AND(15<J$4,J$4<=45),\"4\",IF(AND(45<J$4,J$4<=75),\"7\",IF(J$4>75,\"10\",\"\")))))","v":"4"},{"$f":"IF(OR(G11=\"\",H11=\"\"),\"NC\",G11*H11)","v":"NC"},{"$f":"IF(OR(D11=\"\",E11=\"\",G11=\"\",H11=\"\",B11=\"non\"),\"NC\",D11*E11*G11*H11)","v":"NC"}]
["Effondrement et chutes d'objets\n",null,null,null,null,"NC",null,"4","NC","NC"]
["Manutention manuelle",null,null,null,null,"NC",null,"4","NC","NC"]
["Ergonomie",null,null,null,null,"NC",null,"4","NC","NC"]
["Risque Routier - Conduite d'engins",null,null,null,null,"NC",null,"4","NC","NC"]
["Circulation piétonne",null,null,null,null,"NC",null,"4","NC","NC"]
["Risques liés aux machines et outils",null,null,null,null,"NC",null,"4","NC","NC"]
["Bruit",null,null,null,null,"NC",null,"4","NC","NC"]
["Vibrations",null,null,null,null,"NC",null,"4","NC","NC"]
["Risques chimiques",null,null,null,null,"NC",null,"4","NC","NC"]
["Amiante",null,null,null,null,"NC",null,"4","NC","NC"]
["Aération et assainissement de l'air",null,null,null,null,"NC",null,"4","NC","NC"]
["Risque Electrique",null,null,null,null,"NC",null,"4","NC","NC"]
["Incendie - Explosion",null,null,null,null,"NC",null,"4","NC","NC"]
["Risques liés à l'éclairage",null,null,null,null,"NC",null,"4","NC","NC"]
["Utilisation d'écran",null,null,null,null,"NC",null,"4","NC","NC"]
["Risques liés aux ambiances climatiques et thermiques",null,null,null,null,"NC",null,"4","NC","NC"]
["Risque biologique",null,null,null,null,"NC",null,"4","NC","NC"]
["Manque d'hygiène",null,null,null,null,"NC",null,"4","NC","NC"]
["Rayonnement",null,null,null,null,"NC",null,"4","NC","NC"]
["Entreprises Extérieures",null,null,null,null,"NC",null,"4","NC","NC"]
["Agressions",null,null,null,null,"NC",null,"4","NC","NC"]
["Risques psychosociaux","oui","Sur cette unité, les risques psychosociaux sont présents, les principales composantes à maitriser sont :\n1/ intensité du travail : \n-  ;\n2 / Emotionnel :\n- \n3 / Autonomie :\n- \n4 / Rapports sociaux :\n- \n5 / Conflits de Valeur :\n- \n6 / Insécurité de la situation de travail:\n-",null,null,"NC",null,"4","NC","NC"]

{"sheet":"Réserve groupement","index":16,"n_rows":33,"n_cols":10,"rows_kept":33,"cut":false,"hidden":false,"merged":[[5,0,6,1],[5,2,6,9],[0,0,0,9],[1,0,1,1],[1,6,1,7],[2,0,2,1],[2,6,2,7],[3,0,3,1],[3,6,3,7]]}
["3. EVALUATION DES RISQUES PAR UNITE DE TRAVAIL"]
["Date de rédaction :",null,{"$f":"+Collectivité!F32","v":"00:00:00"},null,null,null,"Effectif total:",null,null,{"$f":"+Collectivité!F29","v":12.190000000000001}]
["Date de mise à jour :",null,{"$f":"+C2","v":"00:00:00"},null,null,null,"Effectif concerné:",null,null,{"$f":"+Collectivité!E42","v":0}]
["Rédacteur :",null,null,null,null,null,"Effectif (pourcentage):",null,null,{"$f":"(J3/J2)*100","v":0}]
["Participants :",null,"Chef de centre/chef de service ou adjoint : \nAssitant de prévention : \nAgent : \nCHSCT/CCDSPV : \nPSSM : \n",null,null,null,null,null,null,{"$f":"C6","v":"Réserve groupement"}]
["Unité de travail : ",null,{"$f":"+Collectivité!A42","v":"Réserve groupement"}]
[]
[]
["Liste des risques","Danger Applicable","Commentaires","Gravité","Maîtrise","G*M","Durée exposition","Effectif","D*E","Note Totale"]
["Chute de plain pied",null,null,null,null,{"$f":"IF(OR(D10=\"\",E10=\"\"),\"NC\",D10*E10)","v":"NC"},null,{"$f":"IF(J$4=0,\"0\",IF(J$4<=15,\"1\",IF(AND(15<J$4,J$4<=45),\"4\",IF(AND(45<J$4,J$4<=75),\"7\",IF(J$4>75,\"10\",\"\")))))","v":"0"},{"$f":"IF(OR(G10=\"\",H10=\"\"),\"NC\",G10*H10)","v":"NC"},{"$f":"IF(OR(D10=\"\",E10=\"\",G10=\"\",H10=\"\",B10=\"non\"),\"NC\",D10*E10*G10*H10)","v":"NC"}]
["Chute de hauteur",null,null,null,null,{"$f":"IF(OR(D11=\"\",E11=\"\"),\"NC\",D11*E11)","v":"NC"},null,{"$f":"IF(J$4=0,\"0\",IF(J$4<=15,\"1\",IF(AND(15<J$4,J$4<=45),\"4\",IF(AND(45<J$4,J$4<=75),\"7\",IF(J$4>75,\"10\",\"\")))))","v":"0"},{"$f":"IF(OR(G11=\"\",H11=\"\"),\"NC\",G11*H11)","v":"NC"},{"$f":"IF(OR(D11=\"\",E11=\"\",G11=\"\",H11=\"\",B11=\"non\"),\"NC\",D11*E11*G11*H11)","v":"NC"}]
["Effondrement et chutes d'objets\n",null,null,null,null,{"$f":"IF(OR(D12=\"\",E12=\"\"),\"NC\",D12*E12)","v":"NC"},null,"0","NC","NC"]
["Manutention manuelle",null,null,null,null,{"$f":"IF(OR(D13=\"\",E13=\"\"),\"NC\",D13*E13)","v":"NC"},null,"0","NC","NC"]
["Ergonomie",null,null,null,null,"NC",null,"0","NC","NC"]
["Risque Routier - Conduite d'engins",null,null,null,null,"NC",null,"0","NC","NC"]
["Circulation piétonne",null,null,null,null,"NC",null,"0","NC","NC"]
["Risques liés aux machines et outils",null,null,null,null,"NC",null,"0","NC","NC"]
["Bruit",null,null,null,null,"NC",null,"0","NC","NC"]
["Vibrations",null,null,null,null,"NC",null,"0","NC","NC"]
["Risques chimiques",null,null,null,null,"NC",null,"0","NC","NC"]
["Amiante",null,null,null,null,"NC",null,"0","NC","NC"]
["Aération et assainissement de l'air",null,null,null,null,"NC",null,"0","NC","NC"]
["Risque Electrique",null,null,null,null,"NC",null,"0","NC","NC"]
["Incendie - Explosion",null,null,null,null,"NC",null,"0","NC","NC"]
["Risques liés à l'éclairage",null,null,null,null,"NC",null,"0","NC","NC"]
["Utilisation d'écran",null,null,null,null,"NC",null,"0","NC","NC"]
["Risques liés aux ambiances climatiques et thermiques",null,null,null,null,"NC",null,"0","NC","NC"]
["Risque biologique",null,null,null,null,"NC",null,"0","NC","NC"]
["Manque d'hygiène",null,null,null,null,"NC",null,"0","NC","NC"]
["Rayonnement",null,null,null,null,"NC",null,"0","NC","NC"]
["Entreprises Extérieures",null,null,null,null,"NC",null,"0","NC","NC"]
["Agressions",null,null,null,null,"NC",null,"0","NC","NC"]
["Risques psychosociaux","oui","Sur cette unité, les risques psychosociaux sont présents, les principales composantes à maitriser sont :\n1/ intensité du travail : \n-  ;\n2 / Emotionnel :\n- \n3 / Autonomie :\n- \n4 / Rapports sociaux :\n- \n5 / Conflits de Valeur :\n- \n6 / Insécurité de la situation de travail:\n-",null,null,"NC",null,"0","NC","NC"]

{"sheet":"Pharmacie","index":17,"n_rows":33,"n_cols":10,"rows_kept":33,"cut":false,"hidden":false,"merged":[[5,0,6,1],[0,0,0,9],[1,0,1,1],[1,6,1,7],[2,0,2,1],[2,6,2,7],[3,0,3,1],[3,6,3,7],[5,2,6,9]]}
["3. EVALUATION DES RISQUES PAR UNITE DE TRAVAIL"]
["Date de rédaction :",null,{"$f":"+Collectivité!F32","v":"00:00:00"},null,null,null,"Effectif total:",null,null,{"$f":"+'Réserve groupement'!J2","v":12.190000000000001}]
["Date de mise à jour :",null,{"$f":"+C2","v":"00:00:00"},null,null,null,"Effectif concerné:",null,null,{"$f":"+Collectivité!E43","v":0}]
["Rédacteur :",null,null,null,null,null,"Effectif (pourcentage):",null,null,{"$f":"(J3/J2)*100","v":0}]
["Participants :",null,"Chef de centre/chef de service ou adjoint : \nAssitant de prévention : \nAgent : \nCHSCT/CCDSPV : \nPSSM : \n",null,null,null,null,null,null,{"$f":"C6","v":"Pharmacie"}]
["Unité de travail : ",null,{"$f":"+Collectivité!A43","v":"Pharmacie"}]
[]
[]
["Liste des risques","Danger Applicable","Commentaires","Gravité","Maîtrise","G*M","Durée exposition","Effectif","D*E","Note Totale"]
["Chute de plain pied",null,null,null,null,{"$f":"IF(OR(D10=\"\",E10=\"\"),\"NC\",D10*E10)","v":"NC"},null,{"$f":"IF(J$4=0,\"0\",IF(J$4<=15,\"1\",IF(AND(15<J$4,J$4<=45),\"4\",IF(AND(45<J$4,J$4<=75),\"7\",IF(J$4>75,\"10\",\"\")))))","v":"0"},{"$f":"IF(OR(G10=\"\",H10=\"\"),\"NC\",G10*H10)","v":"NC"},{"$f":"IF(OR(D10=\"\",E10=\"\",G10=\"\",H10=\"\",B10=\"non\"),\"NC\",D10*E10*G10*H10)","v":"NC"}]
["Chute de hauteur",null,null,null,null,4,null,{"$f":"IF(J$4=0,\"0\",IF(J$4<=15,\"1\",IF(AND(15<J$4,J$4<=45),\"4\",IF(AND(45<J$4,J$4<=75),\"7\",IF(J$4>75,\"10\",\"\")))))","v":"0"},{"$f":"IF(OR(G11=\"\",H11=\"\"),\"NC\",G11*H11)","v":"NC"},{"$f":"IF(OR(D11=\"\",E11=\"\",G11=\"\",H11=\"\",B11=\"non\"),\"NC\",D11*E11*G11*H11)","v":"NC"}]
["Effondrement et chutes d'objets\n",null,null,null,null,"NC",null,"0","NC","NC"]
["Manutention manuelle",null,null,null,null,"NC",null,"0","NC","NC"]
["Ergonomie",null,null,null,null,"NC",null,"0","NC","NC"]
["Risque Routier - Conduite d'engins",null,null,null,null,"NC",null,"0","NC","NC"]
["Circulation piétonne",null,null,null,null,"NC",null,"0","NC","NC"]
["Risques liés aux machines et outils",null,null,null,null,"NC",null,"0","NC","NC"]
["Bruit",null,null,null,null,"NC",null,"0","NC","NC"]
["Vibrations",null,null,null,null,"NC",null,"0","NC","NC"]
["Risques chimiques",null,null,null,null,"NC",null,"0","NC","NC"]
["Amiante",null,null,null,null,"NC",null,"0","NC","NC"]
["Aération et assainissement de l'air",null,null,null,null,"NC",null,"0","NC","NC"]
["Risque Electrique",null,null,null,null,"NC",null,"0","NC","NC"]
["Incendie - Explosion",null,null,null,null,"NC",null,"0","NC","NC"]
["Risques liés à l'éclairage",null,null,null,null,"NC",null,"0","NC","NC"]
["Utilisation d'écran",null,null,null,null,"NC",null,"0","NC","NC"]
["Risques liés aux ambiances climatiques et thermiques",null,null,null,null,"NC",null,"0","NC","NC"]
["Risque biologique",null,null,null,null,"NC",null,"0","NC","NC"]
["Manque d'hygiène",null,null,null,null,"NC",null,"0","NC","NC"]
["Rayonnement",null,null,null,null,"NC",null,"0","NC","NC"]
["Entreprises Extérieures",null,null,null,null,"NC",null,"0","NC","NC"]
["Agressions",null,null,null,null,"NC",null,"0","NC","NC"]
["Risques psychosociaux","oui","Sur cette unité, les risques psychosociaux sont présents, les principales composantes à maitriser sont :\n1/ intensité du travail : \n-  ;\n2 / Emotionnel :\n- \n3 / Autonomie :\n- \n4 / Rapports sociaux :\n- \n5 / Conflits de Valeur :\n- \n6 / Insécurité de la situation de travail:\n-",null,null,"NC",null,"0","NC","NC"]

{"sheet":"Batiment","index":18,"n_rows":33,"n_cols":10,"rows_kept":33,"cut":false,"hidden":false,"merged":[[5,0,6,1],[5,2,6,9],[0,0,0,9],[1,0,1,1],[1,6,1,7],[2,0,2,1],[2,6,2,7],[3,0,3,1],[3,6,3,7]]}
["3. EVALUATION DES RISQUES PAR UNITE DE TRAVAIL"]
["Date de rédaction :",null,{"$f":"+Collectivité!F34","v":"00:00:00"},null,null,null,"Effectif total:",null,null,{"$f":"+'Réserve groupement'!J2","v":12.190000000000001}]
["Date de mise à jour :",null,{"$f":"+C2","v":"00:00:00"},null,null,null,"Effectif concerné:",null,null,{"$f":"+Collectivité!E44","v":0}]
["Rédacteur :",null,null,null,null,null,"Effectif (pourcentage):",null,null,{"$f":"(J3/J2)*100","v":0}]
["Participants :",null,"Chef de centre/chef de service ou adjoint : \nAssitant de prévention : \nAgent : \nCHSCT/CCDSPV : \nPSSM : \n",null,null,null,null,null,null,{"$f":"C6","v":"Batiment"}]
["Unité de travail : ",null,{"$f":"+Collectivité!A44","v":"Batiment"}]
[]
[]
["Liste des risques","Danger Applicable","Commentaires","Gravité","Maîtrise","G*M","Durée exposition","Effectif","D*E","Note Totale"]
["Chute de plain pied","oui",null,null,null,{"$f":"IF(OR(D10=\"\",E10=\"\"),\"NC\",D10*E10)","v":"NC"},null,{"$f":"IF(J$4=0,\"0\",IF(J$4<=15,\"1\",IF(AND(15<J$4,J$4<=45),\"4\",IF(AND(45<J$4,J$4<=75),\"7\",IF(J$4>75,\"10\",\"\")))))","v":"0"},{"$f":"IF(OR(G10=\"\",H10=\"\"),\"NC\",G10*H10)","v":"NC"},{"$f":"IF(OR(D10=\"\",E10=\"\",G10=\"\",H10=\"\",B10=\"non\"),\"NC\",D10*E10*G10*H10)","v":"NC"}]
["Chute de hauteur","oui",null,null,null,4,null,{"$f":"IF(J$4=0,\"0\",IF(J$4<=15,\"1\",IF(AND(15<J$4,J$4<=45),\"4\",IF(AND(45<J$4,J$4<=75),\"7\",IF(J$4>75,\"10\",\"\")))))","v":"0"},"NC","NC"]
["Effondrement et chutes d'objets\n",null,null,null,null,"NC",null,"0","NC","NC"]
["Manutention manuelle",null,null,null,null,"NC",null,"0","NC","NC"]
["Ergonomie",null,null,null,null,"NC",null,"0","NC","NC"]
["Risque Routier - Conduite d'engins",null,null,null,null,"NC",null,"0","NC","NC"]
["Circulation piétonne",null,null,null,null,"NC",null,"0","NC","NC"]
["Risques liés aux machines et outils",null,null,null,null,"NC",null,"0","NC","NC"]
["Bruit",null,null,null,null,"NC",null,"0","NC","NC"]
["Vibrations",null,null,null,null,"NC",null,"0","NC","NC"]
["Risques chimiques",null,null,null,null,"NC",null,"0","NC","NC"]
["Amiante",null,null,null,null,"NC",null,"0","NC","NC"]
["Aération et assainissement de l'air",null,null,null,null,"NC",null,"0","NC","NC"]
["Risque Electrique",null,null,null,null,"NC",null,"0","NC","NC"]
["Incendie - Explosion",null,null,null,null,"NC",null,"0","NC","NC"]
["Risques liés à l'éclairage",null,null,null,null,"NC",null,"0","NC","NC"]
["Utilisation d'écran",null,null,null,null,"NC",null,"0","NC","NC"]
["Risques liés aux ambiances climatiques et thermiques",null,null,null,null,"NC",null,"0","NC","NC"]
["Risque biologique",null,null,null,null,"NC",null,"0","NC","NC"]
["Manque d'hygiène",null,null,null,null,"NC",null,"0","NC","NC"]
["Rayonnement",null,null,null,null,"NC",null,"0","NC","NC"]
["Entreprises Extérieures",null,null,null,null,{"$f":"IF(OR(D31=\"\",E31=\"\"),\"NC\",D31*E31)","v":"NC"},null,{"$f":"IF(J$4=0,\"0\",IF(J$4<=15,\"1\",IF(AND(15<J$4,J$4<=45),\"4\",IF(AND(45<J$4,J$4<=75),\"7\",IF(J$4>75,\"10\",\"\")))))","v":"0"},"NC","NC"]
["Agressions",null,null,null,null,{"$f":"IF(OR(D32=\"\",E32=\"\"),\"NC\",D32*E32)","v":"NC"},null,{"$f":"IF(J$4=0,\"0\",IF(J$4<=15,\"1\",IF(AND(15<J$4,J$4<=45),\"4\",IF(AND(45<J$4,J$4<=75),\"7\",IF(J$4>75,\"10\",\"\")))))","v":"0"},"NC","NC"]
["Risques psychosociaux","oui","Sur cette unité, les risques psychosociaux sont présents, les principales composantes à maitriser sont :\n1/ intensité du travail : \n-  ;\n2 / Emotionnel :\n- \n3 / Autonomie :\n- \n4 / Rapports sociaux :\n- \n5 / Conflits de Valeur :\n- \n6 / Insécurité de la situation de travail:\n-",null,null,{"$f":"IF(OR(D33=\"\",E33=\"\"),\"NC\",D33*E33)","v":"NC"},null,{"$f":"IF(J$4=0,\"0\",IF(J$4<=15,\"1\",IF(AND(15<J$4,J$4<=45),\"4\",IF(AND(45<J$4,J$4<=75),\"7\",IF(J$4>75,\"10\",\"\")))))","v":"0"},"NC","NC"]

{"sheet":"Cyno","index":19,"n_rows":33,"n_cols":10,"rows_kept":33,"cut":false,"hidden":false,"merged":[[5,0,6,1],[5,2,6,9],[0,0,0,9],[1,0,1,1],[1,6,1,7],[2,0,2,1],[2,6,2,7],[3,0,3,1],[3,6,3,7]]}
["3. EVALUATION DES RISQUES PAR UNITE DE TRAVAIL"]
["Date de rédaction :",null,{"$f":"+Collectivité!F35","v":"00:00:00"},null,null,null,"Effectif total:",null,null,{"$f":"+'Réserve groupement'!J2","v":12.190000000000001}]
["Date de mise à jour :",null,{"$f":"+C2","v":"00:00:00"},null,null,null,"Effectif concerné:",null,null,{"$f":"Collectivité!D45","v":0}]
["Rédacteur :",null,null,null,null,null,"Effectif (pourcentage):",null,null,{"$f":"(J3/J2)*100","v":0}]
["Participants :",null,"Chef de centre/chef de service ou adjoint : \nAssitant de prévention : \nAgent : \nCHSCT/CCDSPV : \nPSSM : \n",null,null,null,null,null,null,{"$f":"C6","v":"Cyno"}]
["Unité de travail : ",null,{"$f":"+Collectivité!A45","v":"Cyno"}]
[]
[]
["Liste des risques","Danger Applicable","Commentaires","Gravité","Maîtrise","G*M","Durée exposition","Effectif","D*E","Note Totale"]
["Chute de plain pied",null,null,null,null,{"$f":"IF(OR(D10=\"\",E10=\"\"),\"NC\",D10*E10)","v":"NC"},null,{"$f":"IF(J$4=0,\"0\",IF(J$4<=15,\"1\",IF(AND(15<J$4,J$4<=45),\"4\",IF(AND(45<J$4,J$4<=75),\"7\",IF(J$4>75,\"10\",\"\")))))","v":"0"},{"$f":"IF(OR(G10=\"\",H10=\"\"),\"NC\",G10*H10)","v":"NC"},{"$f":"IF(OR(D10=\"\",E10=\"\",G10=\"\",H10=\"\",B10=\"non\"),\"NC\",D10*E10*G10*H10)","v":"NC"}]
["Chute de hauteur",null,null,null,null,4,null,{"$f":"IF(J$4=0,\"0\",IF(J$4<=15,\"1\",IF(AND(15<J$4,J$4<=45),\"4\",IF(AND(45<J$4,J$4<=75),\"7\",IF(J$4>75,\"10\",\"\")))))","v":"0"},{"$f":"IF(OR(G11=\"\",H11=\"\"),\"NC\",G11*H11)","v":"NC"},{"$f":"IF(OR(D11=\"\",E11=\"\",G11=\"\",H11=\"\",B11=\"non\"),\"NC\",D11*E11*G11*H11)","v":"NC"}]
["Effondrement et chutes d'objets\n",null,null,null,null,{"$f":"IF(OR(D12=\"\",E12=\"\"),\"NC\",D12*E12)","v":"NC"},null,"0","NC","NC"]
["Manutention manuelle",null,null,null,null,"NC",null,"0","NC","NC"]
["Ergonomie",null,null,null,null,"NC",null,"0","NC","NC"]
["Risque Routier - Conduite d'engins",null,null,null,null,"NC",null,"0","NC","NC"]
["Circulation piétonne",null,null,null,null,"NC",null,"0","NC","NC"]
["Risques liés aux machines et outils",null,null,null,null,"NC",null,"0","NC","NC"]
["Bruit",null,null,null,null,"NC",null,"0","NC","NC"]
["Vibrations",null,null,null,null,"NC",null,"0","NC","NC"]
["Risques chimiques",null,null,null,null,"NC",null,"0","NC","NC"]
["Amiante",null,null,null,null,"NC",null,"0","NC","NC"]
["Aération et assainissement de l'air",null,null,null,null,"NC",null,"0","NC","NC"]
["Risque Electrique",null,null,null,null,"NC",null,"0","NC","NC"]
["Incendie - Explosion",null,null,null,null,"NC",null,"0","NC","NC"]
["Risques liés à l'éclairage",null,null,null,null,"NC",null,"0","NC","NC"]
["Utilisation d'écran",null,null,null,null,"NC",null,"0","NC","NC"]
["Risques liés aux ambiances climatiques et thermiques",null,null,null,null,"NC",null,"0","NC","NC"]
["Risque biologique",null,null,null,null,"NC",null,"0","NC","NC"]
["Manque d'hygiène",null,null,null,null,"NC",null,"0","NC","NC"]
["Rayonnement",null,null,null,null,"NC",null,"0","NC","NC"]
["Entreprises Extérieures",null,null,null,null,"NC",null,"0","NC","NC"]
["Agressions",null,null,null,null,"NC",null,"0","NC","NC"]
["Risques psychosociaux","oui","Sur cette unité, les risques psychosociaux sont présents, les principales composantes à maitriser sont :\n1/ intensité du travail : \n-  ;\n2 / Emotionnel :\n- \n3 / Autonomie :\n- \n4 / Rapports sociaux :\n- \n5 / Conflits de Valeur :\n- \n6 / Insécurité de la situation de travail:\n-",null,null,"NC",null,"0","NC","NC"]

{"sheet":"service général","index":20,"n_rows":33,"n_cols":10,"rows_kept":33,"cut":false,"hidden":false,"merged":[[5,0,6,1],[5,2,6,9],[0,0,0,9],[1,0,1,1],[1,6,1,7],[2,0,2,1],[2,6,2,7],[3,0,3,1],[3,6,3,7]]}
["3. EVALUATION DES RISQUES PAR UNITE DE TRAVAIL"]
["Date de rédaction :",null,"mardi 6 novembre 2018",null,null,null,"Effectif total:",null,null,{"$f":"+'Réserve groupement'!J2","v":12.190000000000001}]
["Date de mise à jour :",null,{"$f":"+C2","v":"mardi 6 novembre 2018"},null,null,null,"Effectif concerné:",null,null,{"$f":"Collectivité!D45","v":0}]
["Rédacteur :",null,null,null,null,null,"Effectif (pourcentage):",null,null,{"$f":"(J3/J2)*100","v":0}]
["Participants :",null,"Chef de centre/chef de service ou adjoint : \nAssitant de prévention : \nAgent : \nCHSCT/CCDSPV : \nPSSM : \n",null,null,null,null,null,null,{"$f":"C6","v":"service général"}]
["Unité de travail : ",null,"service général"]
[]
[]
["Liste des risques","Danger Applicable","Commentaires","Gravité","Maîtrise","G*M","Durée exposition","Effectif","D*E","Note Totale"]
["Chute de plain pied",null,null,null,null,null,null,{"$f":"IF(J$4=0,\"0\",IF(J$4<=15,\"1\",IF(AND(15<J$4,J$4<=45),\"4\",IF(AND(45<J$4,J$4<=75),\"7\",IF(J$4>75,\"10\",\"\")))))","v":"0"},{"$f":"IF(OR(G10=\"\",H10=\"\"),\"NC\",G10*H10)","v":"NC"},{"$f":"IF(OR(D10=\"\",E10=\"\",G10=\"\",H10=\"\",B10=\"non\"),\"NC\",D10*E10*G10*H10)","v":"NC"}]
["Chute de hauteur",null,null,null,null,null,null,{"$f":"IF(J$4=0,\"0\",IF(J$4<=15,\"1\",IF(AND(15<J$4,J$4<=45),\"4\",IF(AND(45<J$4,J$4<=75),\"7\",IF(J$4>75,\"10\",\"\")))))","v":"0"},{"$f":"IF(OR(G11=\"\",H11=\"\"),\"NC\",G11*H11)","v":"NC"},{"$f":"IF(OR(D11=\"\",E11=\"\",G11=\"\",H11=\"\",B11=\"non\"),\"NC\",D11*E11*G11*H11)","v":"NC"}]
["Effondrement et chutes d'objets\n",null,null,null,null,null,null,"0","NC","NC"]
["Manutention manuelle",null,null,null,null,null,null,"0","NC","NC"]
["Ergonomie",null,null,null,null,null,null,"0","NC","NC"]
["Risque Routier - Conduite d'engins",null,null,null,null,null,null,"0","NC","NC"]
["Circulation piétonne",null,null,null,null,null,null,"0","NC","NC"]
["Risques liés aux machines et outils",null,null,null,null,null,null,"0","NC","NC"]
["Bruit",null,null,null,null,null,null,"0","NC","NC"]
["Vibrations",null,null,null,null,null,null,"0","NC","NC"]
["Risques chimiques",null,null,null,null,null,null,"0","NC","NC"]
["Amiante",null,null,null,null,null,null,"0","NC","NC"]
["Aération et assainissement de l'air",null,null,null,null,null,null,"0","NC","NC"]
["Risque Electrique",null,null,null,null,null,null,"0","NC","NC"]
["Incendie - Explosion",null,null,null,null,null,null,"0","NC","NC"]
["Risques liés à l'éclairage",null,null,null,null,null,null,"0","NC","NC"]
["Utilisation d'écran",null,null,null,null,null,null,"0","NC","NC"]
["Risques liés aux ambiances climatiques et thermiques",null,null,null,null,null,null,"0","NC","NC"]
["Risque biologique",null,null,null,null,null,null,"0","NC","NC"]
["Manque d'hygiène",null,null,null,null,null,null,"0","NC","NC"]
["Rayonnement",null,null,null,null,null,null,"0","NC","NC"]
["Entreprises Extérieures",null,null,null,null,null,null,"0","NC","NC"]
["Agressions",null,null,null,null,null,null,"0","NC","NC"]
["Risques psychosociaux","oui","Sur cette unité, les risques psychosociaux sont présents, les principales composantes à maitriser sont :\n1/ intensité du travail : \n-  ;\n2 / Emotionnel :\n- \n3 / Autonomie :\n- \n4 / Rapports sociaux :\n- \n5 / Conflits de Valeur :\n- \n6 / Insécurité de la situation de travail:\n-",null,null,{"$f":"IF(OR(D33=\"\",E33=\"\"),\"NC\",D33*E33)","v":"NC"},null,"0","NC","NC"]

{"sheet":"VIERGE","index":21,"n_rows":33,"n_cols":10,"rows_kept":33,"cut":false,"hidden":false,"merged":[[5,0,6,1],[5,2,6,9],[0,0,0,9],[1,0,1,1],[1,6,1,7],[2,0,2,1],[2,6,2,7],[3,0,3,1],[3,6,3,7]]}
["3. EVALUATION DES RISQUES PAR UNITE DE TRAVAIL"]
["Date de rédaction :",null,"mardi 6 novembre 2018",null,null,null,"Effectif total:",null,null,{"$f":"+'Réserve groupement'!J2","v":12.190000000000001}]
["Date de mise à jour :",null,{"$f":"+C2","v":"mardi 6 novembre 2018"},null,null,null,"Effectif concerné:",null,null,{"$f":"Collectivité!D45","v":0}]
["Rédacteur :",null,null,null,null,null,"Effectif (pourcentage):",null,null,{"$f":"(J3/J2)*100","v":0}]
["Participants :",null,"Chef de centre/chef de service ou adjoint : \nAssitant de prévention : \nAgent : \nCHSCT/CCDSPV : \nPSSM : \n",null,null,null,null,null,null,"VIERGE"]
["Unité de travail : "]
[]
[]
["Liste des risques","Danger Applicable","Commentaires","Gravité","Maîtrise","G*M","Durée exposition","Effectif","D*E","Note Totale"]
["Chute de plain pied",null,null,null,null,null,null,null,{"$f":"IF(OR(G10=\"\",H10=\"\"),\"NC\",G10*H10)","v":"NC"},{"$f":"IF(OR(D10=\"\",E10=\"\",G10=\"\",H10=\"\",B10=\"non\"),\"NC\",D10*E10*G10*H10)","v":"NC"}]
["Chute de hauteur",null,null,null,null,null,null,null,{"$f":"IF(OR(G11=\"\",H11=\"\"),\"NC\",G11*H11)","v":"NC"},{"$f":"IF(OR(D11=\"\",E11=\"\",G11=\"\",H11=\"\",B11=\"non\"),\"NC\",D11*E11*G11*H11)","v":"NC"}]
["Effondrement et chutes d'objets\n",null,null,null,null,null,null,null,"NC","NC"]
["Manutention manuelle",null,null,null,null,null,null,null,"NC","NC"]
["Ergonomie",null,null,null,null,null,null,null,"NC","NC"]
["Risque Routier - Conduite d'engins",null,null,null,null,null,null,null,"NC","NC"]
["Circulation piétonne",null,null,null,null,null,null,null,"NC","NC"]
["Risques liés aux machines et outils",null,null,null,null,null,null,null,"NC","NC"]
["Bruit",null,null,null,null,null,null,null,"NC","NC"]
["Vibrations",null,null,null,null,null,null,null,"NC","NC"]
["Risques chimiques",null,null,null,null,null,null,null,"NC","NC"]
["Amiante",null,null,null,null,null,null,null,"NC","NC"]
["Aération et assainissement de l'air",null,null,null,null,null,null,null,"NC","NC"]
["Risque Electrique",null,null,null,null,null,null,null,"NC","NC"]
["Incendie - Explosion",null,null,null,null,null,null,null,"NC","NC"]
["Risques liés à l'éclairage",null,null,null,null,null,null,null,"NC","NC"]
["Utilisation d'écran",null,null,null,null,null,null,null,"NC","NC"]
["Risques liés aux ambiances climatiques et thermiques",null,null,null,null,null,null,null,"NC","NC"]
["Risque biologique",null,null,null,null,null,null,null,"NC","NC"]
["Manque d'hygiène",null,null,null,null,null,null,null,"NC","NC"]
["Rayonnement",null,null,null,null,null,null,null,"NC","NC"]
["Entreprises Extérieures",null,null,null,null,null,null,null,"NC","NC"]
["Agressions",null,null,null,null,null,null,null,"NC","NC"]
["Risques psychosociaux","oui","Sur cette unité, les risques psychosociaux sont présents, les principales composantes à maitriser sont :\n1/ intensité du travail : \n-  ;\n2 / Emotionnel :\n- \n3 / Autonomie :\n- \n4 / Rapports sociaux :\n- \n5 / Conflits de Valeur :\n- \n6 / Insécurité de la situation de travail:\n-",null,null,{"$f":"IF(OR(D33=\"\",E33=\"\"),\"NC\",D33*E33)","v":"NC"},null,null,"NC","NC"]

{"sheet":"Grille évaluation","index":22,"n_rows":30,"n_cols":39,"rows_kept":30,"cut":false,"hidden":false,"merged":[[4,0,27,0]]}
[null,"4. Grille d'évaluation"]
[]
[null,"UNITES DE TRAVAIL","f1","ii",{"$f":"+Direction!$C6","v":"Direction"},"f2","i2",{"$f":"+Secrétariat!$C6","v":"Secrétariat"},"f3","i3",{"$f":"+'Chaine de commandement'!$C6","v":"Chaine de commandement"},"f4","i4",{"$f":"+'Services administratifs'!$C6","v":"Services administratifs"},"f5","i5",{"$f":"+STASS!$C6","v":"STASS"},"f6","i6",{"$f":"+'Vie collective'!C6","v":"Vie collective"},"f7","i7",{"$f":"+'Manœuvre et formation'!C6","v":"Manœuvre et formation"},"f8","i8",{"$f":"+APS!C6","v":"APS"},"f9","i9",{"$f":"+'Espace vert'!C6","v":"Espace vert"},"f10","i10",{"$f":"+Habillement!C6","v":"Habillement"},{"$f":"+'Réserve groupement'!C6","v":"Réserve groupement"},{"$f":"+Pharmacie!C6","v":"Pharmacie"},{"$f":"+Batiment!C6","v":"Batiment"},{"$f":"+Cyno!C6","v":"Cyno"},null,"Moyenne de la collectivité","Somme de la collectivité"]
[null,"EFFECTIFS",null,null,{"$f":"+Direction!J3","v":1.33},null,null,{"$f":"+Secrétariat!J3","v":6.3999999999999995},null,null,{"$f":"+'Chaine de commandement'!J3","v":1.6},null,null,{"$f":"+'Services administratifs'!J3","v":0.33},null,null,{"$f":"+STASS!J3","v":0.7},null,null,{"$f":"+'Vie collective'!J3","v":0.4},null,null,{"$f":"+'Manœuvre et formation'!J3","v":0.4},null,null,{"$f":"+APS!J3","v":0.4},null,null,{"$f":"+'Espace vert'!J3","v":0.4},null,null,{"$f":"+Habillement!J3","v":3},{"$f":"+'Réserve groupement'!J3","v":0},{"$f":"+Pharmacie!J3","v":0},{"$f":"+Batiment!J3","v":0},{"$f":"+Cyno!J3","v":0},null,{"$f":"+AVERAGE(E4,N4,Q4,H4,K4,T4,W4,Z4,AC4,AF4)","v":1.496},{"$f":"SUM(E4,N4,Q4,H4,K4,T4,W4,Z4,AC4,AF4)","v":14.96}]
["L\nI\nS\nT\nE\n\nD\nE\nS\n\nR\nI\nS\nQ\nU\nE\nS\n\nE\nV\nE\nN\nT\nU\nE\nL\nS","Chute de plain- pied",{"$f":"+Direction!F10","v":"NC"},{"$f":"+Direction!I10","v":"NC"},{"$f":"+Direction!J10","v":"NC"},{"$f":"Secrétariat!$F10","v":"NC"},{"$f":"Secrétariat!$I10","v":"NC"},{"$f":"+Secrétariat!J10","v":"NC"},{"$f":"+'Chaine de commandement'!F10","v":"NC"},{"$f":"+'Chaine de commandement'!I10","v":"NC"},{"$f":"+'Chaine de commandement'!J10","v":"NC"},{"$f":"'Services administratifs'!$F10","v":"NC"},{"$f":"'Services administratifs'!$I10","v":"NC"},{"$f":"+'Services administratifs'!J10","v":"NC"},{"$f":"STASS!$F10","v":"NC"},{"$f":"STASS!$I10","v":"NC"},{"$f":"+STASS!J10","v":"NC"},{"$f":"+'Vie collective'!F10","v":"NC"},{"$f":"+'Vie collective'!I10","v":"NC"},{"$f":"+'Vie collective'!J10","v":"NC"},{"$f":"+'Manœuvre et formation'!F10","v":0},{"$f":"+'Manœuvre et formation'!I10","v":"NC"},{"$f":"+'Manœuvre et formation'!J10","v":"NC"},{"$f":"+APS!F10","v":"NC"},{"$f":"+APS!I10","v":"NC"},{"$f":"+APS!J10","v":"NC"},{"$f":"+'Espace vert'!F10","v":"NC"},{"$f":"+'Espace vert'!J10","v":"NC"},{"$f":"+'Espace vert'!J10","v":"NC"},{"$f":"+Habillement!F10","v":"NC"},{"$f":"+Habillement!I10","v":"NC"},{"$f":"+Habillement!J10","v":"NC"},{"$f":"+'Réserve groupement'!J10","v":"NC"},{"$f":"+Pharmacie!J10","v":"NC"},{"$f":"+Batiment!J10","v":"NC"},{"$f":"+Cyno!J10","v":"NC"},null,{"$error":"#DIV/0!"},0]
[null,"Chute de hauteur",{"$f":"+Direction!F11","v":"NC"},{"$f":"+Direction!I11","v":"NC"},{"$f":"+Direction!J11","v":"NC"},{"$f":"Secrétariat!$F11","v":4},{"$f":"Secrétariat!$I11","v":"NC"},{"$f":"+Secrétariat!J11","v":"NC"},{"$f":"+'Chaine de commandement'!F11","v":4},{"$f":"+'Chaine de commandement'!I11","v":"NC"},{"$f":"+'Chaine de commandement'!J11","v":"NC"},{"$f":"'Services administratifs'!$F11","v":4},{"$f":"'Services administratifs'!$I11","v":"NC"},{"$f":"+'Services administratifs'!J11","v":"NC"},{"$f":"STASS!$F11","v":4},{"$f":"STASS!$I11","v":"NC"},{"$f":"+STASS!J11","v":"NC"},{"$f":"+'Vie collective'!F11","v":"NC"},{"$f":"+'Vie collective'!I11","v":"NC"},{"$f":"+'Vie collective'!J11","v":"NC"},{"$f":"+'Manœuvre et formation'!F11","v":0},{"$f":"+'Manœuvre et formation'!I11","v":"NC"},{"$f":"+'Manœuvre et formation'!J11","v":"NC"},{"$f":"+APS!F11","v":"NC"},{"$f":"+APS!I11","v":"NC"},{"$f":"+APS!J11","v":"NC"},{"$f":"+'Espace vert'!F11","v":"NC"},{"$f":"+'Espace vert'!J11","v":"NC"},{"$f":"+'Espace vert'!J11","v":"NC"},{"$f":"+Habillement!F11","v":"NC"},{"$f":"+Habillement!I11","v":"NC"},{"$f":"+Habillement!J11","v":"NC"},{"$f":"+'Réserve groupement'!J11","v":"NC"},{"$f":"+Pharmacie!J11","v":"NC"},{"$f":"+Batiment!J11","v":"NC"},{"$f":"+Cyno!J11","v":"NC"},null,{"$error":"#DIV/0!"},0]
[null,"Effondrements et chutes d'objets",{"$f":"+Direction!F12","v":"NC"},{"$f":"+Direction!I12","v":"NC"},{"$f":"+Direction!J12","v":"NC"},{"$f":"Secrétariat!$F12","v":"NC"},{"$f":"Secrétariat!$I12","v":"NC"},{"$f":"+Secrétariat!J12","v":"NC"},{"$f":"+'Chaine de commandement'!F12","v":"NC"},{"$f":"+'Chaine de commandement'!I12","v":"NC"},{"$f":"+'Chaine de commandement'!J12","v":"NC"},{"$f":"'Services administratifs'!$F12","v":"NC"},{"$f":"'Services administratifs'!$I12","v":"NC"},{"$f":"+'Services administratifs'!J12","v":"NC"},{"$f":"STASS!$F12","v":"NC"},{"$f":"STASS!$I12","v":"NC"},{"$f":"+STASS!J12","v":"NC"},{"$f":"+'Vie collective'!F12","v":"NC"},{"$f":"+'Vie collective'!I12","v":"NC"},{"$f":"+'Vie collective'!J12","v":"NC"},{"$f":"+'Manœuvre et formation'!F12","v":0},{"$f":"+'Manœuvre et formation'!I12","v":"NC"},{"$f":"+'Manœuvre et formation'!J12","v":"NC"},{"$f":"+APS!F12","v":"NC"},{"$f":"+APS!I12","v":"NC"},{"$f":"+APS!J12","v":"NC"},{"$f":"+'Espace vert'!F12","v":"NC"},{"$f":"+'Espace vert'!J12","v":"NC"},{"$f":"+'Espace vert'!J12","v":"NC"},{"$f":"+Habillement!F12","v":"NC"},{"$f":"+Habillement!I12","v":"NC"},{"$f":"+Habillement!J12","v":"NC"},{"$f":"+'Réserve groupement'!J12","v":"NC"},{"$f":"+Pharmacie!J12","v":"NC"},{"$f":"+Batiment!J12","v":"NC"},{"$f":"+Cyno!J12","v":"NC"},null,{"$error":"#DIV/0!"},0]
[null,"Manutention manuelle",{"$f":"+Direction!F13","v":"NC"},{"$f":"+Direction!I13","v":"NC"},{"$f":"+Direction!J13","v":"NC"},{"$f":"Secrétariat!$F13","v":"NC"},{"$f":"Secrétariat!$I13","v":"NC"},{"$f":"+Secrétariat!J13","v":"NC"},{"$f":"+'Chaine de commandement'!F13","v":"NC"},{"$f":"+'Chaine de commandement'!I13","v":"NC"},{"$f":"+'Chaine de commandement'!J13","v":"NC"},{"$f":"'Services administratifs'!$F13","v":"NC"},{"$f":"'Services administratifs'!$I13","v":"NC"},{"$f":"+'Services administratifs'!J13","v":"NC"},{"$f":"STASS!$F13","v":"NC"},{"$f":"STASS!$I13","v":"NC"},{"$f":"+STASS!J13","v":"NC"},{"$f":"+'Vie collective'!F13","v":"NC"},{"$f":"+'Vie collective'!I13","v":"NC"},{"$f":"+'Vie collective'!J13","v":"NC"},{"$f":"+'Manœuvre et formation'!F13","v":0},{"$f":"+'Manœuvre et formation'!I13","v":"NC"},{"$f":"+'Manœuvre et formation'!J13","v":"NC"},{"$f":"+APS!F13","v":"NC"},{"$f":"+APS!I13","v":"NC"},{"$f":"+APS!J13","v":"NC"},{"$f":"+'Espace vert'!F13","v":"NC"},{"$f":"+'Espace vert'!J13","v":"NC"},{"$f":"+'Espace vert'!J13","v":"NC"},{"$f":"+Habillement!F13","v":"NC"},{"$f":"+Habillement!I13","v":"NC"},{"$f":"+Habillement!J13","v":"NC"},{"$f":"+'Réserve groupement'!J13","v":"NC"},{"$f":"+Pharmacie!J13","v":"NC"},{"$f":"+Batiment!J13","v":"NC"},{"$f":"+Cyno!J13","v":"NC"},null,{"$error":"#DIV/0!"},0]
[null,"Ergonomie ",{"$f":"+Direction!F14","v":"NC"},{"$f":"+Direction!I14","v":"NC"},{"$f":"+Direction!J14","v":"NC"},{"$f":"Secrétariat!$F14","v":"NC"},{"$f":"Secrétariat!$I14","v":"NC"},{"$f":"+Secrétariat!J14","v":"NC"},{"$f":"+'Chaine de commandement'!F14","v":"NC"},{"$f":"+'Chaine de commandement'!I14","v":"NC"},{"$f":"+'Chaine de commandement'!J14","v":"NC"},{"$f":"'Services administratifs'!$F14","v":"NC"},{"$f":"'Services administratifs'!$I14","v":"NC"},{"$f":"+'Services administratifs'!J14","v":"NC"},{"$f":"STASS!$F14","v":"NC"},{"$f":"STASS!$I14","v":"NC"},{"$f":"+STASS!J14","v":"NC"},{"$f":"+'Vie collective'!F14","v":"NC"},{"$f":"+'Vie collective'!I14","v":"NC"},{"$f":"+'Vie collective'!J14","v":"NC"},{"$f":"+'Manœuvre et formation'!F14","v":0},{"$f":"+'Manœuvre et formation'!I14","v":"NC"},{"$f":"+'Manœuvre et formation'!J14","v":"NC"},{"$f":"+APS!F14","v":"NC"},{"$f":"+APS!I14","v":"NC"},{"$f":"+APS!J14","v":"NC"},{"$f":"+'Espace vert'!F14","v":"NC"},{"$f":"+'Espace vert'!J14","v":"NC"},{"$f":"+'Espace vert'!J14","v":"NC"},{"$f":"+Habillement!F14","v":"NC"},{"$f":"+Habillement!I14","v":"NC"},{"$f":"+Habillement!J14","v":"NC"},{"$f":"+'Réserve groupement'!J14","v":"NC"},{"$f":"+Pharmacie!J14","v":"NC"},{"$f":"+Batiment!J14","v":"NC"},{"$f":"+Cyno!J14","v":"NC"},null,{"$error":"#DIV/0!"},0]
[null,"Risques routiers-Conduite d'engins",{"$f":"+Direction!F15","v":"NC"},{"$f":"+Direction!I15","v":"NC"},{"$f":"+Direction!J15","v":"NC"},{"$f":"Secrétariat!$F15","v":"NC"},{"$f":"Secrétariat!$I15","v":"NC"},{"$f":"+Secrétariat!J15","v":"NC"},{"$f":"+'Chaine de commandement'!F15","v":"NC"},{"$f":"+'Chaine de commandement'!I15","v":"NC"},{"$f":"+'Chaine de commandement'!J15","v":"NC"},{"$f":"'Services administratifs'!$F15","v":"NC"},{"$f":"'Services administratifs'!$I15","v":"NC"},{"$f":"+'Services administratifs'!J15","v":"NC"},{"$f":"STASS!$F15","v":"NC"},{"$f":"STASS!$I15","v":"NC"},{"$f":"+STASS!J15","v":"NC"},{"$f":"+'Vie collective'!F15","v":"NC"},{"$f":"+'Vie collective'!I15","v":"NC"},{"$f":"+'Vie collective'!J15","v":"NC"},{"$f":"+'Manœuvre et formation'!F15","v":0},{"$f":"+'Manœuvre et formation'!I15","v":"NC"},{"$f":"+'Manœuvre et formation'!J15","v":"NC"},{"$f":"+APS!F15","v":"NC"},{"$f":"+APS!I15","v":"NC"},{"$f":"+APS!J15","v":"NC"},{"$f":"+'Espace vert'!F15","v":"NC"},{"$f":"+'Espace vert'!J15","v":"NC"},{"$f":"+'Espace vert'!J15","v":"NC"},{"$f":"+Habillement!F15","v":"NC"},{"$f":"+Habillement!I15","v":"NC"},{"$f":"+Habillement!J15","v":"NC"},{"$f":"+'Réserve groupement'!J15","v":"NC"},{"$f":"+Pharmacie!J15","v":"NC"},{"$f":"+Batiment!J15","v":"NC"},{"$f":"+Cyno!J15","v":"NC"},null,{"$error":"#DIV/0!"},0]
[null,"Circulation piétonne",{"$f":"+Direction!F16","v":"NC"},{"$f":"+Direction!I16","v":"NC"},{"$f":"+Direction!J16","v":"NC"},{"$f":"Secrétariat!$F16","v":"NC"},{"$f":"Secrétariat!$I16","v":"NC"},{"$f":"+Secrétariat!J16","v":"NC"},{"$f":"+'Chaine de commandement'!F16","v":"NC"},{"$f":"+'Chaine de commandement'!I16","v":"NC"},{"$f":"+'Chaine de commandement'!J16","v":"NC"},{"$f":"'Services administratifs'!$F16","v":"NC"},{"$f":"'Services administratifs'!$I16","v":"NC"},{"$f":"+'Services administratifs'!J16","v":"NC"},{"$f":"STASS!$F16","v":"NC"},{"$f":"STASS!$I16","v":"NC"},{"$f":"+STASS!J16","v":"NC"},{"$f":"+'Vie collective'!F16","v":"NC"},{"$f":"+'Vie collective'!I16","v":"NC"},{"$f":"+'Vie collective'!J16","v":"NC"},{"$f":"+'Manœuvre et formation'!F16","v":0},{"$f":"+'Manœuvre et formation'!I16","v":"NC"},{"$f":"+'Manœuvre et formation'!J16","v":"NC"},{"$f":"+APS!F16","v":"NC"},{"$f":"+APS!I16","v":"NC"},{"$f":"+APS!J16","v":"NC"},{"$f":"+'Espace vert'!F16","v":"NC"},{"$f":"+'Espace vert'!J16","v":"NC"},{"$f":"+'Espace vert'!J16","v":"NC"},{"$f":"+Habillement!F16","v":"NC"},{"$f":"+Habillement!I16","v":"NC"},{"$f":"+Habillement!J16","v":"NC"},{"$f":"+'Réserve groupement'!J16","v":"NC"},{"$f":"+Pharmacie!J16","v":"NC"},{"$f":"+Batiment!J16","v":"NC"},{"$f":"+Cyno!J16","v":"NC"},null,{"$error":"#DIV/0!"},0]
[null,"Risques liés aux machines et outils         ",{"$f":"+Direction!F17","v":"NC"},{"$f":"+Direction!I17","v":"NC"},{"$f":"+Direction!J17","v":"NC"},{"$f":"Secrétariat!$F17","v":"NC"},{"$f":"Secrétariat!$I17","v":"NC"},{"$f":"+Secrétariat!J17","v":"NC"},{"$f":"+'Chaine de commandement'!F17","v":"NC"},{"$f":"+'Chaine de commandement'!I17","v":"NC"},{"$f":"+'Chaine de commandement'!J17","v":"NC"},{"$f":"'Services administratifs'!$F17","v":"NC"},{"$f":"'Services administratifs'!$I17","v":"NC"},{"$f":"+'Services administratifs'!J17","v":"NC"},{"$f":"STASS!$F17","v":"NC"},{"$f":"STASS!$I17","v":"NC"},{"$f":"+STASS!J17","v":"NC"},{"$f":"+'Vie collective'!F17","v":"NC"},{"$f":"+'Vie collective'!I17","v":"NC"},{"$f":"+'Vie collective'!J17","v":"NC"},{"$f":"+'Manœuvre et formation'!F17","v":0},{"$f":"+'Manœuvre et formation'!I17","v":"NC"},{"$f":"+'Manœuvre et formation'!J17","v":"NC"},{"$f":"+APS!F17","v":"NC"},{"$f":"+APS!I17","v":"NC"},{"$f":"+APS!J17","v":"NC"},{"$f":"+'Espace vert'!F17","v":"NC"},{"$f":"+'Espace vert'!J17","v":"NC"},{"$f":"+'Espace vert'!J17","v":"NC"},{"$f":"+Habillement!F17","v":"NC"},{"$f":"+Habillement!I17","v":"NC"},{"$f":"+Habillement!J17","v":"NC"},{"$f":"+'Réserve groupement'!J17","v":"NC"},{"$f":"+Pharmacie!J17","v":"NC"},{"$f":"+Batiment!J17","v":"NC"},{"$f":"+Cyno!J17","v":"NC"},null,{"$error":"#DIV/0!"},0]
[null,"Bruit",{"$f":"+Direction!F18","v":"NC"},{"$f":"+Direction!I18","v":"NC"},{"$f":"+Direction!J18","v":"NC"},{"$f":"Secrétariat!$F18","v":"NC"},{"$f":"Secrétariat!$I18","v":"NC"},{"$f":"+Secrétariat!J18","v":"NC"},{"$f":"+'Chaine de commandement'!F18","v":"NC"},{"$f":"+'Chaine de commandement'!I18","v":"NC"},{"$f":"+'Chaine de commandement'!J18","v":"NC"},{"$f":"'Services administratifs'!$F18","v":"NC"},{"$f":"'Services administratifs'!$I18","v":"NC"},{"$f":"+'Services administratifs'!J18","v":"NC"},{"$f":"STASS!$F18","v":"NC"},{"$f":"STASS!$I18","v":"NC"},{"$f":"+STASS!J18","v":"NC"},{"$f":"+'Vie collective'!F18","v":"NC"},{"$f":"+'Vie collective'!I18","v":"NC"},{"$f":"+'Vie collective'!J18","v":"NC"},{"$f":"+'Manœuvre et formation'!F18","v":0},{"$f":"+'Manœuvre et formation'!I18","v":"NC"},{"$f":"+'Manœuvre et formation'!J18","v":"NC"},{"$f":"+APS!F18","v":"NC"},{"$f":"+APS!I18","v":"NC"},{"$f":"+APS!J18","v":"NC"},{"$f":"+'Espace vert'!F18","v":"NC"},{"$f":"+'Espace vert'!J18","v":"NC"},{"$f":"+'Espace vert'!J18","v":"NC"},{"$f":"+Habillement!F18","v":"NC"},{"$f":"+Habillement!I18","v":"NC"},{"$f":"+Habillement!J18","v":"NC"},{"$f":"+'Réserve groupement'!J18","v":"NC"},{"$f":"+Pharmacie!J18","v":"NC"},{"$f":"+Batiment!J18","v":"NC"},{"$f":"+Cyno!J18","v":"NC"},null,{"$error":"#DIV/0!"},0]
[null,"Vibrations",{"$f":"+Direction!F19","v":"NC"},{"$f":"+Direction!I19","v":"NC"},{"$f":"+Direction!J19","v":"NC"},{"$f":"Secrétariat!$F19","v":"NC"},{"$f":"Secrétariat!$I19","v":"NC"},{"$f":"+Secrétariat!J19","v":"NC"},{"$f":"+'Chaine de commandement'!F19","v":"NC"},{"$f":"+'Chaine de commandement'!I19","v":"NC"},{"$f":"+'Chaine de commandement'!J19","v":"NC"},{"$f":"'Services administratifs'!$F19","v":"NC"},{"$f":"'Services administratifs'!$I19","v":"NC"},{"$f":"+'Services administratifs'!J19","v":"NC"},{"$f":"STASS!$F19","v":"NC"},{"$f":"STASS!$I19","v":"NC"},{"$f":"+STASS!J19","v":"NC"},{"$f":"+'Vie collective'!F19","v":"NC"},{"$f":"+'Vie collective'!I19","v":"NC"},{"$f":"+'Vie collective'!J19","v":"NC"},{"$f":"+'Manœuvre et formation'!F19","v":0},{"$f":"+'Manœuvre et formation'!I19","v":"NC"},{"$f":"+'Manœuvre et formation'!J19","v":"NC"},{"$f":"+APS!F19","v":"NC"},{"$f":"+APS!I19","v":"NC"},{"$f":"+APS!J19","v":"NC"},{"$f":"+'Espace vert'!F19","v":"NC"},{"$f":"+'Espace vert'!J19","v":"NC"},{"$f":"+'Espace vert'!J19","v":"NC"},{"$f":"+Habillement!F19","v":"NC"},{"$f":"+Habillement!I19","v":"NC"},{"$f":"+Habillement!J19","v":"NC"},{"$f":"+'Réserve groupement'!J19","v":"NC"},{"$f":"+Pharmacie!J19","v":"NC"},{"$f":"+Batiment!J19","v":"NC"},{"$f":"+Cyno!J19","v":"NC"},null,{"$error":"#DIV/0!"},0]
[null,"Risque chimique",{"$f":"+Direction!F20","v":"NC"},{"$f":"+Direction!I20","v":"NC"},{"$f":"+Direction!J20","v":"NC"},{"$f":"Secrétariat!$F20","v":"NC"},{"$f":"Secrétariat!$I20","v":"NC"},{"$f":"+Secrétariat!J20","v":"NC"},{"$f":"+'Chaine de commandement'!F20","v":"NC"},{"$f":"+'Chaine de commandement'!I20","v":"NC"},{"$f":"+'Chaine de commandement'!J20","v":"NC"},{"$f":"'Services administratifs'!$F20","v":"NC"},{"$f":"'Services administratifs'!$I20","v":"NC"},{"$f":"+'Services administratifs'!J20","v":"NC"},{"$f":"STASS!$F20","v":0},{"$f":"STASS!$I20","v":"NC"},{"$f":"+STASS!J20","v":"NC"},{"$f":"+'Vie collective'!F20","v":"NC"},{"$f":"+'Vie collective'!I20","v":"NC"},{"$f":"+'Vie collective'!J20","v":"NC"},{"$f":"+'Manœuvre et formation'!F20","v":0},{"$f":"+'Manœuvre et formation'!I20","v":"NC"},{"$f":"+'Manœuvre et formation'!J20","v":"NC"},{"$f":"+APS!F20","v":"NC"},{"$f":"+APS!I20","v":"NC"},{"$f":"+APS!J20","v":"NC"},{"$f":"+'Espace vert'!F20","v":"NC"},{"$f":"+'Espace vert'!J20","v":"NC"},{"$f":"+'Espace vert'!J20","v":"NC"},{"$f":"+Habillement!F20","v":"NC"},{"$f":"+Habillement!I20","v":"NC"},{"$f":"+Habillement!J20","v":"NC"},{"$f":"+'Réserve groupement'!J20","v":"NC"},{"$f":"+Pharmacie!J20","v":"NC"},{"$f":"+Batiment!J20","v":"NC"},{"$f":"+Cyno!J20","v":"NC"},null,{"$error":"#DIV/0!"},0]
[null,"Amiante",{"$f":"+Direction!F21","v":"NC"},{"$f":"+Direction!I21","v":"NC"},{"$f":"+Direction!J21","v":"NC"},{"$f":"Secrétariat!$F21","v":"NC"},{"$f":"Secrétariat!$I21","v":"NC"},{"$f":"+Secrétariat!J21","v":"NC"},{"$f":"+'Chaine de commandement'!F21","v":"NC"},{"$f":"+'Chaine de commandement'!I21","v":"NC"},{"$f":"+'Chaine de commandement'!J21","v":"NC"},{"$f":"'Services administratifs'!$F21","v":"NC"},{"$f":"'Services administratifs'!$I21","v":"NC"},{"$f":"+'Services administratifs'!J21","v":"NC"},{"$f":"STASS!$F21","v":"NC"},{"$f":"STASS!$I21","v":"NC"},{"$f":"+STASS!J21","v":"NC"},{"$f":"+'Vie collective'!F21","v":"NC"},{"$f":"+'Vie collective'!I21","v":"NC"},{"$f":"+'Vie collective'!J21","v":"NC"},{"$f":"+'Manœuvre et formation'!F21","v":0},{"$f":"+'Manœuvre et formation'!I21","v":"NC"},{"$f":"+'Manœuvre et formation'!J21","v":"NC"},{"$f":"+APS!F21","v":"NC"},{"$f":"+APS!I21","v":"NC"},{"$f":"+APS!J21","v":"NC"},{"$f":"+'Espace vert'!F21","v":"NC"},{"$f":"+'Espace vert'!J21","v":"NC"},{"$f":"+'Espace vert'!J21","v":"NC"},{"$f":"+Habillement!F21","v":"NC"},{"$f":"+Habillement!I21","v":"NC"},{"$f":"+Habillement!J21","v":"NC"},{"$f":"+'Réserve groupement'!J21","v":"NC"},{"$f":"+Pharmacie!J21","v":"NC"},{"$f":"+Batiment!J21","v":"NC"},{"$f":"+Cyno!J21","v":"NC"},null,{"$error":"#DIV/0!"},0]
[null,"Aération et assainissement de l'air",{"$f":"+Direction!F22","v":"NC"},{"$f":"+Direction!I22","v":"NC"},{"$f":"+Direction!J22","v":"NC"},{"$f":"Secrétariat!$F22","v":"NC"},{"$f":"Secrétariat!$I22","v":"NC"},{"$f":"+Secrétariat!J22","v":"NC"},{"$f":"+'Chaine de commandement'!F22","v":"NC"},{"$f":"+'Chaine de commandement'!I22","v":"NC"},{"$f":"+'Chaine de commandement'!J22","v":"NC"},{"$f":"'Services administratifs'!$F22","v":"NC"},{"$f":"'Services administratifs'!$I22","v":"NC"},{"$f":"+'Services administratifs'!J22","v":"NC"},{"$f":"STASS!$F22","v":"NC"},{"$f":"STASS!$I22","v":"NC"},{"$f":"+STASS!J22","v":"NC"},{"$f":"+'Vie collective'!F22","v":"NC"},{"$f":"+'Vie collective'!I22","v":"NC"},{"$f":"+'Vie collective'!J22","v":"NC"},{"$f":"+'Manœuvre et formation'!F22","v":0},{"$f":"+'Manœuvre et formation'!I22","v":"NC"},{"$f":"+'Manœuvre et formation'!J22","v":"NC"},{"$f":"+APS!F22","v":"NC"},{"$f":"+APS!I22","v":"NC"},{"$f":"+APS!J22","v":"NC"},{"$f":"+'Espace vert'!F22","v":"NC"},{"$f":"+'Espace vert'!J22","v":"NC"},{"$f":"+'Espace vert'!J22","v":"NC"},{"$f":"+Habillement!F22","v":"NC"},{"$f":"+Habillement!I22","v":"NC"},{"$f":"+Habillement!J22","v":"NC"},{"$f":"+'Réserve groupement'!J22","v":"NC"},{"$f":"+Pharmacie!J22","v":"NC"},{"$f":"+Batiment!J22","v":"NC"},{"$f":"+Cyno!J22","v":"NC"},null,{"$error":"#DIV/0!"},0]
[null,"Risque électrique",{"$f":"+Direction!F23","v":"NC"},{"$f":"+Direction!I23","v":"NC"},{"$f":"+Direction!J23","v":"NC"},{"$f":"Secrétariat!$F23","v":"NC"},{"$f":"Secrétariat!$I23","v":"NC"},{"$f":"+Secrétariat!J23","v":"NC"},{"$f":"+'Chaine de commandement'!F23","v":"NC"},{"$f":"+'Chaine de commandement'!I23","v":"NC"},{"$f":"+'Chaine de commandement'!J23","v":"NC"},{"$f":"'Services administratifs'!$F23","v":"NC"},{"$f":"'Services administratifs'!$I23","v":"NC"},{"$f":"+'Services administratifs'!J23","v":"NC"},{"$f":"STASS!$F23","v":"NC"},{"$f":"STASS!$I23","v":"NC"},{"$f":"+STASS!J23","v":"NC"},{"$f":"+'Vie collective'!F23","v":"NC"},{"$f":"+'Vie collective'!I23","v":"NC"},{"$f":"+'Vie collective'!J23","v":"NC"},{"$f":"+'Manœuvre et formation'!F23","v":0},{"$f":"+'Manœuvre et formation'!I23","v":"NC"},{"$f":"+'Manœuvre et formation'!J23","v":"NC"},{"$f":"+APS!F23","v":"NC"},{"$f":"+APS!I23","v":"NC"},{"$f":"+APS!J23","v":"NC"},{"$f":"+'Espace vert'!F23","v":"NC"},{"$f":"+'Espace vert'!J23","v":"NC"},{"$f":"+'Espace vert'!J23","v":"NC"},{"$f":"+Habillement!F23","v":"NC"},{"$f":"+Habillement!I23","v":"NC"},{"$f":"+Habillement!J23","v":"NC"},{"$f":"+'Réserve groupement'!J23","v":"NC"},{"$f":"+Pharmacie!J23","v":"NC"},{"$f":"+Batiment!J23","v":"NC"},{"$f":"+Cyno!J23","v":"NC"},null,{"$error":"#DIV/0!"},0]
[null,"Incendie  explosion",{"$f":"+Direction!F24","v":"NC"},{"$f":"+Direction!I24","v":"NC"},{"$f":"+Direction!J24","v":"NC"},{"$f":"Secrétariat!$F24","v":"NC"},{"$f":"Secrétariat!$I24","v":"NC"},{"$f":"+Secrétariat!J24","v":"NC"},{"$f":"+'Chaine de commandement'!F24","v":"NC"},{"$f":"+'Chaine de commandement'!I24","v":"NC"},{"$f":"+'Chaine de commandement'!J24","v":"NC"},{"$f":"'Services administratifs'!$F24","v":"NC"},{"$f":"'Services administratifs'!$I24","v":"NC"},{"$f":"+'Services administratifs'!J24","v":"NC"},{"$f":"STASS!$F24","v":"NC"},{"$f":"STASS!$I24","v":"NC"},{"$f":"+STASS!J24","v":"NC"},{"$f":"+'Vie collective'!F24","v":"NC"},{"$f":"+'Vie collective'!I24","v":"NC"},{"$f":"+'Vie collective'!J24","v":"NC"},{"$f":"+'Manœuvre et formation'!F24","v":0},{"$f":"+'Manœuvre et formation'!I24","v":"NC"},{"$f":"+'Manœuvre et formation'!J24","v":"NC"},{"$f":"+APS!F24","v":"NC"},{"$f":"+APS!I24","v":"NC"},{"$f":"+APS!J24","v":"NC"},{"$f":"+'Espace vert'!F24","v":"NC"},{"$f":"+'Espace vert'!J24","v":"NC"},{"$f":"+'Espace vert'!J24","v":"NC"},{"$f":"+Habillement!F24","v":"NC"},{"$f":"+Habillement!I24","v":"NC"},{"$f":"+Habillement!J24","v":"NC"},{"$f":"+'Réserve groupement'!J24","v":"NC"},{"$f":"+Pharmacie!J24","v":"NC"},{"$f":"+Batiment!J24","v":"NC"},{"$f":"+Cyno!J24","v":"NC"},null,{"$error":"#DIV/0!"},0]
[null,"Risques liés à l'éclairage",{"$f":"+Direction!F25","v":"NC"},{"$f":"+Direction!I25","v":"NC"},{"$f":"+Direction!J25","v":"NC"},{"$f":"Secrétariat!$F25","v":"NC"},{"$f":"Secrétariat!$I25","v":"NC"},{"$f":"+Secrétariat!J25","v":"NC"},{"$f":"+'Chaine de commandement'!F25","v":"NC"},{"$f":"+'Chaine de commandement'!I25","v":"NC"},{"$f":"+'Chaine de commandement'!J25","v":"NC"},{"$f":"'Services administratifs'!$F25","v":"NC"},{"$f":"'Services administratifs'!$I25","v":"NC"},{"$f":"+'Services administratifs'!J25","v":"NC"},{"$f":"STASS!$F25","v":"NC"},{"$f":"STASS!$I25","v":"NC"},{"$f":"+STASS!J25","v":"NC"},{"$f":"+'Vie collective'!F25","v":"NC"},{"$f":"+'Vie collective'!I25","v":"NC"},{"$f":"+'Vie collective'!J25","v":"NC"},{"$f":"+'Manœuvre et formation'!F25","v":0},{"$f":"+'Manœuvre et formation'!I25","v":"NC"},{"$f":"+'Manœuvre et formation'!J25","v":"NC"},{"$f":"+APS!F25","v":"NC"},{"$f":"+APS!I25","v":"NC"},{"$f":"+APS!J25","v":"NC"},{"$f":"+'Espace vert'!F25","v":"NC"},{"$f":"+'Espace vert'!J25","v":"NC"},{"$f":"+'Espace vert'!J25","v":"NC"},{"$f":"+Habillement!F25","v":"NC"},{"$f":"+Habillement!I25","v":"NC"},{"$f":"+Habillement!J25","v":"NC"},{"$f":"+'Réserve groupement'!J25","v":"NC"},{"$f":"+Pharmacie!J25","v":"NC"},{"$f":"+Batiment!J25","v":"NC"},{"$f":"+Cyno!J25","v":"NC"},null,{"$error":"#DIV/0!"},0]
[null,"Utilisation d'écran",{"$f":"+Direction!F26","v":"NC"},{"$f":"+Direction!I26","v":"NC"},{"$f":"+Direction!J26","v":"NC"},{"$f":"Secrétariat!$F26","v":"NC"},{"$f":"Secrétariat!$I26","v":"NC"},{"$f":"+Secrétariat!J26","v":"NC"},{"$f":"+'Chaine de commandement'!F26","v":"NC"},{"$f":"+'Chaine de commandement'!I26","v":"NC"},{"$f":"+'Chaine de commandement'!J26","v":"NC"},{"$f":"'Services administratifs'!$F26","v":"NC"},{"$f":"'Services administratifs'!$I26","v":"NC"},{"$f":"+'Services administratifs'!J26","v":"NC"},{"$f":"STASS!$F26","v":"NC"},{"$f":"STASS!$I26","v":"NC"},{"$f":"+STASS!J26","v":"NC"},{"$f":"+'Vie collective'!F26","v":"NC"},{"$f":"+'Vie collective'!I26","v":"NC"},{"$f":"+'Vie collective'!J26","v":"NC"},{"$f":"+'Manœuvre et formation'!F26","v":0},{"$f":"+'Manœuvre et formation'!I26","v":"NC"},{"$f":"+'Manœuvre et formation'!J26","v":"NC"},{"$f":"+APS!F26","v":"NC"},{"$f":"+APS!I26","v":"NC"},{"$f":"+APS!J26","v":"NC"},{"$f":"+'Espace vert'!F26","v":"NC"},{"$f":"+'Espace vert'!J26","v":"NC"},{"$f":"+'Espace vert'!J26","v":"NC"},{"$f":"+Habillement!F26","v":"NC"},{"$f":"+Habillement!I26","v":"NC"},{"$f":"+Habillement!J26","v":"NC"},{"$f":"+'Réserve groupement'!J26","v":"NC"},{"$f":"+Pharmacie!J26","v":"NC"},{"$f":"+Batiment!J26","v":"NC"},{"$f":"+Cyno!J26","v":"NC"},null,{"$error":"#DIV/0!"},0]
[null,"Risques liés aux ambiances climatiques  thermiques",{"$f":"+Direction!F27","v":"NC"},{"$f":"+Direction!I27","v":"NC"},{"$f":"+Direction!J27","v":"NC"},{"$f":"Secrétariat!$F27","v":"NC"},{"$f":"Secrétariat!$I27","v":"NC"},{"$f":"+Secrétariat!J27","v":"NC"},{"$f":"+'Chaine de commandement'!F27","v":"NC"},{"$f":"+'Chaine de commandement'!I27","v":"NC"},{"$f":"+'Chaine de commandement'!J27","v":"NC"},{"$f":"'Services administratifs'!$F27","v":"NC"},{"$f":"'Services administratifs'!$I27","v":"NC"},{"$f":"+'Services administratifs'!J27","v":"NC"},{"$f":"STASS!$F27","v":"NC"},{"$f":"STASS!$I27","v":"NC"},{"$f":"+STASS!J27","v":"NC"},{"$f":"+'Vie collective'!F27","v":"NC"},{"$f":"+'Vie collective'!I27","v":"NC"},{"$f":"+'Vie collective'!J27","v":"NC"},{"$f":"+'Manœuvre et formation'!F27","v":0},{"$f":"+'Manœuvre et formation'!I27","v":"NC"},{"$f":"+'Manœuvre et formation'!J27","v":"NC"},{"$f":"+APS!F27","v":"NC"},{"$f":"+APS!I27","v":"NC"},{"$f":"+APS!J27","v":"NC"},{"$f":"+'Espace vert'!F27","v":"NC"},{"$f":"+'Espace vert'!J27","v":"NC"},{"$f":"+'Espace vert'!J27","v":"NC"},{"$f":"+Habillement!F27","v":"NC"},{"$f":"+Habillement!I27","v":"NC"},{"$f":"+Habillement!J27","v":"NC"},{"$f":"+'Réserve groupement'!J27","v":"NC"},{"$f":"+Pharmacie!J27","v":"NC"},{"$f":"+Batiment!J27","v":"NC"},{"$f":"+Cyno!J27","v":"NC"},null,{"$error":"#DIV/0!"},0]
[null,"Risque biologique",{"$f":"+Direction!F28","v":"NC"},{"$f":"+Direction!I28","v":"NC"},{"$f":"+Direction!J28","v":"NC"},{"$f":"Secrétariat!$F28","v":"NC"},{"$f":"Secrétariat!$I28","v":"NC"},{"$f":"+Secrétariat!J28","v":"NC"},{"$f":"+'Chaine de commandement'!F28","v":"NC"},{"$f":"+'Chaine de commandement'!I28","v":"NC"},{"$f":"+'Chaine de commandement'!J28","v":"NC"},{"$f":"'Services administratifs'!$F28","v":"NC"},{"$f":"'Services administratifs'!$I28","v":"NC"},{"$f":"+'Services administratifs'!J28","v":"NC"},{"$f":"STASS!$F28","v":"NC"},{"$f":"STASS!$I28","v":"NC"},{"$f":"+STASS!J28","v":"NC"},{"$f":"+'Vie collective'!F28","v":"NC"},{"$f":"+'Vie collective'!I28","v":"NC"},{"$f":"+'Vie collective'!J28","v":"NC"},{"$f":"+'Manœuvre et formation'!F28","v":0},{"$f":"+'Manœuvre et formation'!I28","v":"NC"},{"$f":"+'Manœuvre et formation'!J28","v":"NC"},{"$f":"+APS!F28","v":"NC"},{"$f":"+APS!I28","v":"NC"},{"$f":"+APS!J28","v":"NC"},{"$f":"+'Espace vert'!F28","v":"NC"},{"$f":"+'Espace vert'!J28","v":"NC"},{"$f":"+'Espace vert'!J28","v":"NC"},{"$f":"+Habillement!F28","v":"NC"},{"$f":"+Habillement!I28","v":"NC"},{"$f":"+Habillement!J28","v":"NC"},{"$f":"+'Réserve groupement'!J28","v":"NC"},{"$f":"+Pharmacie!J28","v":"NC"},{"$f":"+Batiment!J28","v":"NC"},{"$f":"+Cyno!J28","v":"NC"},null,{"$error":"#DIV/0!"},0]
[null,"Manque d'hygiéne",{"$f":"+Direction!F29","v":"NC"},{"$f":"+Direction!I29","v":"NC"},{"$f":"+Direction!J29","v":"NC"},{"$f":"Secrétariat!$F29","v":"NC"},{"$f":"Secrétariat!$I29","v":"NC"},{"$f":"+Secrétariat!J29","v":"NC"},{"$f":"+'Chaine de commandement'!F29","v":"NC"},{"$f":"+'Chaine de commandement'!I29","v":"NC"},{"$f":"+'Chaine de commandement'!J29","v":"NC"},{"$f":"'Services administratifs'!$F29","v":"NC"},{"$f":"'Services administratifs'!$I29","v":"NC"},{"$f":"+'Services administratifs'!J29","v":"NC"},{"$f":"STASS!$F29","v":"NC"},{"$f":"STASS!$I29","v":"NC"},{"$f":"+STASS!J29","v":"NC"},{"$f":"+'Vie collective'!F29","v":"NC"},{"$f":"+'Vie collective'!I29","v":"NC"},{"$f":"+'Vie collective'!J29","v":"NC"},{"$f":"+'Manœuvre et formation'!F29","v":0},{"$f":"+'Manœuvre et formation'!I29","v":"NC"},{"$f":"+'Manœuvre et formation'!J29","v":"NC"},{"$f":"+APS!F29","v":"NC"},{"$f":"+APS!I29","v":"NC"},{"$f":"+APS!J29","v":"NC"},{"$f":"+'Espace vert'!F29","v":"NC"},{"$f":"+'Espace vert'!J29","v":"NC"},{"$f":"+'Espace vert'!J29","v":"NC"},{"$f":"+Habillement!F29","v":"NC"},{"$f":"+Habillement!I29","v":"NC"},{"$f":"+Habillement!J29","v":"NC"},{"$f":"+'Réserve groupement'!J29","v":"NC"},{"$f":"+Pharmacie!J29","v":"NC"},{"$f":"+Batiment!J29","v":"NC"},{"$f":"+Cyno!J29","v":"NC"},null,{"$error":"#DIV/0!"},0]
[null,"Rayonnement",{"$f":"+Direction!F30","v":"NC"},{"$f":"+Direction!I30","v":"NC"},{"$f":"+Direction!J30","v":"NC"},{"$f":"Secrétariat!$F30","v":"NC"},{"$f":"Secrétariat!$I30","v":"NC"},{"$f":"+Secrétariat!J30","v":"NC"},{"$f":"+'Chaine de commandement'!F30","v":"NC"},{"$f":"+'Chaine de commandement'!I30","v":"NC"},{"$f":"+'Chaine de commandement'!J30","v":"NC"},{"$f":"'Services administratifs'!$F30","v":"NC"},{"$f":"'Services administratifs'!$I30","v":"NC"},{"$f":"+'Services administratifs'!J30","v":"NC"},{"$f":"STASS!$F30","v":"NC"},{"$f":"STASS!$I30","v":"NC"},{"$f":"+STASS!J30","v":"NC"},{"$f":"+'Vie collective'!F30","v":"NC"},{"$f":"+'Vie collective'!I30","v":"NC"},{"$f":"+'Vie collective'!J30","v":"NC"},{"$f":"+'Manœuvre et formation'!F30","v":0},{"$f":"+'Manœuvre et formation'!I30","v":"NC"},{"$f":"+'Manœuvre et formation'!J30","v":"NC"},{"$f":"+APS!F30","v":"NC"},{"$f":"+APS!I30","v":"NC"},{"$f":"+APS!J30","v":"NC"},{"$f":"+'Espace vert'!F30","v":"NC"},{"$f":"+'Espace vert'!J30","v":"NC"},{"$f":"+'Espace vert'!J30","v":"NC"},{"$f":"+Habillement!F30","v":"NC"},{"$f":"+Habillement!I30","v":"NC"},{"$f":"+Habillement!J30","v":"NC"},{"$f":"+'Réserve groupement'!J30","v":"NC"},{"$f":"+Pharmacie!J30","v":"NC"},{"$f":"+Batiment!J30","v":"NC"},{"$f":"+Cyno!J30","v":"NC"},null,{"$error":"#DIV/0!"},0]
[null,"Entreprises extérieures",{"$f":"+Direction!F31","v":"NC"},{"$f":"+Direction!I31","v":"NC"},{"$f":"+Direction!J31","v":"NC"},{"$f":"Secrétariat!$F31","v":"NC"},{"$f":"Secrétariat!$I31","v":"NC"},{"$f":"+Secrétariat!J31","v":"NC"},{"$f":"+'Chaine de commandement'!F31","v":"NC"},{"$f":"+'Chaine de commandement'!I31","v":"NC"},{"$f":"+'Chaine de commandement'!J31","v":"NC"},{"$f":"'Services administratifs'!$F31","v":"NC"},{"$f":"'Services administratifs'!$I31","v":"NC"},{"$f":"+'Services administratifs'!J31","v":"NC"},{"$f":"STASS!$F31","v":"NC"},{"$f":"STASS!$I31","v":"NC"},{"$f":"+STASS!J31","v":"NC"},{"$f":"+'Vie collective'!F31","v":"NC"},{"$f":"+'Vie collective'!I31","v":"NC"},{"$f":"+'Vie collective'!J31","v":"NC"},{"$f":"+'Manœuvre et formation'!F31","v":0},{"$f":"+'Manœuvre et formation'!I31","v":"NC"},{"$f":"+'Manœuvre et formation'!J31","v":"NC"},{"$f":"+APS!F31","v":"NC"},{"$f":"+APS!I31","v":"NC"},{"$f":"+APS!J31","v":"NC"},{"$f":"+'Espace vert'!F31","v":"NC"},{"$f":"+'Espace vert'!J31","v":"NC"},{"$f":"+'Espace vert'!J31","v":"NC"},{"$f":"+Habillement!F31","v":"NC"},{"$f":"+Habillement!I31","v":"NC"},{"$f":"+Habillement!J31","v":"NC"},{"$f":"+'Réserve groupement'!J31","v":"NC"},{"$f":"+Pharmacie!J31","v":"NC"},{"$f":"+Batiment!J31","v":"NC"},{"$f":"+Cyno!J31","v":"NC"},null,{"$error":"#DIV/0!"},0]
[null,"Agressions",{"$f":"+Direction!F32","v":"NC"},{"$f":"+Direction!I32","v":"NC"},{"$f":"+Direction!J32","v":"NC"},{"$f":"Secrétariat!$F32","v":"NC"},{"$f":"Secrétariat!$I32","v":"NC"},{"$f":"+Secrétariat!J32","v":"NC"},{"$f":"+'Chaine de commandement'!F32","v":"NC"},{"$f":"+'Chaine de commandement'!I32","v":"NC"},{"$f":"+'Chaine de commandement'!J32","v":"NC"},{"$f":"'Services administratifs'!$F32","v":"NC"},{"$f":"'Services administratifs'!$I32","v":"NC"},{"$f":"+'Services administratifs'!J32","v":"NC"},{"$f":"STASS!$F32","v":"NC"},{"$f":"STASS!$I32","v":"NC"},{"$f":"+STASS!J32","v":"NC"},{"$f":"+'Vie collective'!F32","v":"NC"},{"$f":"+'Vie collective'!I32","v":"NC"},{"$f":"+'Vie collective'!J32","v":"NC"},{"$f":"+'Manœuvre et formation'!F32","v":0},{"$f":"+'Manœuvre et formation'!I32","v":"NC"},{"$f":"+'Manœuvre et formation'!J32","v":"NC"},{"$f":"+APS!F32","v":"NC"},{"$f":"+APS!I32","v":"NC"},{"$f":"+APS!J32","v":"NC"},{"$f":"+'Espace vert'!F32","v":"NC"},{"$f":"+'Espace vert'!J32","v":"NC"},{"$f":"+'Espace vert'!J32","v":"NC"},{"$f":"+Habillement!F32","v":"NC"},{"$f":"+Habillement!I32","v":"NC"},{"$f":"+Habillement!J32","v":"NC"},{"$f":"+'Réserve groupement'!J32","v":"NC"},{"$f":"+Pharmacie!J32","v":"NC"},{"$f":"+Batiment!J32","v":"NC"},{"$f":"+Cyno!J32","v":"NC"},null,{"$error":"#DIV/0!"},0]
[null,"Risques psychosociaux",{"$f":"+Direction!F33","v":"NC"},{"$f":"+Direction!I33","v":"NC"},{"$f":"+Direction!J33","v":"NC"},{"$f":"Secrétariat!$F33","v":"NC"},{"$f":"Secrétariat!$I33","v":"NC"},{"$f":"+Secrétariat!J33","v":"NC"},{"$f":"+'Chaine de commandement'!F33","v":"NC"},{"$f":"+'Chaine de commandement'!I33","v":"NC"},{"$f":"+'Chaine de commandement'!J33","v":"NC"},{"$f":"'Services administratifs'!$F33","v":"NC"},{"$f":"'Services administratifs'!$I33","v":"NC"},{"$f":"+'Services administratifs'!J33","v":"NC"},{"$f":"STASS!$F33","v":0},{"$f":"STASS!$I33","v":"NC"},{"$f":"+STASS!J33","v":"NC"},{"$f":"+'Vie collective'!F33","v":"NC"},{"$f":"+'Vie collective'!I33","v":"NC"},{"$f":"+'Vie collective'!J33","v":"NC"},{"$f":"+'Manœuvre et formation'!F33","v":"NC"},{"$f":"+'Manœuvre et formation'!I33","v":"NC"},{"$f":"+'Manœuvre et formation'!J33","v":"NC"},{"$f":"+APS!F33","v":"NC"},{"$f":"+APS!I33","v":"NC"},{"$f":"+APS!J33","v":"NC"},{"$f":"+'Espace vert'!F33","v":"NC"},{"$f":"+'Espace vert'!J33","v":"NC"},{"$f":"+'Espace vert'!J33","v":"NC"},{"$f":"+Habillement!F33","v":"NC"},{"$f":"+Habillement!I33","v":"NC"},{"$f":"+Habillement!J33","v":"NC"},{"$f":"+'Réserve groupement'!J33","v":"NC"},{"$f":"+Pharmacie!J33","v":"NC"},{"$f":"+Batiment!J33","v":"NC"},{"$f":"+Cyno!J33","v":"NC"},null,{"$error":"#DIV/0!"},0]
[null,"Moyenne de l'UT",null,null,{"$f":"AVERAGE(E5:E28)","v":{"$error":"#DIV/0!"}},{"$f":"AVERAGE(F5:F28)","v":4},{"$error":"#DIV/0!"},{"$error":"#DIV/0!"},{"$f":"AVERAGE(I5:I28)","v":4},{"$f":"AVERAGE(J5:J28)","v":{"$error":"#DIV/0!"}},{"$f":"AVERAGE(K5:K28)","v":{"$error":"#DIV/0!"}},{"$f":"AVERAGE(L5:L28)","v":4},{"$f":"AVERAGE(M5:M28)","v":{"$error":"#DIV/0!"}},{"$error":"#DIV/0!"},1.3333333333333333,{"$error":"#DIV/0!"},{"$error":"#DIV/0!"},{"$f":"AVERAGE(R5:R28)","v":{"$error":"#DIV/0!"}},{"$error":"#DIV/0!"},{"$error":"#DIV/0!"},0,{"$error":"#DIV/0!"},{"$error":"#DIV/0!"},{"$error":"#DIV/0!"},{"$error":"#DIV/0!"},{"$error":"#DIV/0!"},{"$error":"#DIV/0!"},{"$error":"#DIV/0!"},{"$error":"#DIV/0!"},{"$error":"#DIV/0!"},{"$error":"#DIV/0!"},{"$error":"#DIV/0!"},{"$f":"AVERAGE(AG5:AG28)","v":{"$error":"#DIV/0!"}},{"$error":"#DIV/0!"},{"$error":"#DIV/0!"},{"$error":"#DIV/0!"},null,{"$f":"+AVERAGE(AL5:AL28)","v":{"$error":"#DIV/0!"}},{"$f":"AVERAGE(AM5:AM28)","v":0}]
[null,"Somme  de l'UT",null,null,{"$f":"SUM(E6:E28)","v":0},4,0,0,4,0,0,4,0,0,4,0,0,0,0,0,0,0,0,0,0,0,0,0,0,0,0,0,{"$f":"SUM(AG6:AG28)","v":0},0,0,0,null,{"$f":"+SUM(AL5:AL28)","v":{"$error":"#DIV/0!"}},{"$f":"+SUM(AM5:AM28)","v":0}]

{"sheet":"Plan d'Action","index":23,"n_rows":247,"n_cols":11,"rows_kept":247,"cut":false,"hidden":false,"merged":[[4,0,4,1],[4,4,4,6],[0,0,0,10],[1,0,1,1],[2,0,2,1],[3,0,3,1],[1,4,1,6],[2,4,2,6],[3,4,3,6]]}
["5. PROPOSITION d'un PLAN D'ACTIONS"]
["Date de rédaction:"]
["date de mise à jour:"]
["Rédacteur:",null,null,null,"(Préventeur cdg63 )"]
["Participants:"]
[]
["Risque","Unité de travail","G * M","D * E","Note","Problème(s) énoncé(s)","Solution(s) proposée(s)","Coût ( € )","Délais","Pilote de l'action","Etat d'avancement"]
[{"$f":"+Direction!A10","v":"Chute de plain pied"},{"$f":"+Direction!C$6","v":"Direction"},{"$f":"+'Grille évaluation'!C5","v":"NC"},{"$f":"+'Grille évaluation'!D5","v":"NC"},{"$f":"+'Grille évaluation'!E5","v":"NC"},{"$f":"+Direction!C10","v":0}]
[{"$f":"+Direction!A11","v":"Chute de hauteur"},{"$f":"+Direction!C$6","v":"Direction"},{"$f":"+'Grille évaluation'!C6","v":"NC"},{"$f":"+'Grille évaluation'!D6","v":"NC"},{"$f":"+'Grille évaluation'!E6","v":"NC"},{"$f":"+Direction!C11","v":0}]
[{"$f":"+Direction!A12","v":"Effondrement et chutes d'objets\n"},{"$f":"+Direction!C$6","v":"Direction"},{"$f":"+'Grille évaluation'!C7","v":"NC"},{"$f":"+'Grille évaluation'!D7","v":"NC"},{"$f":"+'Grille évaluation'!E7","v":"NC"},{"$f":"+Direction!C12","v":0}]
[{"$f":"+Direction!A13","v":"Manutention manuelle"},{"$f":"+Direction!C$6","v":"Direction"},{"$f":"+'Grille évaluation'!C8","v":"NC"},{"$f":"+'Grille évaluation'!D8","v":"NC"},{"$f":"+'Grille évaluation'!E8","v":"NC"},{"$f":"+Direction!C13","v":0}]
[{"$f":"+Direction!A14","v":"Ergonomie"},{"$f":"+Direction!C$6","v":"Direction"},{"$f":"+'Grille évaluation'!C9","v":"NC"},{"$f":"+'Grille évaluation'!D9","v":"NC"},{"$f":"+'Grille évaluation'!E9","v":"NC"},{"$f":"+Direction!C14","v":0}]
[{"$f":"+Direction!A15","v":"Risque Routier - Conduite d'engins"},{"$f":"+Direction!C$6","v":"Direction"},{"$f":"+'Grille évaluation'!C10","v":"NC"},{"$f":"+'Grille évaluation'!D10","v":"NC"},{"$f":"+'Grille évaluation'!E10","v":"NC"},{"$f":"+Direction!C15","v":0}]
[{"$f":"+Direction!A16","v":"Circulation piétonne"},{"$f":"+Direction!C$6","v":"Direction"},{"$f":"+'Grille évaluation'!C11","v":"NC"},{"$f":"+'Grille évaluation'!D11","v":"NC"},{"$f":"+'Grille évaluation'!E11","v":"NC"},{"$f":"+Direction!C16","v":0}]
[{"$f":"+Direction!A17","v":"Risques liés aux machines et outils"},{"$f":"+Direction!C$6","v":"Direction"},{"$f":"+'Grille évaluation'!C12","v":"NC"},{"$f":"+'Grille évaluation'!D12","v":"NC"},{"$f":"+'Grille évaluation'!E12","v":"NC"},{"$f":"+Direction!C17","v":0}]
[{"$f":"+Direction!A18","v":"Bruit"},{"$f":"+Direction!C$6","v":"Direction"},{"$f":"+'Grille évaluation'!C13","v":"NC"},{"$f":"+'Grille évaluation'!D13","v":"NC"},{"$f":"+'Grille évaluation'!E13","v":"NC"},{"$f":"+Direction!C18","v":0}]
[{"$f":"+Direction!A19","v":"Vibrations"},{"$f":"+Direction!C$6","v":"Direction"},{"$f":"+'Grille évaluation'!C14","v":"NC"},{"$f":"+'Grille évaluation'!D14","v":"NC"},{"$f":"+'Grille évaluation'!E14","v":"NC"},{"$f":"+Direction!C19","v":0}]
[{"$f":"+Direction!A20","v":"Risques chimiques"},{"$f":"+Direction!C$6","v":"Direction"},{"$f":"+'Grille évaluation'!C15","v":"NC"},{"$f":"+'Grille évaluation'!D15","v":"NC"},{"$f":"+'Grille évaluation'!E15","v":"NC"},{"$f":"+Direction!C20","v":0}]
[{"$f":"+Direction!A21","v":"Amiante"},{"$f":"+Direction!C$6","v":"Direction"},{"$f":"+'Grille évaluation'!C16","v":"NC"},{"$f":"+'Grille évaluation'!D16","v":"NC"},{"$f":"+'Grille évaluation'!E16","v":"NC"},{"$f":"+Direction!C21","v":0}]
[{"$f":"+Direction!A22","v":"Aération et assainissement de l'air"},{"$f":"+Direction!C$6","v":"Direction"},{"$f":"+'Grille évaluation'!C17","v":"NC"},{"$f":"+'Grille évaluation'!D17","v":"NC"},{"$f":"+'Grille évaluation'!E17","v":"NC"},{"$f":"+Direction!C22","v":0}]
[{"$f":"+Direction!A23","v":"Risque Electrique"},{"$f":"+Direction!C$6","v":"Direction"},{"$f":"+'Grille évaluation'!C18","v":"NC"},{"$f":"+'Grille évaluation'!D18","v":"NC"},{"$f":"+'Grille évaluation'!E18","v":"NC"},{"$f":"+Direction!C23","v":0}]
[{"$f":"+Direction!A24","v":"Incendie - Explosion"},{"$f":"+Direction!C$6","v":"Direction"},{"$f":"+'Grille évaluation'!C19","v":"NC"},{"$f":"+'Grille évaluation'!D19","v":"NC"},{"$f":"+'Grille évaluation'!E19","v":"NC"},{"$f":"+Direction!C24","v":0}]
[{"$f":"+Direction!A25","v":"Risques liés à l'éclairage"},{"$f":"+Direction!C$6","v":"Direction"},{"$f":"+'Grille évaluation'!C20","v":"NC"},{"$f":"+'Grille évaluation'!D20","v":"NC"},{"$f":"+'Grille évaluation'!E20","v":"NC"},{"$f":"+Direction!C25","v":0}]
[{"$f":"+Direction!A26","v":"Utilisation d'écran"},{"$f":"+Direction!C$6","v":"Direction"},{"$f":"+'Grille évaluation'!C21","v":"NC"},{"$f":"+'Grille évaluation'!D21","v":"NC"},{"$f":"+'Grille évaluation'!E21","v":"NC"},{"$f":"+Direction!C26","v":0}]
[{"$f":"+Direction!A27","v":"Risques liés aux ambiances climatiques et thermiques"},{"$f":"+Direction!C$6","v":"Direction"},{"$f":"+'Grille évaluation'!C22","v":"NC"},{"$f":"+'Grille évaluation'!D22","v":"NC"},{"$f":"+'Grille évaluation'!E22","v":"NC"},{"$f":"+Direction!C27","v":0}]
[{"$f":"+Direction!A28","v":"Risque biologique"},{"$f":"+Direction!C$6","v":"Direction"},{"$f":"+'Grille évaluation'!C23","v":"NC"},{"$f":"+'Grille évaluation'!D23","v":"NC"},{"$f":"+'Grille évaluation'!E23","v":"NC"},{"$f":"+Direction!C28","v":0}]
[{"$f":"+Direction!A29","v":"Manque d'hygiène"},{"$f":"+Direction!C$6","v":"Direction"},{"$f":"+'Grille évaluation'!C24","v":"NC"},{"$f":"+'Grille évaluation'!D24","v":"NC"},{"$f":"+'Grille évaluation'!E24","v":"NC"},{"$f":"+Direction!C29","v":0}]
[{"$f":"+Direction!A30","v":"Rayonnement"},{"$f":"+Direction!C$6","v":"Direction"},{"$f":"+'Grille évaluation'!C25","v":"NC"},{"$f":"+'Grille évaluation'!D25","v":"NC"},{"$f":"+'Grille évaluation'!E25","v":"NC"},{"$f":"+Direction!C30","v":0}]
[{"$f":"+Direction!A31","v":"Entreprises Extérieures"},{"$f":"+Direction!C$6","v":"Direction"},{"$f":"+'Grille évaluation'!C26","v":"NC"},{"$f":"+'Grille évaluation'!D26","v":"NC"},{"$f":"+'Grille évaluation'!E26","v":"NC"},{"$f":"+Direction!C31","v":0}]
[{"$f":"+Direction!A32","v":"Agressions"},{"$f":"+Direction!C$6","v":"Direction"},{"$f":"+'Grille évaluation'!C27","v":"NC"},{"$f":"+'Grille évaluation'!D27","v":"NC"},{"$f":"+'Grille évaluation'!E27","v":"NC"},{"$f":"+Direction!C32","v":0}]
[{"$f":"+Direction!A33","v":"Risques psychosociaux"},{"$f":"+Direction!C$6","v":"Direction"},{"$f":"+'Grille évaluation'!C28","v":"NC"},{"$f":"+'Grille évaluation'!D28","v":"NC"},{"$f":"+'Grille évaluation'!E28","v":"NC"},{"$f":"+Direction!C33","v":"Sur cette unité, les risques psychosociaux sont présents, les principales composantes à maitriser sont :\n1/ intensité du travail : \n-  ;\n2 / Emotionnel :\n- \n3 / Autonomie :\n- \n4 / Rapports sociaux :\n- \n5 / Conflits de Valeur :\n- \n6 / Insécurité de la situation de travail:\n-"}]
[{"$f":"+Secrétariat!A10","v":"Chute de plain pied"},{"$f":"+Secrétariat!C$6","v":"Secrétariat"},{"$f":"+'Grille évaluation'!F5","v":"NC"},{"$f":"+'Grille évaluation'!G5","v":"NC"},{"$f":"+'Grille évaluation'!H5","v":"NC"},{"$f":"+Secrétariat!C10","v":0}]
[{"$f":"+Secrétariat!A11","v":"Chute de hauteur"},{"$f":"+Secrétariat!C$6","v":"Secrétariat"},{"$f":"+'Grille évaluation'!F6","v":4},{"$f":"+'Grille évaluation'!G6","v":"NC"},{"$f":"+'Grille évaluation'!H6","v":"NC"},{"$f":"+Secrétariat!C11","v":0}]
[{"$f":"+Secrétariat!A12","v":"Effondrement et chutes d'objets\n"},{"$f":"+Secrétariat!C$6","v":"Secrétariat"},{"$f":"+'Grille évaluation'!F7","v":"NC"},{"$f":"+'Grille évaluation'!G7","v":"NC"},{"$f":"+'Grille évaluation'!H7","v":"NC"},{"$f":"+Secrétariat!C12","v":0}]
[{"$f":"+Secrétariat!A13","v":"Manutention manuelle"},{"$f":"+Secrétariat!C$6","v":"Secrétariat"},{"$f":"+'Grille évaluation'!F8","v":"NC"},{"$f":"+'Grille évaluation'!G8","v":"NC"},{"$f":"+'Grille évaluation'!H8","v":"NC"},{"$f":"+Secrétariat!C13","v":0}]
[{"$f":"+Secrétariat!A14","v":"Ergonomie"},{"$f":"+Secrétariat!C$6","v":"Secrétariat"},{"$f":"+'Grille évaluation'!F9","v":"NC"},{"$f":"+'Grille évaluation'!G9","v":"NC"},{"$f":"+'Grille évaluation'!H9","v":"NC"},{"$f":"+Secrétariat!C14","v":0}]
[{"$f":"+Secrétariat!A15","v":"Risque Routier - Conduite d'engins"},{"$f":"+Secrétariat!C$6","v":"Secrétariat"},{"$f":"+'Grille évaluation'!F10","v":"NC"},{"$f":"+'Grille évaluation'!G10","v":"NC"},{"$f":"+'Grille évaluation'!H10","v":"NC"},{"$f":"+Secrétariat!C15","v":0}]
[{"$f":"+Secrétariat!A16","v":"Circulation piétonne"},{"$f":"+Secrétariat!C$6","v":"Secrétariat"},{"$f":"+'Grille évaluation'!F11","v":"NC"},{"$f":"+'Grille évaluation'!G11","v":"NC"},{"$f":"+'Grille évaluation'!H11","v":"NC"},{"$f":"+Secrétariat!C16","v":0}]
[{"$f":"+Secrétariat!A17","v":"Risques liés aux machines et outils"},{"$f":"+Secrétariat!C$6","v":"Secrétariat"},{"$f":"+'Grille évaluation'!F12","v":"NC"},{"$f":"+'Grille évaluation'!G12","v":"NC"},{"$f":"+'Grille évaluation'!H12","v":"NC"},{"$f":"+Secrétariat!C17","v":0}]
[{"$f":"+Secrétariat!A18","v":"Bruit"},{"$f":"+Secrétariat!C$6","v":"Secrétariat"},{"$f":"+'Grille évaluation'!F13","v":"NC"},{"$f":"+'Grille évaluation'!G13","v":"NC"},{"$f":"+'Grille évaluation'!H13","v":"NC"},{"$f":"+Secrétariat!C18","v":0}]
[{"$f":"+Secrétariat!A19","v":"Vibrations"},{"$f":"+Secrétariat!C$6","v":"Secrétariat"},{"$f":"+'Grille évaluation'!F14","v":"NC"},{"$f":"+'Grille évaluation'!G14","v":"NC"},{"$f":"+'Grille évaluation'!H14","v":"NC"},{"$f":"+Secrétariat!C19","v":0}]
[{"$f":"+Secrétariat!A20","v":"Risques chimiques"},{"$f":"+Secrétariat!C$6","v":"Secrétariat"},{"$f":"+'Grille évaluation'!F15","v":"NC"},{"$f":"+'Grille évaluation'!G15","v":"NC"},{"$f":"+'Grille évaluation'!H15","v":"NC"},{"$f":"+Secrétariat!C20","v":0}]
[{"$f":"+Secrétariat!A21","v":"Amiante"},{"$f":"+Secrétariat!C$6","v":"Secrétariat"},{"$f":"+'Grille évaluation'!F16","v":"NC"},{"$f":"+'Grille évaluation'!G16","v":"NC"},{"$f":"+'Grille évaluation'!H16","v":"NC"},{"$f":"+Secrétariat!C21","v":0}]
[{"$f":"+Secrétariat!A22","v":"Aération et assainissement de l'air"},{"$f":"+Secrétariat!C$6","v":"Secrétariat"},{"$f":"+'Grille évaluation'!F17","v":"NC"},{"$f":"+'Grille évaluation'!G17","v":"NC"},{"$f":"+'Grille évaluation'!H17","v":"NC"},{"$f":"+Secrétariat!C22","v":0}]
[{"$f":"+Secrétariat!A23","v":"Risque Electrique"},{"$f":"+Secrétariat!C$6","v":"Secrétariat"},{"$f":"+'Grille évaluation'!F18","v":"NC"},{"$f":"+'Grille évaluation'!G18","v":"NC"},{"$f":"+'Grille évaluation'!H18","v":"NC"},{"$f":"+Secrétariat!C23","v":0}]
[{"$f":"+Secrétariat!A24","v":"Incendie - Explosion"},{"$f":"+Secrétariat!C$6","v":"Secrétariat"},{"$f":"+'Grille évaluation'!F19","v":"NC"},{"$f":"+'Grille évaluation'!G19","v":"NC"},{"$f":"+'Grille évaluation'!H19","v":"NC"},{"$f":"+Secrétariat!C24","v":0}]
[{"$f":"+Secrétariat!A25","v":"Risques liés à l'éclairage"},{"$f":"+Secrétariat!C$6","v":"Secrétariat"},{"$f":"+'Grille évaluation'!F20","v":"NC"},{"$f":"+'Grille évaluation'!G20","v":"NC"},{"$f":"+'Grille évaluation'!H20","v":"NC"},{"$f":"+Secrétariat!C25","v":0}]
[{"$f":"+Secrétariat!A26","v":"Utilisation d'écran"},{"$f":"+Secrétariat!C$6","v":"Secrétariat"},{"$f":"+'Grille évaluation'!F21","v":"NC"},{"$f":"+'Grille évaluation'!G21","v":"NC"},{"$f":"+'Grille évaluation'!H21","v":"NC"},{"$f":"+Secrétariat!C26","v":0}]
[{"$f":"+Secrétariat!A27","v":"Risques liés aux ambiances climatiques et thermiques"},{"$f":"+Secrétariat!C$6","v":"Secrétariat"},{"$f":"+'Grille évaluation'!F22","v":"NC"},{"$f":"+'Grille évaluation'!G22","v":"NC"},{"$f":"+'Grille évaluation'!H22","v":"NC"},{"$f":"+Secrétariat!C27","v":0}]
[{"$f":"+Secrétariat!A28","v":"Risque biologique"},{"$f":"+Secrétariat!C$6","v":"Secrétariat"},{"$f":"+'Grille évaluation'!F23","v":"NC"},{"$f":"+'Grille évaluation'!G23","v":"NC"},{"$f":"+'Grille évaluation'!H23","v":"NC"},{"$f":"+Secrétariat!C28","v":0}]
[{"$f":"+Secrétariat!A29","v":"Manque d'hygiène"},{"$f":"+Secrétariat!C$6","v":"Secrétariat"},{"$f":"+'Grille évaluation'!F24","v":"NC"},{"$f":"+'Grille évaluation'!G24","v":"NC"},{"$f":"+'Grille évaluation'!H24","v":"NC"},{"$f":"+Secrétariat!C29","v":0}]
[{"$f":"+Secrétariat!A30","v":"Rayonnement"},{"$f":"+Secrétariat!C$6","v":"Secrétariat"},{"$f":"+'Grille évaluation'!F25","v":"NC"},{"$f":"+'Grille évaluation'!G25","v":"NC"},{"$f":"+'Grille évaluation'!H25","v":"NC"},{"$f":"+Secrétariat!C30","v":0}]
[{"$f":"+Secrétariat!A31","v":"Entreprises Extérieures"},{"$f":"+Secrétariat!C$6","v":"Secrétariat"},{"$f":"+'Grille évaluation'!F26","v":"NC"},{"$f":"+'Grille évaluation'!G26","v":"NC"},{"$f":"+'Grille évaluation'!H26","v":"NC"},{"$f":"+Secrétariat!C31","v":0}]
[{"$f":"+Secrétariat!A32","v":"Agressions"},{"$f":"+Secrétariat!C$6","v":"Secrétariat"},{"$f":"+'Grille évaluation'!F27","v":"NC"},{"$f":"+'Grille évaluation'!G27","v":"NC"},{"$f":"+'Grille évaluation'!H27","v":"NC"},{"$f":"+Secrétariat!C32","v":0}]
[{"$f":"+Secrétariat!A33","v":"Risques psychosociaux"},{"$f":"+Secrétariat!C$6","v":"Secrétariat"},{"$f":"+'Grille évaluation'!F28","v":"NC"},{"$f":"+'Grille évaluation'!G28","v":"NC"},{"$f":"+'Grille évaluation'!H28","v":"NC"},{"$f":"+Secrétariat!C33","v":"Sur cette unité, les risques psychosociaux sont présents, les principales composantes à maitriser sont :\n1/ intensité du travail : \n-  ;\n2 / Emotionnel :\n- \n3 / Autonomie :\n- \n4 / Rapports sociaux :\n- \n5 / Conflits de Valeur :\n- \n6 / Insécurité de la situation de travail:\n-"}]
[{"$f":"+'Chaine de commandement'!A10","v":"Chute de plain pied"},{"$f":"+'Chaine de commandement'!C$6","v":"Chaine de commandement"},{"$f":"+'Grille évaluation'!I5","v":"NC"},{"$f":"+'Grille évaluation'!J5","v":"NC"},{"$f":"+'Grille évaluation'!K5","v":"NC"},{"$f":"+'Chaine de commandement'!C10","v":0}]
[{"$f":"+'Chaine de commandement'!A11","v":"Chute de hauteur"},{"$f":"+'Chaine de commandement'!C$6","v":"Chaine de commandement"},{"$f":"+'Grille évaluation'!I6","v":4},{"$f":"+'Grille évaluation'!J6","v":"NC"},{"$f":"+'Grille évaluation'!K6","v":"NC"},{"$f":"+'Chaine de commandement'!C11","v":0}]
[{"$f":"+'Chaine de commandement'!A12","v":"Effondrement et chutes d'objets\n"},{"$f":"+'Chaine de commandement'!C$6","v":"Chaine de commandement"},{"$f":"+'Grille évaluation'!I7","v":"NC"},{"$f":"+'Grille évaluation'!J7","v":"NC"},{"$f":"+'Grille évaluation'!K7","v":"NC"},{"$f":"+'Chaine de commandement'!C12","v":0}]
[{"$f":"+'Chaine de commandement'!A13","v":"Manutention manuelle"},{"$f":"+'Chaine de commandement'!C$6","v":"Chaine de commandement"},{"$f":"+'Grille évaluation'!I8","v":"NC"},{"$f":"+'Grille évaluation'!J8","v":"NC"},{"$f":"+'Grille évaluation'!K8","v":"NC"},{"$f":"+'Chaine de commandement'!C13","v":0}]
[{"$f":"+'Chaine de commandement'!A14","v":"Ergonomie"},{"$f":"+'Chaine de commandement'!C$6","v":"Chaine de commandement"},{"$f":"+'Grille évaluation'!I9","v":"NC"},{"$f":"+'Grille évaluation'!J9","v":"NC"},{"$f":"+'Grille évaluation'!K9","v":"NC"},{"$f":"+'Chaine de commandement'!C14","v":0}]
[{"$f":"+'Chaine de commandement'!A15","v":"Risque Routier - Conduite d'engins"},{"$f":"+'Chaine de commandement'!C$6","v":"Chaine de commandement"},{"$f":"+'Grille évaluation'!I10","v":"NC"},{"$f":"+'Grille évaluation'!J10","v":"NC"},{"$f":"+'Grille évaluation'!K10","v":"NC"},{"$f":"+'Chaine de commandement'!C15","v":0}]
[{"$f":"+'Chaine de commandement'!A16","v":"Circulation piétonne"},{"$f":"+'Chaine de commandement'!C$6","v":"Chaine de commandement"},{"$f":"+'Grille évaluation'!I11","v":"NC"},{"$f":"+'Grille évaluation'!J11","v":"NC"},{"$f":"+'Grille évaluation'!K11","v":"NC"},{"$f":"+'Chaine de commandement'!C16","v":0}]
[{"$f":"+'Chaine de commandement'!A17","v":"Risques liés aux machines et outils"},{"$f":"+'Chaine de commandement'!C$6","v":"Chaine de commandement"},{"$f":"+'Grille évaluation'!I12","v":"NC"},{"$f":"+'Grille évaluation'!J12","v":"NC"},{"$f":"+'Grille évaluation'!K12","v":"NC"},{"$f":"+'Chaine de commandement'!C17","v":0}]
[{"$f":"+'Chaine de commandement'!A18","v":"Bruit"},{"$f":"+'Chaine de commandement'!C$6","v":"Chaine de commandement"},{"$f":"+'Grille évaluation'!I13","v":"NC"},{"$f":"+'Grille évaluation'!J13","v":"NC"},{"$f":"+'Grille évaluation'!K13","v":"NC"},{"$f":"+'Chaine de commandement'!C18","v":0}]
[{"$f":"+'Chaine de commandement'!A19","v":"Vibrations"},{"$f":"+'Chaine de commandement'!C$6","v":"Chaine de commandement"},{"$f":"+'Grille évaluation'!I14","v":"NC"},{"$f":"+'Grille évaluation'!J14","v":"NC"},{"$f":"+'Grille évaluation'!K14","v":"NC"},{"$f":"+'Chaine de commandement'!C19","v":0}]
[{"$f":"+'Chaine de commandement'!A20","v":"Risques chimiques"},{"$f":"+'Chaine de commandement'!C$6","v":"Chaine de commandement"},{"$f":"+'Grille évaluation'!I15","v":"NC"},{"$f":"+'Grille évaluation'!J15","v":"NC"},{"$f":"+'Grille évaluation'!K15","v":"NC"},{"$f":"+'Chaine de commandement'!C20","v":0}]
[{"$f":"+'Chaine de commandement'!A21","v":"Amiante"},{"$f":"+'Chaine de commandement'!C$6","v":"Chaine de commandement"},{"$f":"+'Grille évaluation'!I16","v":"NC"},{"$f":"+'Grille évaluation'!J16","v":"NC"},{"$f":"+'Grille évaluation'!K16","v":"NC"},{"$f":"+'Chaine de commandement'!C21","v":0}]
[{"$f":"+'Chaine de commandement'!A22","v":"Aération et assainissement de l'air"},{"$f":"+'Chaine de commandement'!C$6","v":"Chaine de commandement"},{"$f":"+'Grille évaluation'!I17","v":"NC"},{"$f":"+'Grille évaluation'!J17","v":"NC"},{"$f":"+'Grille évaluation'!K17","v":"NC"},{"$f":"+'Chaine de commandement'!C22","v":0}]
[{"$f":"+'Chaine de commandement'!A23","v":"Risque Electrique"},{"$f":"+'Chaine de commandement'!C$6","v":"Chaine de commandement"},{"$f":"+'Grille évaluation'!I18","v":"NC"},{"$f":"+'Grille évaluation'!J18","v":"NC"},{"$f":"+'Grille évaluation'!K18","v":"NC"},{"$f":"+'Chaine de commandement'!C23","v":0}]
[{"$f":"+'Chaine de commandement'!A24","v":"Incendie - Explosion"},{"$f":"+'Chaine de commandement'!C$6","v":"Chaine de commandement"},{"$f":"+'Grille évaluation'!I19","v":"NC"},{"$f":"+'Grille évaluation'!J19","v":"NC"},{"$f":"+'Grille évaluation'!K19","v":"NC"},{"$f":"+'Chaine de commandement'!C24","v":0}]
[{"$f":"+'Chaine de commandement'!A25","v":"Risques liés à l'éclairage"},{"$f":"+'Chaine de commandement'!C$6","v":"Chaine de commandement"},{"$f":"+'Grille évaluation'!I20","v":"NC"},{"$f":"+'Grille évaluation'!J20","v":"NC"},{"$f":"+'Grille évaluation'!K20","v":"NC"},{"$f":"+'Chaine de commandement'!C25","v":0}]
[{"$f":"+'Chaine de commandement'!A26","v":"Utilisation d'écran"},{"$f":"+'Chaine de commandement'!C$6","v":"Chaine de commandement"},{"$f":"+'Grille évaluation'!I21","v":"NC"},{"$f":"+'Grille évaluation'!J21","v":"NC"},{"$f":"+'Grille évaluation'!K21","v":"NC"},{"$f":"+'Chaine de commandement'!C26","v":0}]
[{"$f":"+'Chaine de commandement'!A27","v":"Risques liés aux ambiances climatiques et thermiques"},{"$f":"+'Chaine de commandement'!C$6","v":"Chaine de commandement"},{"$f":"+'Grille évaluation'!I22","v":"NC"},{"$f":"+'Grille évaluation'!J22","v":"NC"},{"$f":"+'Grille évaluation'!K22","v":"NC"},{"$f":"+'Chaine de commandement'!C27","v":0}]
[{"$f":"+'Chaine de commandement'!A28","v":"Risque biologique"},{"$f":"+'Chaine de commandement'!C$6","v":"Chaine de commandement"},{"$f":"+'Grille évaluation'!I23","v":"NC"},{"$f":"+'Grille évaluation'!J23","v":"NC"},{"$f":"+'Grille évaluation'!K23","v":"NC"},{"$f":"+'Chaine de commandement'!C28","v":0}]
[{"$f":"+'Chaine de commandement'!A29","v":"Manque d'hygiène"},{"$f":"+'Chaine de commandement'!C$6","v":"Chaine de commandement"},{"$f":"+'Grille évaluation'!I24","v":"NC"},{"$f":"+'Grille évaluation'!J24","v":"NC"},{"$f":"+'Grille évaluation'!K24","v":"NC"},{"$f":"+'Chaine de commandement'!C29","v":0}]
[{"$f":"+'Chaine de commandement'!A30","v":"Rayonnement"},{"$f":"+'Chaine de commandement'!C$6","v":"Chaine de commandement"},{"$f":"+'Grille évaluation'!I25","v":"NC"},{"$f":"+'Grille évaluation'!J25","v":"NC"},{"$f":"+'Grille évaluation'!K25","v":"NC"},{"$f":"+'Chaine de commandement'!C30","v":0}]
[{"$f":"+'Chaine de commandement'!A31","v":"Entreprises Extérieures"},{"$f":"+'Chaine de commandement'!C$6","v":"Chaine de commandement"},{"$f":"+'Grille évaluation'!I26","v":"NC"},{"$f":"+'Grille évaluation'!J26","v":"NC"},{"$f":"+'Grille évaluation'!K26","v":"NC"},{"$f":"+'Chaine de commandement'!C31","v":0}]
[{"$f":"+'Chaine de commandement'!A32","v":"Agressions"},{"$f":"+'Chaine de commandement'!C$6","v":"Chaine de commandement"},{"$f":"+'Grille évaluation'!I27","v":"NC"},{"$f":"+'Grille évaluation'!J27","v":"NC"},{"$f":"+'Grille évaluation'!K27","v":"NC"},{"$f":"+'Chaine de commandement'!C32","v":0}]
[{"$f":"+'Chaine de commandement'!A33","v":"Risques psychosociaux"},{"$f":"+'Chaine de commandement'!C$6","v":"Chaine de commandement"},{"$f":"+'Grille évaluation'!I28","v":"NC"},{"$f":"+'Grille évaluation'!J28","v":"NC"},{"$f":"+'Grille évaluation'!K28","v":"NC"},{"$f":"+'Chaine de commandement'!C33","v":"Sur cette unité, les risques psychosociaux sont présents, les principales composantes à maitriser sont :\n1/ intensité du travail : \n-  ;\n2 / Emotionnel :\n- \n3 / Autonomie :\n- \n4 / Rapports sociaux :\n- \n5 / Conflits de Valeur :\n- \n6 / Insécurité de la situation de travail:\n-"}]
[{"$f":"+'Services administratifs'!A10","v":"Chute de plain pied"},{"$f":"+'Services administratifs'!C$6","v":"Services administratifs"},{"$f":"+'Grille évaluation'!L5","v":"NC"},{"$f":"+'Grille évaluation'!M5","v":"NC"},{"$f":"+'Services administratifs'!J10","v":"NC"},{"$f":"+'Services administratifs'!C10","v":0}]
[{"$f":"+'Services administratifs'!A11","v":"Chute de hauteur"},{"$f":"+'Services administratifs'!C$6","v":"Services administratifs"},{"$f":"+'Grille évaluation'!L6","v":4},{"$f":"+'Grille évaluation'!M6","v":"NC"},{"$f":"+'Services administratifs'!J11","v":"NC"},{"$f":"+'Services administratifs'!C11","v":0}]
[{"$f":"+'Services administratifs'!A12","v":"Effondrement et chutes d'objets\n"},{"$f":"+'Services administratifs'!C$6","v":"Services administratifs"},{"$f":"+'Grille évaluation'!L7","v":"NC"},{"$f":"+'Grille évaluation'!M7","v":"NC"},{"$f":"+'Services administratifs'!J12","v":"NC"},{"$f":"+'Services administratifs'!C12","v":0}]
[{"$f":"+'Services administratifs'!A13","v":"Manutention manuelle"},{"$f":"+'Services administratifs'!C$6","v":"Services administratifs"},{"$f":"+'Grille évaluation'!L8","v":"NC"},{"$f":"+'Grille évaluation'!M8","v":"NC"},{"$f":"+'Services administratifs'!J13","v":"NC"},{"$f":"+'Services administratifs'!C13","v":0}]
[{"$f":"+'Services administratifs'!A14","v":"Ergonomie"},{"$f":"+'Services administratifs'!C$6","v":"Services administratifs"},{"$f":"+'Grille évaluation'!L9","v":"NC"},{"$f":"+'Grille évaluation'!M9","v":"NC"},{"$f":"+'Services administratifs'!J14","v":"NC"},{"$f":"+'Services administratifs'!C14","v":0}]
[{"$f":"+'Services administratifs'!A15","v":"Risque Routier - Conduite d'engins"},{"$f":"+'Services administratifs'!C$6","v":"Services administratifs"},{"$f":"+'Grille évaluation'!L10","v":"NC"},{"$f":"+'Grille évaluation'!M10","v":"NC"},{"$f":"+'Services administratifs'!J15","v":"NC"},{"$f":"+'Services administratifs'!C15","v":0}]
[{"$f":"+'Services administratifs'!A16","v":"Circulation piétonne"},{"$f":"+'Services administratifs'!C$6","v":"Services administratifs"},{"$f":"+'Grille évaluation'!L11","v":"NC"},{"$f":"+'Grille évaluation'!M11","v":"NC"},{"$f":"+'Services administratifs'!J16","v":"NC"},{"$f":"+'Services administratifs'!C16","v":0}]
[{"$f":"+'Services administratifs'!A17","v":"Risques liés aux machines et outils"},{"$f":"+'Services administratifs'!C$6","v":"Services administratifs"},{"$f":"+'Grille évaluation'!L12","v":"NC"},{"$f":"+'Grille évaluation'!M12","v":"NC"},{"$f":"+'Services administratifs'!J17","v":"NC"},{"$f":"+'Services administratifs'!C17","v":0}]
[{"$f":"+'Services administratifs'!A18","v":"Bruit"},{"$f":"+'Services administratifs'!C$6","v":"Services administratifs"},{"$f":"+'Grille évaluation'!L13","v":"NC"},{"$f":"+'Grille évaluation'!M13","v":"NC"},{"$f":"+'Services administratifs'!J18","v":"NC"},{"$f":"+'Services administratifs'!C18","v":0}]
[{"$f":"+'Services administratifs'!A19","v":"Vibrations"},{"$f":"+'Services administratifs'!C$6","v":"Services administratifs"},{"$f":"+'Grille évaluation'!L14","v":"NC"},{"$f":"+'Grille évaluation'!M14","v":"NC"},{"$f":"+'Services administratifs'!J19","v":"NC"},{"$f":"+'Services administratifs'!C19","v":0}]
[{"$f":"+'Services administratifs'!A20","v":"Risques chimiques"},{"$f":"+'Services administratifs'!C$6","v":"Services administratifs"},{"$f":"+'Grille évaluation'!L15","v":"NC"},{"$f":"+'Grille évaluation'!M15","v":"NC"},{"$f":"+'Services administratifs'!J20","v":"NC"},{"$f":"+'Services administratifs'!C20","v":0}]
[{"$f":"+'Services administratifs'!A21","v":"Amiante"},{"$f":"+'Services administratifs'!C$6","v":"Services administratifs"},{"$f":"+'Grille évaluation'!L16","v":"NC"},{"$f":"+'Grille évaluation'!M16","v":"NC"},{"$f":"+'Services administratifs'!J21","v":"NC"},{"$f":"+'Services administratifs'!C21","v":0}]
[{"$f":"+'Services administratifs'!A22","v":"Aération et assainissement de l'air"},{"$f":"+'Services administratifs'!C$6","v":"Services administratifs"},{"$f":"+'Grille évaluation'!L17","v":"NC"},{"$f":"+'Grille évaluation'!M17","v":"NC"},{"$f":"+'Services administratifs'!J22","v":"NC"},{"$f":"+'Services administratifs'!C22","v":0}]
[{"$f":"+'Services administratifs'!A23","v":"Risque Electrique"},{"$f":"+'Services administratifs'!C$6","v":"Services administratifs"},{"$f":"+'Grille évaluation'!L18","v":"NC"},{"$f":"+'Grille évaluation'!M18","v":"NC"},{"$f":"+'Services administratifs'!J23","v":"NC"},{"$f":"+'Services administratifs'!C23","v":0}]
[{"$f":"+'Services administratifs'!A24","v":"Incendie - Explosion"},{"$f":"+'Services administratifs'!C$6","v":"Services administratifs"},{"$f":"+'Grille évaluation'!L19","v":"NC"},{"$f":"+'Grille évaluation'!M19","v":"NC"},{"$f":"+'Services administratifs'!J24","v":"NC"},{"$f":"+'Services administratifs'!C24","v":0}]
[{"$f":"+'Services administratifs'!A25","v":"Risques liés à l'éclairage"},{"$f":"+'Services administratifs'!C$6","v":"Services administratifs"},{"$f":"+'Grille évaluation'!L20","v":"NC"},{"$f":"+'Grille évaluation'!M20","v":"NC"},{"$f":"+'Services administratifs'!J25","v":"NC"},{"$f":"+'Services administratifs'!C25","v":0}]
[{"$f":"+'Services administratifs'!A26","v":"Utilisation d'écran"},{"$f":"+'Services administratifs'!C$6","v":"Services administratifs"},{"$f":"+'Grille évaluation'!L21","v":"NC"},{"$f":"+'Grille évaluation'!M21","v":"NC"},{"$f":"+'Services administratifs'!J26","v":"NC"},{"$f":"+'Services administratifs'!C26","v":0}]
[{"$f":"+'Services administratifs'!A27","v":"Risques liés aux ambiances climatiques et thermiques"},{"$f":"+'Services administratifs'!C$6","v":"Services administratifs"},{"$f":"+'Grille évaluation'!L22","v":"NC"},{"$f":"+'Grille évaluation'!M22","v":"NC"},{"$f":"+'Services administratifs'!J27","v":"NC"},{"$f":"+'Services administratifs'!C27","v":0}]
[{"$f":"+'Services administratifs'!A28","v":"Risque biologique"},{"$f":"+'Services administratifs'!C$6","v":"Services administratifs"},{"$f":"+'Grille évaluation'!L23","v":"NC"},{"$f":"+'Grille évaluation'!M23","v":"NC"},{"$f":"+'Services administratifs'!J28","v":"NC"},{"$f":"+'Services administratifs'!C28","v":0}]
[{"$f":"+'Services administratifs'!A29","v":"Manque d'hygiène"},{"$f":"+'Services administratifs'!C$6","v":"Services administratifs"},{"$f":"+'Grille évaluation'!L24","v":"NC"},{"$f":"+'Grille évaluation'!M24","v":"NC"},{"$f":"+'Services administratifs'!J29","v":"NC"},{"$f":"+'Services administratifs'!C29","v":0}]
[{"$f":"+'Services administratifs'!A30","v":"Rayonnement"},{"$f":"+'Services administratifs'!C$6","v":"Services administratifs"},{"$f":"+'Grille évaluation'!L25","v":"NC"},{"$f":"+'Grille évaluation'!M25","v":"NC"},{"$f":"+'Services administratifs'!J30","v":"NC"},{"$f":"+'Services administratifs'!C30","v":0}]
[{"$f":"+'Services administratifs'!A31","v":"Entreprises Extérieures"},{"$f":"+'Services administratifs'!C$6","v":"Services administratifs"},{"$f":"+'Grille évaluation'!L26","v":"NC"},{"$f":"+'Grille évaluation'!M26","v":"NC"},{"$f":"+'Services administratifs'!J31","v":"NC"},{"$f":"+'Services administratifs'!C31","v":0}]
[{"$f":"+'Services administratifs'!A32","v":"Agressions"},{"$f":"+'Services administratifs'!C$6","v":"Services administratifs"},{"$f":"+'Grille évaluation'!L27","v":"NC"},{"$f":"+'Grille évaluation'!M27","v":"NC"},{"$f":"+'Services administratifs'!J32","v":"NC"},{"$f":"+'Services administratifs'!C32","v":0}]
[{"$f":"+'Services administratifs'!A33","v":"Risques psychosociaux"},{"$f":"+'Services administratifs'!C$6","v":"Services administratifs"},{"$f":"+'Grille évaluation'!L28","v":"NC"},{"$f":"+'Grille évaluation'!M28","v":"NC"},{"$f":"+'Services administratifs'!J33","v":"NC"},{"$f":"+'Services administratifs'!C33","v":"Sur cette unité, les risques psychosociaux sont présents, les principales composantes à maitriser sont :\n1/ intensité du travail : \n-  ;\n2 / Emotionnel :\n- \n3 / Autonomie :\n- \n4 / Rapports sociaux :\n- \n5 / Conflits de Valeur :\n- \n6 / Insécurité de la situation de travail:\n-"}]
[{"$f":"+STASS!A10","v":"Chute de plain pied"},{"$f":"+STASS!C$6","v":"STASS"},{"$f":"+'Grille évaluation'!O5","v":"NC"},{"$f":"+'Grille évaluation'!P5","v":"NC"},{"$f":"+'Grille évaluation'!Q5","v":"NC"},{"$f":"+STASS!C10","v":0}]
[{"$f":"+STASS!A11","v":"Chute de hauteur"},{"$f":"+STASS!C$6","v":"STASS"},{"$f":"+'Grille évaluation'!O6","v":4},{"$f":"+'Grille évaluation'!P6","v":"NC"},{"$f":"+'Grille évaluation'!Q6","v":"NC"},{"$f":"+STASS!C11","v":0}]
[{"$f":"+STASS!A12","v":"Effondrement et chutes d'objets\n"},{"$f":"+STASS!C$6","v":"STASS"},{"$f":"+'Grille évaluation'!O7","v":"NC"},{"$f":"+'Grille évaluation'!P7","v":"NC"},{"$f":"+'Grille évaluation'!Q7","v":"NC"},{"$f":"+STASS!C12","v":0}]
[{"$f":"+STASS!A13","v":"Manutention manuelle"},{"$f":"+STASS!C$6","v":"STASS"},{"$f":"+'Grille évaluation'!O8","v":"NC"},{"$f":"+'Grille évaluation'!P8","v":"NC"},{"$f":"+'Grille évaluation'!Q8","v":"NC"},{"$f":"+STASS!C13","v":0}]
[{"$f":"+STASS!A14","v":"Ergonomie"},{"$f":"+STASS!C$6","v":"STASS"},{"$f":"+'Grille évaluation'!O9","v":"NC"},{"$f":"+'Grille évaluation'!P9","v":"NC"},{"$f":"+'Grille évaluation'!Q9","v":"NC"},{"$f":"+STASS!C14","v":0}]
[{"$f":"+STASS!A15","v":"Risque Routier - Conduite d'engins"},{"$f":"+STASS!C$6","v":"STASS"},{"$f":"+'Grille évaluation'!O10","v":"NC"},{"$f":"+'Grille évaluation'!P10","v":"NC"},{"$f":"+'Grille évaluation'!Q10","v":"NC"},{"$f":"+STASS!C15","v":0}]
[{"$f":"+STASS!A16","v":"Circulation piétonne"},{"$f":"+STASS!C$6","v":"STASS"},{"$f":"+'Grille évaluation'!O11","v":"NC"},{"$f":"+'Grille évaluation'!P11","v":"NC"},{"$f":"+'Grille évaluation'!Q11","v":"NC"},{"$f":"+STASS!C16","v":0}]
[{"$f":"+STASS!A17","v":"Risques liés aux machines et outils"},{"$f":"+STASS!C$6","v":"STASS"},{"$f":"+'Grille évaluation'!O12","v":"NC"},{"$f":"+'Grille évaluation'!P12","v":"NC"},{"$f":"+'Grille évaluation'!Q12","v":"NC"},{"$f":"+STASS!C17","v":0}]
[{"$f":"+STASS!A18","v":"Bruit"},{"$f":"+STASS!C$6","v":"STASS"},{"$f":"+'Grille évaluation'!O13","v":"NC"},{"$f":"+'Grille évaluation'!P13","v":"NC"},{"$f":"+'Grille évaluation'!Q13","v":"NC"},{"$f":"+STASS!C18","v":0}]
[{"$f":"+STASS!A19","v":"Vibrations"},{"$f":"+STASS!C$6","v":"STASS"},{"$f":"+'Grille évaluation'!O14","v":"NC"},{"$f":"+'Grille évaluation'!P14","v":"NC"},{"$f":"+'Grille évaluation'!Q14","v":"NC"},{"$f":"+STASS!C19","v":0}]
[{"$f":"+STASS!A20","v":"Risques chimiques"},{"$f":"+STASS!C$6","v":"STASS"},{"$f":"+'Grille évaluation'!O15","v":0},{"$f":"+'Grille évaluation'!P15","v":"NC"},{"$f":"+'Grille évaluation'!Q15","v":"NC"},{"$f":"+STASS!C20","v":0}]
[{"$f":"+STASS!A21","v":"Amiante"},{"$f":"+STASS!C$6","v":"STASS"},{"$f":"+'Grille évaluation'!O16","v":"NC"},{"$f":"+'Grille évaluation'!P16","v":"NC"},{"$f":"+'Grille évaluation'!Q16","v":"NC"},{"$f":"+STASS!C21","v":0}]
[{"$f":"+STASS!A22","v":"Aération et assainissement de l'air"},{"$f":"+STASS!C$6","v":"STASS"},{"$f":"+'Grille évaluation'!O17","v":"NC"},{"$f":"+'Grille évaluation'!P17","v":"NC"},{"$f":"+'Grille évaluation'!Q17","v":"NC"},{"$f":"+STASS!C22","v":0}]
[{"$f":"+STASS!A23","v":"Risque Electrique"},{"$f":"+STASS!C$6","v":"STASS"},{"$f":"+'Grille évaluation'!O18","v":"NC"},{"$f":"+'Grille évaluation'!P18","v":"NC"},{"$f":"+'Grille évaluation'!Q18","v":"NC"},{"$f":"+STASS!C23","v":0}]
[{"$f":"+STASS!A24","v":"Incendie - Explosion"},{"$f":"+STASS!C$6","v":"STASS"},{"$f":"+'Grille évaluation'!O19","v":"NC"},{"$f":"+'Grille évaluation'!P19","v":"NC"},{"$f":"+'Grille évaluation'!Q19","v":"NC"},{"$f":"+STASS!C24","v":0}]
[{"$f":"+STASS!A25","v":"Risques liés à l'éclairage"},{"$f":"+STASS!C$6","v":"STASS"},{"$f":"+'Grille évaluation'!O20","v":"NC"},{"$f":"+'Grille évaluation'!P20","v":"NC"},{"$f":"+'Grille évaluation'!Q20","v":"NC"},{"$f":"+STASS!C25","v":0}]
[{"$f":"+STASS!A26","v":"Utilisation d'écran"},{"$f":"+STASS!C$6","v":"STASS"},{"$f":"+'Grille évaluation'!O21","v":"NC"},{"$f":"+'Grille évaluation'!P21","v":"NC"},{"$f":"+'Grille évaluation'!Q21","v":"NC"},{"$f":"+STASS!C26","v":0}]
[{"$f":"+STASS!A27","v":"Risques liés aux ambiances climatiques et thermiques"},{"$f":"+STASS!C$6","v":"STASS"},{"$f":"+'Grille évaluation'!O22","v":"NC"},{"$f":"+'Grille évaluation'!P22","v":"NC"},{"$f":"+'Grille évaluation'!Q22","v":"NC"},{"$f":"+STASS!C27","v":0}]
[{"$f":"+STASS!A28","v":"Risque biologique"},{"$f":"+STASS!C$6","v":"STASS"},{"$f":"+'Grille évaluation'!O23","v":"NC"},{"$f":"+'Grille évaluation'!P23","v":"NC"},{"$f":"+'Grille évaluation'!Q23","v":"NC"},{"$f":"+STASS!C28","v":0}]
[{"$f":"+STASS!A29","v":"Manque d'hygiène"},{"$f":"+STASS!C$6","v":"STASS"},{"$f":"+'Grille évaluation'!O24","v":"NC"},{"$f":"+'Grille évaluation'!P24","v":"NC"},{"$f":"+'Grille évaluation'!Q24","v":"NC"},{"$f":"+STASS!C29","v":0}]
[{"$f":"+STASS!A30","v":"Rayonnement"},{"$f":"+STASS!C$6","v":"STASS"},{"$f":"+'Grille évaluation'!O25","v":"NC"},{"$f":"+'Grille évaluation'!P25","v":"NC"},{"$f":"+'Grille évaluation'!Q25","v":"NC"},{"$f":"+STASS!C30","v":0}]
[{"$f":"+STASS!A31","v":"Entreprises Extérieures"},{"$f":"+STASS!C$6","v":"STASS"},{"$f":"+'Grille évaluation'!O26","v":"NC"},{"$f":"+'Grille évaluation'!P26","v":"NC"},{"$f":"+'Grille évaluation'!Q26","v":"NC"},{"$f":"+STASS!C31","v":0}]
[{"$f":"+STASS!A32","v":"Agressions"},{"$f":"+STASS!C$6","v":"STASS"},{"$f":"+'Grille évaluation'!O27","v":"NC"},{"$f":"+'Grille évaluation'!P27","v":"NC"},{"$f":"+'Grille évaluation'!Q27","v":"NC"},{"$f":"+STASS!C32","v":0}]
[{"$f":"+STASS!A33","v":"Risques psychosociaux"},{"$f":"+STASS!C$6","v":"STASS"},{"$f":"+'Grille évaluation'!O28","v":0},{"$f":"+'Grille évaluation'!P28","v":"NC"},{"$f":"+'Grille évaluation'!Q28","v":"NC"},{"$f":"+STASS!C33","v":"Sur cette unité, les risques psychosociaux sont présents, les principales composantes à maitriser sont :\n1/ intensité du travail : \n-  ;\n2 / Emotionnel :\n- \n3 / Autonomie :\n- \n4 / Rapports sociaux :\n- \n5 / Conflits de Valeur :\n- \n6 / Insécurité de la situation de travail:\n-"}]
[{"$f":"+'Vie collective'!A10","v":"Chute de plain pied"},{"$f":"+'Vie collective'!C$6","v":"Vie collective"},{"$f":"+'Grille évaluation'!R5","v":"NC"},{"$f":"+'Grille évaluation'!S5","v":"NC"},{"$f":"+'Vie collective'!J10","v":"NC"},{"$f":"+'Vie collective'!C10","v":0}]
[{"$f":"+'Vie collective'!A11","v":"Chute de hauteur"},{"$f":"+'Vie collective'!C$6","v":"Vie collective"},{"$f":"+'Grille évaluation'!R6","v":"NC"},{"$f":"+'Grille évaluation'!S6","v":"NC"},{"$f":"+'Vie collective'!J11","v":"NC"},{"$f":"+'Vie collective'!C11","v":0}]
[{"$f":"+'Vie collective'!A12","v":"Effondrement et chutes d'objets\n"},{"$f":"+'Vie collective'!C$6","v":"Vie collective"},{"$f":"+'Grille évaluation'!R7","v":"NC"},{"$f":"+'Grille évaluation'!S7","v":"NC"},{"$f":"+'Vie collective'!J12","v":"NC"},{"$f":"+'Vie collective'!C12","v":0}]
[{"$f":"+'Vie collective'!A13","v":"Manutention manuelle"},{"$f":"+'Vie collective'!C$6","v":"Vie collective"},{"$f":"+'Grille évaluation'!R8","v":"NC"},{"$f":"+'Grille évaluation'!S8","v":"NC"},{"$f":"+'Vie collective'!J13","v":"NC"},{"$f":"+'Vie collective'!C13","v":0}]
[{"$f":"+'Vie collective'!A14","v":"Ergonomie"},{"$f":"+'Vie collective'!C$6","v":"Vie collective"},{"$f":"+'Grille évaluation'!R9","v":"NC"},{"$f":"+'Grille évaluation'!S9","v":"NC"},{"$f":"+'Vie collective'!J14","v":"NC"},{"$f":"+'Vie collective'!C14","v":0}]
[{"$f":"+'Vie collective'!A15","v":"Risque Routier - Conduite d'engins"},{"$f":"+'Vie collective'!C$6","v":"Vie collective"},{"$f":"+'Grille évaluation'!R10","v":"NC"},{"$f":"+'Grille évaluation'!S10","v":"NC"},{"$f":"+'Vie collective'!J15","v":"NC"},{"$f":"+'Vie collective'!C15","v":0}]
[{"$f":"+'Vie collective'!A16","v":"Circulation piétonne"},{"$f":"+'Vie collective'!C$6","v":"Vie collective"},{"$f":"+'Grille évaluation'!R11","v":"NC"},{"$f":"+'Grille évaluation'!S11","v":"NC"},{"$f":"+'Vie collective'!J16","v":"NC"},{"$f":"+'Vie collective'!C16","v":0}]
[{"$f":"+'Vie collective'!A17","v":"Risques liés aux machines et outils"},{"$f":"+'Vie collective'!C$6","v":"Vie collective"},{"$f":"+'Grille évaluation'!R12","v":"NC"},{"$f":"+'Grille évaluation'!S12","v":"NC"},{"$f":"+'Vie collective'!J17","v":"NC"},{"$f":"+'Vie collective'!C17","v":0}]
[{"$f":"+'Vie collective'!A18","v":"Bruit"},{"$f":"+'Vie collective'!C$6","v":"Vie collective"},{"$f":"+'Grille évaluation'!R13","v":"NC"},{"$f":"+'Grille évaluation'!S13","v":"NC"},{"$f":"+'Vie collective'!J18","v":"NC"},{"$f":"+'Vie collective'!C18","v":0}]
[{"$f":"+'Vie collective'!A19","v":"Vibrations"},{"$f":"+'Vie collective'!C$6","v":"Vie collective"},{"$f":"+'Grille évaluation'!R14","v":"NC"},{"$f":"+'Grille évaluation'!S14","v":"NC"},{"$f":"+'Vie collective'!J19","v":"NC"},{"$f":"+'Vie collective'!C19","v":0}]
[{"$f":"+'Vie collective'!A20","v":"Risques chimiques"},{"$f":"+'Vie collective'!C$6","v":"Vie collective"},{"$f":"+'Grille évaluation'!R15","v":"NC"},{"$f":"+'Grille évaluation'!S15","v":"NC"},{"$f":"+'Vie collective'!J20","v":"NC"},{"$f":"+'Vie collective'!C20","v":0}]
[{"$f":"+'Vie collective'!A21","v":"Amiante"},{"$f":"+'Vie collective'!C$6","v":"Vie collective"},{"$f":"+'Grille évaluation'!R16","v":"NC"},{"$f":"+'Grille évaluation'!S16","v":"NC"},{"$f":"+'Vie collective'!J21","v":"NC"},{"$f":"+'Vie collective'!C21","v":0}]
[{"$f":"+'Vie collective'!A22","v":"Aération et assainissement de l'air"},{"$f":"+'Vie collective'!C$6","v":"Vie collective"},{"$f":"+'Grille évaluation'!R17","v":"NC"},{"$f":"+'Grille évaluation'!S17","v":"NC"},{"$f":"+'Vie collective'!J22","v":"NC"},{"$f":"+'Vie collective'!C22","v":0}]
[{"$f":"+'Vie collective'!A23","v":"Risque Electrique"},{"$f":"+'Vie collective'!C$6","v":"Vie collective"},{"$f":"+'Grille évaluation'!R18","v":"NC"},{"$f":"+'Grille évaluation'!S18","v":"NC"},{"$f":"+'Vie collective'!J23","v":"NC"},{"$f":"+'Vie collective'!C23","v":0}]
[{"$f":"+'Vie collective'!A24","v":"Incendie - Explosion"},{"$f":"+'Vie collective'!C$6","v":"Vie collective"},{"$f":"+'Grille évaluation'!R19","v":"NC"},{"$f":"+'Grille évaluation'!S19","v":"NC"},{"$f":"+'Vie collective'!J24","v":"NC"},{"$f":"+'Vie collective'!C24","v":0}]
[{"$f":"+'Vie collective'!A25","v":"Risques liés à l'éclairage"},{"$f":"+'Vie collective'!C$6","v":"Vie collective"},{"$f":"+'Grille évaluation'!R20","v":"NC"},{"$f":"+'Grille évaluation'!S20","v":"NC"},{"$f":"+'Vie collective'!J25","v":"NC"},{"$f":"+'Vie collective'!C25","v":0}]
[{"$f":"+'Vie collective'!A26","v":"Utilisation d'écran"},{"$f":"+'Vie collective'!C$6","v":"Vie collective"},{"$f":"+'Grille évaluation'!R21","v":"NC"},{"$f":"+'Grille évaluation'!S21","v":"NC"},{"$f":"+'Vie collective'!J26","v":"NC"},{"$f":"+'Vie collective'!C26","v":0}]
[{"$f":"+'Vie collective'!A27","v":"Risques liés aux ambiances climatiques et thermiques"},{"$f":"+'Vie collective'!C$6","v":"Vie collective"},{"$f":"+'Grille évaluation'!R22","v":"NC"},{"$f":"+'Grille évaluation'!S22","v":"NC"},{"$f":"+'Vie collective'!J27","v":"NC"},{"$f":"+'Vie collective'!C27","v":0}]
[{"$f":"+'Vie collective'!A28","v":"Risque biologique"},{"$f":"+'Vie collective'!C$6","v":"Vie collective"},{"$f":"+'Grille évaluation'!R23","v":"NC"},{"$f":"+'Grille évaluation'!S23","v":"NC"},{"$f":"+'Vie collective'!J28","v":"NC"},{"$f":"+'Vie collective'!C28","v":0}]
[{"$f":"+'Vie collective'!A29","v":"Manque d'hygiène"},{"$f":"+'Vie collective'!C$6","v":"Vie collective"},{"$f":"+'Grille évaluation'!R24","v":"NC"},{"$f":"+'Grille évaluation'!S24","v":"NC"},{"$f":"+'Vie collective'!J29","v":"NC"},{"$f":"+'Vie collective'!C29","v":0}]
[{"$f":"+'Vie collective'!A30","v":"Rayonnement"},{"$f":"+'Vie collective'!C$6","v":"Vie collective"},{"$f":"+'Grille évaluation'!R25","v":"NC"},{"$f":"+'Grille évaluation'!S25","v":"NC"},{"$f":"+'Vie collective'!J30","v":"NC"},{"$f":"+'Vie collective'!C30","v":0}]
[{"$f":"+'Vie collective'!A31","v":"Entreprises Extérieures"},{"$f":"+'Vie collective'!C$6","v":"Vie collective"},{"$f":"+'Grille évaluation'!R26","v":"NC"},{"$f":"+'Grille évaluation'!S26","v":"NC"},{"$f":"+'Vie collective'!J31","v":"NC"},{"$f":"+'Vie collective'!C31","v":0}]
[{"$f":"+'Vie collective'!A32","v":"Agressions"},{"$f":"+'Vie collective'!C$6","v":"Vie collective"},{"$f":"+'Grille évaluation'!R27","v":"NC"},{"$f":"+'Grille évaluation'!S27","v":"NC"},{"$f":"+'Vie collective'!J32","v":"NC"},{"$f":"+'Vie collective'!C32","v":0}]
[{"$f":"+'Vie collective'!A33","v":"Risques psychosociaux"},{"$f":"+'Vie collective'!C$6","v":"Vie collective"},{"$f":"+'Grille évaluation'!R28","v":"NC"},{"$f":"+'Grille évaluation'!S28","v":"NC"},{"$f":"+'Vie collective'!J33","v":"NC"},{"$f":"+'Vie collective'!C33","v":"Sur cette unité, les risques psychosociaux sont présents, les principales composantes à maitriser sont :\n1/ intensité du travail : \n-  ;\n2 / Emotionnel :\n- \n3 / Autonomie :\n- \n4 / Rapports sociaux :\n- \n5 / Conflits de Valeur :\n- \n6 / Insécurité de la situation de travail:\n-"}]
[{"$f":"+'Manœuvre et formation'!A10","v":"Chute de plain pied"},{"$f":"+'Manœuvre et formation'!C$6","v":"Manœuvre et formation"},{"$f":"+'Grille évaluation'!U5","v":0},{"$f":"+'Grille évaluation'!V5","v":"NC"},{"$f":"+'Grille évaluation'!W5","v":"NC"},{"$f":"+'Manœuvre et formation'!C10","v":0}]
[{"$f":"+'Manœuvre et formation'!A11","v":"Chute de hauteur"},{"$f":"+'Manœuvre et formation'!C$6","v":"Manœuvre et formation"},{"$f":"+'Grille évaluation'!U6","v":0},{"$f":"+'Grille évaluation'!V6","v":"NC"},{"$f":"+'Grille évaluation'!W6","v":"NC"},{"$f":"+'Manœuvre et formation'!C11","v":0}]
[{"$f":"+'Manœuvre et formation'!A12","v":"Effondrement et chutes d'objets\n"},{"$f":"+'Manœuvre et formation'!C$6","v":"Manœuvre et formation"},{"$f":"+'Grille évaluation'!U7","v":0},{"$f":"+'Grille évaluation'!V7","v":"NC"},{"$f":"+'Grille évaluation'!W7","v":"NC"},{"$f":"+'Manœuvre et formation'!C12","v":0}]
[{"$f":"+'Manœuvre et formation'!A13","v":"Manutention manuelle"},{"$f":"+'Manœuvre et formation'!C$6","v":"Manœuvre et formation"},{"$f":"+'Grille évaluation'!U8","v":0},{"$f":"+'Grille évaluation'!V8","v":"NC"},{"$f":"+'Grille évaluation'!W8","v":"NC"},{"$f":"+'Manœuvre et formation'!C13","v":0}]
[{"$f":"+'Manœuvre et formation'!A14","v":"Ergonomie"},{"$f":"+'Manœuvre et formation'!C$6","v":"Manœuvre et formation"},{"$f":"+'Grille évaluation'!U9","v":0},{"$f":"+'Grille évaluation'!V9","v":"NC"},{"$f":"+'Grille évaluation'!W9","v":"NC"},{"$f":"+'Manœuvre et formation'!C14","v":0}]
[{"$f":"+'Manœuvre et formation'!A15","v":"Risque Routier - Conduite d'engins"},{"$f":"+'Manœuvre et formation'!C$6","v":"Manœuvre et formation"},{"$f":"+'Grille évaluation'!U10","v":0},{"$f":"+'Grille évaluation'!V10","v":"NC"},{"$f":"+'Grille évaluation'!W10","v":"NC"},{"$f":"+'Manœuvre et formation'!C15","v":0}]
[{"$f":"+'Manœuvre et formation'!A16","v":"Circulation piétonne"},{"$f":"+'Manœuvre et formation'!C$6","v":"Manœuvre et formation"},{"$f":"+'Grille évaluation'!U11","v":0},{"$f":"+'Grille évaluation'!V11","v":"NC"},{"$f":"+'Grille évaluation'!W11","v":"NC"},{"$f":"+'Manœuvre et formation'!C16","v":0}]
[{"$f":"+'Manœuvre et formation'!A17","v":"Risques liés aux machines et outils"},{"$f":"+'Manœuvre et formation'!C$6","v":"Manœuvre et formation"},{"$f":"+'Grille évaluation'!U12","v":0},{"$f":"+'Grille évaluation'!V12","v":"NC"},{"$f":"+'Grille évaluation'!W12","v":"NC"},{"$f":"+'Manœuvre et formation'!C17","v":0}]
[{"$f":"+'Manœuvre et formation'!A18","v":"Bruit"},{"$f":"+'Manœuvre et formation'!C$6","v":"Manœuvre et formation"},{"$f":"+'Grille évaluation'!U13","v":0},{"$f":"+'Grille évaluation'!V13","v":"NC"},{"$f":"+'Grille évaluation'!W13","v":"NC"},{"$f":"+'Manœuvre et formation'!C18","v":0}]
[{"$f":"+'Manœuvre et formation'!A19","v":"Vibrations"},{"$f":"+'Manœuvre et formation'!C$6","v":"Manœuvre et formation"},{"$f":"+'Grille évaluation'!U14","v":0},{"$f":"+'Grille évaluation'!V14","v":"NC"},{"$f":"+'Grille évaluation'!W14","v":"NC"},{"$f":"+'Manœuvre et formation'!C19","v":0}]
[{"$f":"+'Manœuvre et formation'!A20","v":"Risques chimiques"},{"$f":"+'Manœuvre et formation'!C$6","v":"Manœuvre et formation"},{"$f":"+'Grille évaluation'!U15","v":0},{"$f":"+'Grille évaluation'!V15","v":"NC"},{"$f":"+'Grille évaluation'!W15","v":"NC"},{"$f":"+'Manœuvre et formation'!C20","v":0}]
[{"$f":"+'Manœuvre et formation'!A21","v":"Amiante"},{"$f":"+'Manœuvre et formation'!C$6","v":"Manœuvre et formation"},{"$f":"+'Grille évaluation'!U16","v":0},{"$f":"+'Grille évaluation'!V16","v":"NC"},{"$f":"+'Grille évaluation'!W16","v":"NC"},{"$f":"+'Manœuvre et formation'!C21","v":0}]
[{"$f":"+'Manœuvre et formation'!A22","v":"Aération et assainissement de l'air"},{"$f":"+'Manœuvre et formation'!C$6","v":"Manœuvre et formation"},{"$f":"+'Grille évaluation'!U17","v":0},{"$f":"+'Grille évaluation'!V17","v":"NC"},{"$f":"+'Grille évaluation'!W17","v":"NC"},{"$f":"+'Manœuvre et formation'!C22","v":0}]
[{"$f":"+'Manœuvre et formation'!A23","v":"Risque Electrique"},{"$f":"+'Manœuvre et formation'!C$6","v":"Manœuvre et formation"},{"$f":"+'Grille évaluation'!U18","v":0},{"$f":"+'Grille évaluation'!V18","v":"NC"},{"$f":"+'Grille évaluation'!W18","v":"NC"},{"$f":"+'Manœuvre et formation'!C23","v":0}]
[{"$f":"+'Manœuvre et formation'!A24","v":"Incendie - Explosion"},{"$f":"+'Manœuvre et formation'!C$6","v":"Manœuvre et formation"},{"$f":"+'Grille évaluation'!U19","v":0},{"$f":"+'Grille évaluation'!V19","v":"NC"},{"$f":"+'Grille évaluation'!W19","v":"NC"},{"$f":"+'Manœuvre et formation'!C24","v":0}]
[{"$f":"+'Manœuvre et formation'!A25","v":"Risques liés à l'éclairage"},{"$f":"+'Manœuvre et formation'!C$6","v":"Manœuvre et formation"},{"$f":"+'Grille évaluation'!U20","v":0},{"$f":"+'Grille évaluation'!V20","v":"NC"},{"$f":"+'Grille évaluation'!W20","v":"NC"},{"$f":"+'Manœuvre et formation'!C25","v":0}]
[{"$f":"+'Manœuvre et formation'!A26","v":"Utilisation d'écran"},{"$f":"+'Manœuvre et formation'!C$6","v":"Manœuvre et formation"},{"$f":"+'Grille évaluation'!U21","v":0},{"$f":"+'Grille évaluation'!V21","v":"NC"},{"$f":"+'Grille évaluation'!W21","v":"NC"},{"$f":"+'Manœuvre et formation'!C26","v":0}]
[{"$f":"+'Manœuvre et formation'!A27","v":"Risques liés aux ambiances climatiques et thermiques"},{"$f":"+'Manœuvre et formation'!C$6","v":"Manœuvre et formation"},{"$f":"+'Grille évaluation'!U22","v":0},{"$f":"+'Grille évaluation'!V22","v":"NC"},{"$f":"+'Grille évaluation'!W22","v":"NC"},{"$f":"+'Manœuvre et formation'!C27","v":0}]
[{"$f":"+'Manœuvre et formation'!A28","v":"Risque biologique"},{"$f":"+'Manœuvre et formation'!C$6","v":"Manœuvre et formation"},{"$f":"+'Grille évaluation'!U23","v":0},{"$f":"+'Grille évaluation'!V23","v":"NC"},{"$f":"+'Grille évaluation'!W23","v":"NC"},{"$f":"+'Manœuvre et formation'!C28","v":0}]
[{"$f":"+'Manœuvre et formation'!A29","v":"Manque d'hygiène"},{"$f":"+'Manœuvre et formation'!C$6","v":"Manœuvre et formation"},{"$f":"+'Grille évaluation'!U24","v":0},{"$f":"+'Grille évaluation'!V24","v":"NC"},{"$f":"+'Grille évaluation'!W24","v":"NC"},{"$f":"+'Manœuvre et formation'!C29","v":0}]
[{"$f":"+'Manœuvre et formation'!A30","v":"Rayonnement"},{"$f":"+'Manœuvre et formation'!C$6","v":"Manœuvre et formation"},{"$f":"+'Grille évaluation'!U25","v":0},{"$f":"+'Grille évaluation'!V25","v":"NC"},{"$f":"+'Grille évaluation'!W25","v":"NC"},{"$f":"+'Manœuvre et formation'!C30","v":0}]
[{"$f":"+'Manœuvre et formation'!A31","v":"Entreprises Extérieures"},{"$f":"+'Manœuvre et formation'!C$6","v":"Manœuvre et formation"},{"$f":"+'Grille évaluation'!U26","v":0},{"$f":"+'Grille évaluation'!V26","v":"NC"},{"$f":"+'Grille évaluation'!W26","v":"NC"},{"$f":"+'Manœuvre et formation'!C31","v":0}]
[{"$f":"+'Manœuvre et formation'!A32","v":"Agressions"},{"$f":"+'Manœuvre et formation'!C$6","v":"Manœuvre et formation"},{"$f":"+'Grille évaluation'!U27","v":0},{"$f":"+'Grille évaluation'!V27","v":"NC"},{"$f":"+'Grille évaluation'!W27","v":"NC"},{"$f":"+'Manœuvre et formation'!C32","v":0}]
[{"$f":"+'Manœuvre et formation'!A33","v":"Risques psychosociaux"},{"$f":"+'Manœuvre et formation'!C$6","v":"Manœuvre et formation"},{"$f":"+'Grille évaluation'!U28","v":"NC"},{"$f":"+'Grille évaluation'!V28","v":"NC"},{"$f":"+'Grille évaluation'!W28","v":"NC"},{"$f":"+'Manœuvre et formation'!C33","v":"Sur cette unité, les risques psychosociaux sont présents, les principales composantes à maitriser sont :\n1/ intensité du travail : \n-  ;\n2 / Emotionnel :\n- \n3 / Autonomie :\n- \n4 / Rapports sociaux :\n- \n5 / Conflits de Valeur :\n- \n6 / Insécurité de la situation de travail:\n-"}]
[{"$f":"+APS!A10","v":"Chute de plain pied"},{"$f":"+APS!C$6","v":"APS"},{"$f":"+'Grille évaluation'!X5","v":"NC"},{"$f":"+'Grille évaluation'!Y5","v":"NC"},{"$f":"+'Grille évaluation'!Z5","v":"NC"},{"$f":"+'Manœuvre et formation'!C34","v":0}]
[{"$f":"+APS!A11","v":"Chute de hauteur"},{"$f":"+APS!C$6","v":"APS"},{"$f":"+'Grille évaluation'!X6","v":"NC"},{"$f":"+'Grille évaluation'!Y6","v":"NC"},{"$f":"+'Grille évaluation'!Z6","v":"NC"},{"$f":"+'Manœuvre et formation'!C35","v":0}]
[{"$f":"+APS!A12","v":"Effondrement et chutes d'objets\n"},{"$f":"+APS!C$6","v":"APS"},{"$f":"+'Grille évaluation'!X7","v":"NC"},{"$f":"+'Grille évaluation'!Y7","v":"NC"},{"$f":"+'Grille évaluation'!Z7","v":"NC"},{"$f":"+'Manœuvre et formation'!C36","v":0}]
[{"$f":"+APS!A13","v":"Manutention manuelle"},{"$f":"+APS!C$6","v":"APS"},{"$f":"+'Grille évaluation'!X8","v":"NC"},{"$f":"+'Grille évaluation'!Y8","v":"NC"},{"$f":"+'Grille évaluation'!Z8","v":"NC"},{"$f":"+'Manœuvre et formation'!C37","v":0}]
[{"$f":"+APS!A14","v":"Ergonomie"},{"$f":"+APS!C$6","v":"APS"},{"$f":"+'Grille évaluation'!X9","v":"NC"},{"$f":"+'Grille évaluation'!Y9","v":"NC"},{"$f":"+'Grille évaluation'!Z9","v":"NC"},{"$f":"+'Manœuvre et formation'!C38","v":0}]
[{"$f":"+APS!A15","v":"Risque Routier - Conduite d'engins"},{"$f":"+APS!C$6","v":"APS"},{"$f":"+'Grille évaluation'!X10","v":"NC"},{"$f":"+'Grille évaluation'!Y10","v":"NC"},{"$f":"+'Grille évaluation'!Z10","v":"NC"},{"$f":"+'Manœuvre et formation'!C39","v":0}]
[{"$f":"+APS!A16","v":"Circulation piétonne"},{"$f":"+APS!C$6","v":"APS"},{"$f":"+'Grille évaluation'!X11","v":"NC"},{"$f":"+'Grille évaluation'!Y11","v":"NC"},{"$f":"+'Grille évaluation'!Z11","v":"NC"},{"$f":"+'Manœuvre et formation'!C40","v":0}]
[{"$f":"+APS!A17","v":"Risques liés aux machines et outils"},{"$f":"+APS!C$6","v":"APS"},{"$f":"+'Grille évaluation'!X12","v":"NC"},{"$f":"+'Grille évaluation'!Y12","v":"NC"},{"$f":"+'Grille évaluation'!Z12","v":"NC"},{"$f":"+'Manœuvre et formation'!C41","v":0}]
[{"$f":"+APS!A18","v":"Bruit"},{"$f":"+APS!C$6","v":"APS"},{"$f":"+'Grille évaluation'!X13","v":"NC"},{"$f":"+'Grille évaluation'!Y13","v":"NC"},{"$f":"+'Grille évaluation'!Z13","v":"NC"},{"$f":"+'Manœuvre et formation'!C42","v":0}]
[{"$f":"+APS!A19","v":"Vibrations"},{"$f":"+APS!C$6","v":"APS"},{"$f":"+'Grille évaluation'!X14","v":"NC"},{"$f":"+'Grille évaluation'!Y14","v":"NC"},{"$f":"+'Grille évaluation'!Z14","v":"NC"},{"$f":"+'Manœuvre et formation'!C43","v":0}]
[{"$f":"+APS!A20","v":"Risques chimiques"},{"$f":"+APS!C$6","v":"APS"},{"$f":"+'Grille évaluation'!X15","v":"NC"},{"$f":"+'Grille évaluation'!Y15","v":"NC"},{"$f":"+'Grille évaluation'!Z15","v":"NC"},{"$f":"+'Manœuvre et formation'!C44","v":0}]
[{"$f":"+APS!A21","v":"Amiante"},{"$f":"+APS!C$6","v":"APS"},{"$f":"+'Grille évaluation'!X16","v":"NC"},{"$f":"+'Grille évaluation'!Y16","v":"NC"},{"$f":"+'Grille évaluation'!Z16","v":"NC"},{"$f":"+'Manœuvre et formation'!C45","v":0}]
[{"$f":"+APS!A22","v":"Aération et assainissement de l'air"},{"$f":"+APS!C$6","v":"APS"},{"$f":"+'Grille évaluation'!X17","v":"NC"},{"$f":"+'Grille évaluation'!Y17","v":"NC"},{"$f":"+'Grille évaluation'!Z17","v":"NC"},{"$f":"+'Manœuvre et formation'!C46","v":0}]
[{"$f":"+APS!A23","v":"Risque Electrique"},{"$f":"+APS!C$6","v":"APS"},{"$f":"+'Grille évaluation'!X18","v":"NC"},{"$f":"+'Grille évaluation'!Y18","v":"NC"},{"$f":"+'Grille évaluation'!Z18","v":"NC"},{"$f":"+'Manœuvre et formation'!C47","v":0}]
[{"$f":"+APS!A24","v":"Incendie - Explosion"},{"$f":"+APS!C$6","v":"APS"},{"$f":"+'Grille évaluation'!X19","v":"NC"},{"$f":"+'Grille évaluation'!Y19","v":"NC"},{"$f":"+'Grille évaluation'!Z19","v":"NC"},{"$f":"+'Manœuvre et formation'!C48","v":0}]
[{"$f":"+APS!A25","v":"Risques liés à l'éclairage"},{"$f":"+APS!C$6","v":"APS"},{"$f":"+'Grille évaluation'!X20","v":"NC"},{"$f":"+'Grille évaluation'!Y20","v":"NC"},{"$f":"+'Grille évaluation'!Z20","v":"NC"},{"$f":"+'Manœuvre et formation'!C49","v":0}]
[{"$f":"+APS!A26","v":"Utilisation d'écran"},{"$f":"+APS!C$6","v":"APS"},{"$f":"+'Grille évaluation'!X21","v":"NC"},{"$f":"+'Grille évaluation'!Y21","v":"NC"},{"$f":"+'Grille évaluation'!Z21","v":"NC"},{"$f":"+'Manœuvre et formation'!C50","v":0}]
[{"$f":"+APS!A27","v":"Risques liés aux ambiances climatiques et thermiques"},{"$f":"+APS!C$6","v":"APS"},{"$f":"+'Grille évaluation'!X22","v":"NC"},{"$f":"+'Grille évaluation'!Y22","v":"NC"},{"$f":"+'Grille évaluation'!Z22","v":"NC"},{"$f":"+'Manœuvre et formation'!C51","v":0}]
[{"$f":"+APS!A28","v":"Risque biologique"},{"$f":"+APS!C$6","v":"APS"},{"$f":"+'Grille évaluation'!X23","v":"NC"},{"$f":"+'Grille évaluation'!Y23","v":"NC"},{"$f":"+'Grille évaluation'!Z23","v":"NC"},{"$f":"+'Manœuvre et formation'!C52","v":0}]
[{"$f":"+APS!A29","v":"Manque d'hygiène"},{"$f":"+APS!C$6","v":"APS"},{"$f":"+'Grille évaluation'!X24","v":"NC"},{"$f":"+'Grille évaluation'!Y24","v":"NC"},{"$f":"+'Grille évaluation'!Z24","v":"NC"},{"$f":"+'Manœuvre et formation'!C53","v":0}]
[{"$f":"+APS!A30","v":"Rayonnement"},{"$f":"+APS!C$6","v":"APS"},{"$f":"+'Grille évaluation'!X25","v":"NC"},{"$f":"+'Grille évaluation'!Y25","v":"NC"},{"$f":"+'Grille évaluation'!Z25","v":"NC"},{"$f":"+'Manœuvre et formation'!C54","v":0}]
[{"$f":"+APS!A31","v":"Entreprises Extérieures"},{"$f":"+APS!C$6","v":"APS"},{"$f":"+'Grille évaluation'!X26","v":"NC"},{"$f":"+'Grille évaluation'!Y26","v":"NC"},{"$f":"+'Grille évaluation'!Z26","v":"NC"},{"$f":"+'Manœuvre et formation'!C55","v":0}]
[{"$f":"+APS!A32","v":"Agressions"},{"$f":"+APS!C$6","v":"APS"},{"$f":"+'Grille évaluation'!X27","v":"NC"},{"$f":"+'Grille évaluation'!Y27","v":"NC"},{"$f":"+'Grille évaluation'!Z27","v":"NC"},{"$f":"+'Manœuvre et formation'!C56","v":0}]
[{"$f":"+APS!A33","v":"Risques psychosociaux"},{"$f":"+APS!C$6","v":"APS"},{"$f":"+'Grille évaluation'!X28","v":"NC"},{"$f":"+'Grille évaluation'!Y28","v":"NC"},{"$f":"+'Grille évaluation'!Z28","v":"NC"},{"$f":"+'Manœuvre et formation'!C57","v":0}]
[{"$f":"+'Espace vert'!A10","v":"Chute de plain pied"},{"$f":"+'Espace vert'!C$6","v":"Espace vert"},{"$f":"+'Grille évaluation'!AA5","v":"NC"},{"$f":"+'Grille évaluation'!AB5","v":"NC"},{"$f":"+'Grille évaluation'!AC5","v":"NC"},{"$f":"+'Espace vert'!C10","v":0}]
[{"$f":"+'Espace vert'!A11","v":"Chute de hauteur"},{"$f":"+'Espace vert'!C$6","v":"Espace vert"},{"$f":"+'Grille évaluation'!AA6","v":"NC"},{"$f":"+'Grille évaluation'!AB6","v":"NC"},{"$f":"+'Grille évaluation'!AC6","v":"NC"},{"$f":"+'Espace vert'!C11","v":0}]
[{"$f":"+'Espace vert'!A12","v":"Effondrement et chutes d'objets\n"},{"$f":"+'Espace vert'!C$6","v":"Espace vert"},{"$f":"+'Grille évaluation'!AA7","v":"NC"},{"$f":"+'Grille évaluation'!AB7","v":"NC"},{"$f":"+'Grille évaluation'!AC7","v":"NC"},{"$f":"+'Espace vert'!C12","v":0}]
[{"$f":"+'Espace vert'!A13","v":"Manutention manuelle"},{"$f":"+'Espace vert'!C$6","v":"Espace vert"},{"$f":"+'Grille évaluation'!AA8","v":"NC"},{"$f":"+'Grille évaluation'!AB8","v":"NC"},{"$f":"+'Grille évaluation'!AC8","v":"NC"},{"$f":"+'Espace vert'!C13","v":0}]
[{"$f":"+'Espace vert'!A14","v":"Ergonomie"},{"$f":"+'Espace vert'!C$6","v":"Espace vert"},{"$f":"+'Grille évaluation'!AA9","v":"NC"},{"$f":"+'Grille évaluation'!AB9","v":"NC"},{"$f":"+'Grille évaluation'!AC9","v":"NC"},{"$f":"+'Espace vert'!C14","v":0}]
[{"$f":"+'Espace vert'!A15","v":"Risque Routier - Conduite d'engins"},{"$f":"+'Espace vert'!C$6","v":"Espace vert"},{"$f":"+'Grille évaluation'!AA10","v":"NC"},{"$f":"+'Grille évaluation'!AB10","v":"NC"},{"$f":"+'Grille évaluation'!AC10","v":"NC"},{"$f":"+'Espace vert'!C15","v":0}]
[{"$f":"+'Espace vert'!A16","v":"Circulation piétonne"},{"$f":"+'Espace vert'!C$6","v":"Espace vert"},{"$f":"+'Grille évaluation'!AA11","v":"NC"},{"$f":"+'Grille évaluation'!AB11","v":"NC"},{"$f":"+'Grille évaluation'!AC11","v":"NC"},{"$f":"+'Espace vert'!C16","v":0}]
[{"$f":"+'Espace vert'!A17","v":"Risques liés aux machines et outils"},{"$f":"+'Espace vert'!C$6","v":"Espace vert"},{"$f":"+'Grille évaluation'!AA12","v":"NC"},{"$f":"+'Grille évaluation'!AB12","v":"NC"},{"$f":"+'Grille évaluation'!AC12","v":"NC"},{"$f":"+'Espace vert'!C17","v":0}]
[{"$f":"+'Espace vert'!A18","v":"Bruit"},{"$f":"+'Espace vert'!C$6","v":"Espace vert"},{"$f":"+'Grille évaluation'!AA13","v":"NC"},{"$f":"+'Grille évaluation'!AB13","v":"NC"},{"$f":"+'Grille évaluation'!AC13","v":"NC"},{"$f":"+'Espace vert'!C18","v":0}]
[{"$f":"+'Espace vert'!A19","v":"Vibrations"},{"$f":"+'Espace vert'!C$6","v":"Espace vert"},{"$f":"+'Grille évaluation'!AA14","v":"NC"},{"$f":"+'Grille évaluation'!AB14","v":"NC"},{"$f":"+'Grille évaluation'!AC14","v":"NC"},{"$f":"+'Espace vert'!C19","v":0}]
[{"$f":"+'Espace vert'!A20","v":"Risques chimiques"},{"$f":"+'Espace vert'!C$6","v":"Espace vert"},{"$f":"+'Grille évaluation'!AA15","v":"NC"},{"$f":"+'Grille évaluation'!AB15","v":"NC"},{"$f":"+'Grille évaluation'!AC15","v":"NC"},{"$f":"+'Espace vert'!C20","v":0}]
[{"$f":"+'Espace vert'!A21","v":"Amiante"},{"$f":"+'Espace vert'!C$6","v":"Espace vert"},{"$f":"+'Grille évaluation'!AA16","v":"NC"},{"$f":"+'Grille évaluation'!AB16","v":"NC"},{"$f":"+'Grille évaluation'!AC16","v":"NC"},{"$f":"+'Espace vert'!C21","v":0}]
[{"$f":"+'Espace vert'!A22","v":"Aération et assainissement de l'air"},{"$f":"+'Espace vert'!C$6","v":"Espace vert"},{"$f":"+'Grille évaluation'!AA17","v":"NC"},{"$f":"+'Grille évaluation'!AB17","v":"NC"},{"$f":"+'Grille évaluation'!AC17","v":"NC"},{"$f":"+'Espace vert'!C22","v":0}]
[{"$f":"+'Espace vert'!A23","v":"Risque Electrique"},{"$f":"+'Espace vert'!C$6","v":"Espace vert"},{"$f":"+'Grille évaluation'!AA18","v":"NC"},{"$f":"+'Grille évaluation'!AB18","v":"NC"},{"$f":"+'Grille évaluation'!AC18","v":"NC"},{"$f":"+'Espace vert'!C23","v":0}]
[{"$f":"+'Espace vert'!A24","v":"Incendie - Explosion"},{"$f":"+'Espace vert'!C$6","v":"Espace vert"},{"$f":"+'Grille évaluation'!AA19","v":"NC"},{"$f":"+'Grille évaluation'!AB19","v":"NC"},{"$f":"+'Grille évaluation'!AC19","v":"NC"},{"$f":"+'Espace vert'!C24","v":0}]
[{"$f":"+'Espace vert'!A25","v":"Risques liés à l'éclairage"},{"$f":"+'Espace vert'!C$6","v":"Espace vert"},{"$f":"+'Grille évaluation'!AA20","v":"NC"},{"$f":"+'Grille évaluation'!AB20","v":"NC"},{"$f":"+'Grille évaluation'!AC20","v":"NC"},{"$f":"+'Espace vert'!C25","v":0}]
[{"$f":"+'Espace vert'!A26","v":"Utilisation d'écran"},{"$f":"+'Espace vert'!C$6","v":"Espace vert"},{"$f":"+'Grille évaluation'!AA21","v":"NC"},{"$f":"+'Grille évaluation'!AB21","v":"NC"},{"$f":"+'Grille évaluation'!AC21","v":"NC"},{"$f":"+'Espace vert'!C26","v":0}]
[{"$f":"+'Espace vert'!A27","v":"Risques liés aux ambiances climatiques et thermiques"},{"$f":"+'Espace vert'!C$6","v":"Espace vert"},{"$f":"+'Grille évaluation'!AA22","v":"NC"},{"$f":"+'Grille évaluation'!AB22","v":"NC"},{"$f":"+'Grille évaluation'!AC22","v":"NC"},{"$f":"+'Espace vert'!C27","v":0}]
[{"$f":"+'Espace vert'!A28","v":"Risque biologique"},{"$f":"+'Espace vert'!C$6","v":"Espace vert"},{"$f":"+'Grille évaluation'!AA23","v":"NC"},{"$f":"+'Grille évaluation'!AB23","v":"NC"},{"$f":"+'Grille évaluation'!AC23","v":"NC"},{"$f":"+'Espace vert'!C28","v":0}]
[{"$f":"+'Espace vert'!A29","v":"Manque d'hygiène"},{"$f":"+'Espace vert'!C$6","v":"Espace vert"},{"$f":"+'Grille évaluation'!AA24","v":"NC"},{"$f":"+'Grille évaluation'!AB24","v":"NC"},{"$f":"+'Grille évaluation'!AC24","v":"NC"},{"$f":"+'Espace vert'!C29","v":0}]
[{"$f":"+'Espace vert'!A30","v":"Rayonnement"},{"$f":"+'Espace vert'!C$6","v":"Espace vert"},{"$f":"+'Grille évaluation'!AA25","v":"NC"},{"$f":"+'Grille évaluation'!AB25","v":"NC"},{"$f":"+'Grille évaluation'!AC25","v":"NC"},{"$f":"+'Espace vert'!C30","v":0}]
[{"$f":"+'Espace vert'!A31","v":"Entreprises Extérieures"},{"$f":"+'Espace vert'!C$6","v":"Espace vert"},{"$f":"+'Grille évaluation'!AA26","v":"NC"},{"$f":"+'Grille évaluation'!AB26","v":"NC"},{"$f":"+'Grille évaluation'!AC26","v":"NC"},{"$f":"+'Espace vert'!C31","v":0}]
[{"$f":"+'Espace vert'!A32","v":"Agressions"},{"$f":"+'Espace vert'!C$6","v":"Espace vert"},{"$f":"+'Grille évaluation'!AA27","v":"NC"},{"$f":"+'Grille évaluation'!AB27","v":"NC"},{"$f":"+'Grille évaluation'!AC27","v":"NC"},{"$f":"+'Espace vert'!C32","v":0}]
[{"$f":"+'Espace vert'!A33","v":"Risques psychosociaux"},{"$f":"+'Espace vert'!C$6","v":"Espace vert"},{"$f":"+'Grille évaluation'!AA28","v":"NC"},{"$f":"+'Grille évaluation'!AB28","v":"NC"},{"$f":"+'Grille évaluation'!AC28","v":"NC"},{"$f":"+'Espace vert'!C33","v":"Sur cette unité, les risques psychosociaux sont présents, les principales composantes à maitriser sont :\n1/ intensité du travail : \n-  ;\n2 / Emotionnel :\n- \n3 / Autonomie :\n- \n4 / Rapports sociaux :\n- \n5 / Conflits de Valeur :\n- \n6 / Insécurité de la situation de travail:\n-"}]
[{"$f":"+Habillement!A10","v":"Chute de plain pied"},{"$f":"+Habillement!C$6","v":"Habillement"},{"$f":"+'Grille évaluation'!AD5","v":"NC"},{"$f":"+'Grille évaluation'!AE5","v":"NC"},{"$f":"+'Grille évaluation'!AF5","v":"NC"},{"$f":"+Habillement!C10","v":0}]
[{"$f":"+Habillement!A11","v":"Chute de hauteur"},{"$f":"+Habillement!C$6","v":"Habillement"},{"$f":"+'Grille évaluation'!AD6","v":"NC"},{"$f":"+'Grille évaluation'!AE6","v":"NC"},{"$f":"+'Grille évaluation'!AF6","v":"NC"},{"$f":"+Habillement!C11","v":0}]
[{"$f":"+Habillement!A12","v":"Effondrement et chutes d'objets\n"},{"$f":"+Habillement!C$6","v":"Habillement"},{"$f":"+'Grille évaluation'!AD7","v":"NC"},{"$f":"+'Grille évaluation'!AE7","v":"NC"},{"$f":"+'Grille évaluation'!AF7","v":"NC"},{"$f":"+Habillement!C12","v":0}]
[{"$f":"+Habillement!A13","v":"Manutention manuelle"},{"$f":"+Habillement!C$6","v":"Habillement"},{"$f":"+'Grille évaluation'!AD8","v":"NC"},{"$f":"+'Grille évaluation'!AE8","v":"NC"},{"$f":"+'Grille évaluation'!AF8","v":"NC"},{"$f":"+Habillement!C13","v":0}]
[{"$f":"+Habillement!A14","v":"Ergonomie"},{"$f":"+Habillement!C$6","v":"Habillement"},{"$f":"+'Grille évaluation'!AD9","v":"NC"},{"$f":"+'Grille évaluation'!AE9","v":"NC"},{"$f":"+'Grille évaluation'!AF9","v":"NC"},{"$f":"+Habillement!C14","v":0}]
[{"$f":"+Habillement!A15","v":"Risque Routier - Conduite d'engins"},{"$f":"+Habillement!C$6","v":"Habillement"},{"$f":"+'Grille évaluation'!AD10","v":"NC"},{"$f":"+'Grille évaluation'!AE10","v":"NC"},{"$f":"+'Grille évaluation'!AF10","v":"NC"},{"$f":"+Habillement!C15","v":0}]
[{"$f":"+Habillement!A16","v":"Circulation piétonne"},{"$f":"+Habillement!C$6","v":"Habillement"},{"$f":"+'Grille évaluation'!AD11","v":"NC"},{"$f":"+'Grille évaluation'!AE11","v":"NC"},{"$f":"+'Grille évaluation'!AF11","v":"NC"},{"$f":"+Habillement!C16","v":0}]
[{"$f":"+Habillement!A17","v":"Risques liés aux machines et outils"},{"$f":"+Habillement!C$6","v":"Habillement"},{"$f":"+'Grille évaluation'!AD12","v":"NC"},{"$f":"+'Grille évaluation'!AE12","v":"NC"},{"$f":"+'Grille évaluation'!AF12","v":"NC"},{"$f":"+Habillement!C17","v":0}]
[{"$f":"+Habillement!A18","v":"Bruit"},{"$f":"+Habillement!C$6","v":"Habillement"},{"$f":"+'Grille évaluation'!AD13","v":"NC"},{"$f":"+'Grille évaluation'!AE13","v":"NC"},{"$f":"+'Grille évaluation'!AF13","v":"NC"},{"$f":"+Habillement!C18","v":0}]
[{"$f":"+Habillement!A19","v":"Vibrations"},{"$f":"+Habillement!C$6","v":"Habillement"},{"$f":"+'Grille évaluation'!AD14","v":"NC"},{"$f":"+'Grille évaluation'!AE14","v":"NC"},{"$f":"+'Grille évaluation'!AF14","v":"NC"},{"$f":"+Habillement!C19","v":0}]
[{"$f":"+Habillement!A20","v":"Risques chimiques"},{"$f":"+Habillement!C$6","v":"Habillement"},{"$f":"+'Grille évaluation'!AD15","v":"NC"},{"$f":"+'Grille évaluation'!AE15","v":"NC"},{"$f":"+'Grille évaluation'!AF15","v":"NC"},{"$f":"+Habillement!C20","v":0}]
[{"$f":"+Habillement!A21","v":"Amiante"},{"$f":"+Habillement!C$6","v":"Habillement"},{"$f":"+'Grille évaluation'!AD16","v":"NC"},{"$f":"+'Grille évaluation'!AE16","v":"NC"},{"$f":"+'Grille évaluation'!AF16","v":"NC"},{"$f":"+Habillement!C21","v":0}]
[{"$f":"+Habillement!A22","v":"Aération et assainissement de l'air"},{"$f":"+Habillement!C$6","v":"Habillement"},{"$f":"+'Grille évaluation'!AD17","v":"NC"},{"$f":"+'Grille évaluation'!AE17","v":"NC"},{"$f":"+'Grille évaluation'!AF17","v":"NC"},{"$f":"+Habillement!C22","v":0}]
[{"$f":"+Habillement!A23","v":"Risque Electrique"},{"$f":"+Habillement!C$6","v":"Habillement"},{"$f":"+'Grille évaluation'!AD18","v":"NC"},{"$f":"+'Grille évaluation'!AE18","v":"NC"},{"$f":"+'Grille évaluation'!AF18","v":"NC"},{"$f":"+Habillement!C23","v":0}]
[{"$f":"+Habillement!A24","v":"Incendie - Explosion"},{"$f":"+Habillement!C$6","v":"Habillement"},{"$f":"+'Grille évaluation'!AD19","v":"NC"},{"$f":"+'Grille évaluation'!AE19","v":"NC"},{"$f":"+'Grille évaluation'!AF19","v":"NC"},{"$f":"+Habillement!C24","v":0}]
[{"$f":"+Habillement!A25","v":"Risques liés à l'éclairage"},{"$f":"+Habillement!C$6","v":"Habillement"},{"$f":"+'Grille évaluation'!AD20","v":"NC"},{"$f":"+'Grille évaluation'!AE20","v":"NC"},{"$f":"+'Grille évaluation'!AF20","v":"NC"},{"$f":"+Habillement!C25","v":0}]
[{"$f":"+Habillement!A26","v":"Utilisation d'écran"},{"$f":"+Habillement!C$6","v":"Habillement"},{"$f":"+'Grille évaluation'!AD21","v":"NC"},{"$f":"+'Grille évaluation'!AE21","v":"NC"},{"$f":"+'Grille évaluation'!AF21","v":"NC"},{"$f":"+Habillement!C26","v":0}]
[{"$f":"+Habillement!A27","v":"Risques liés aux ambiances climatiques et thermiques"},{"$f":"+Habillement!C$6","v":"Habillement"},{"$f":"+'Grille évaluation'!AD22","v":"NC"},{"$f":"+'Grille évaluation'!AE22","v":"NC"},{"$f":"+'Grille évaluation'!AF22","v":"NC"},{"$f":"+Habillement!C27","v":0}]
[{"$f":"+Habillement!A28","v":"Risque biologique"},{"$f":"+Habillement!C$6","v":"Habillement"},{"$f":"+'Grille évaluation'!AD23","v":"NC"},{"$f":"+'Grille évaluation'!AE23","v":"NC"},{"$f":"+'Grille évaluation'!AF23","v":"NC"},{"$f":"+Habillement!C28","v":0}]
[{"$f":"+Habillement!A29","v":"Manque d'hygiène"},{"$f":"+Habillement!C$6","v":"Habillement"},{"$f":"+'Grille évaluation'!AD24","v":"NC"},{"$f":"+'Grille évaluation'!AE24","v":"NC"},{"$f":"+'Grille évaluation'!AF24","v":"NC"},{"$f":"+Habillement!C29","v":0}]
[{"$f":"+Habillement!A30","v":"Rayonnement"},{"$f":"+Habillement!C$6","v":"Habillement"},{"$f":"+'Grille évaluation'!AD25","v":"NC"},{"$f":"+'Grille évaluation'!AE25","v":"NC"},{"$f":"+'Grille évaluation'!AF25","v":"NC"},{"$f":"+Habillement!C30","v":0}]
[{"$f":"+Habillement!A31","v":"Entreprises Extérieures"},{"$f":"+Habillement!C$6","v":"Habillement"},{"$f":"+'Grille évaluation'!AD26","v":"NC"},{"$f":"+'Grille évaluation'!AE26","v":"NC"},{"$f":"+'Grille évaluation'!AF26","v":"NC"},{"$f":"+Habillement!C31","v":0}]
[{"$f":"+Habillement!A32","v":"Agressions"},{"$f":"+Habillement!C$6","v":"Habillement"},{"$f":"+'Grille évaluation'!AD27","v":"NC"},{"$f":"+'Grille évaluation'!AE27","v":"NC"},{"$f":"+'Grille évaluation'!AF27","v":"NC"},{"$f":"+Habillement!C32","v":0}]
[{"$f":"+Habillement!A33","v":"Risques psychosociaux"},{"$f":"+Habillement!C$6","v":"Habillement"},{"$f":"+'Grille évaluation'!AD28","v":"NC"},{"$f":"+'Grille évaluation'!AE28","v":"NC"},{"$f":"+'Grille évaluation'!AF28","v":"NC"},{"$f":"+Habillement!C33","v":"Sur cette unité, les risques psychosociaux sont présents, les principales composantes à maitriser sont :\n1/ intensité du travail : \n-  ;\n2 / Emotionnel :\n- \n3 / Autonomie :\n- \n4 / Rapports sociaux :\n- \n5 / Conflits de Valeur :\n- \n6 / Insécurité de la situation de travail:\n-"}]

{"sheet":"Pénibilité","index":24,"n_rows":65,"n_cols":16,"rows_kept":65,"cut":false,"hidden":false,"merged":[[0,0,0,10],[53,2,53,4],[53,6,53,10],[47,0,47,10],[48,0,48,10],[49,0,49,10],[50,0,50,8],[51,0,51,8],[33,0,33,8],[34,0,34,8],[15,0,15,10],[45,0,45,10],[46,0,46,10],[28,0,28,10],[29,0,29,10],[30,0,30,10],[31,0,31,10],[32,0,32,8],[23,9,23,10],[24,9,24,10],[25,9,26,10],[26,1,26,8],[25,0,26,0],[24,1,24,8],[25,1,25,8],[1,0,1,10],[2,0,2,10],[3,0,3,10],[4,0,4,10],[5,0,5,10],[6,0,6,10],[17,1,17,8],[16,1,16,8],[18,1,18,8],[19,1,19,8],[12,1,12,8],[13,1,13,8],[7,9,7,10],[8,9,8,10],[9,9,9,10],[10,9,10,10],[11,9,11,10],[12,9,12,10],[13,9,13,10],[7,1,7,8],[8,1,8,8],[20,1,20,8],[22,0,22,10],[23,1,23,8],[7,0,10,0],[12,0,13,0],[18,0,19,0],[9,1,9,8],[10,1,10,8],[11,1,11,8],[16,9,16,10],[17,9,17,10],[18,9,18,10],[19,9,19,10],[20,9,20,10]]}
["6 - Pénibilité au travail"]
["La réforme des retraites a introduit des modifications dans le code du travail concernant la pénibilité au travail."]
["A compter de 2015, l’employeur doit procéder à la déclaration des expositions, la fiche de pénibilité étant abrogé."]
["Pour les agents de droits publics ne relevant pas du C3P (compte personnel de prévention de pénibilité), l’employeur doit établir des fiches individuelles de suivi indiquant les facteurs de pénibilité auxquels  les agents sont exposés au-delà des seuils. L’exposition est évaluée en cohérence avec l’évaluation des risques professionnels et appréciée après application des mesures de protection collective et individuelle."]
["Un arrêté doit paraitre prochainement pour définir un nouveau modèle de fiche d’exposition aux facteurs de pénibilité."]
["Seuils de pénibilités= intensité + durée d’exposition et ce annuellement. (Au 1er juillet 2016)"]
["Contraintes physiques marquées"]
["Manutentions manuelles de charges","Lever ou porter : charge unitaire de 15 kg",null,null,null,null,null,null,null,"600 heures /an"]
[null,"Pousser ou tirer : charge unitaire de 250 kg",null,null,null,null,null,null,null,"120 jr /an"]
[null,"Déplacement du travailleur avec la charge au sol ou à une hauteur située au-dessus des épaules : charge unitaire 10 kg"]
[null,"Cumul de manutention de charges : 7,5 tonnes cumulées par jour"]
["Postures pénibles définies comme position forcée des articulations","Maintien des bras en l’air à une hauteur située au-dessus des épaules ou positions accroupies ou à genoux ou positions du torse en torsion à 30 degrés ou positions du torse fléchi à 45 degrés",null,null,null,null,null,null,null,"900 heures /an"]
["Vibrations mécaniques","Vibrations transmises aux mains et aux bras: 2,5m/s2 sur 8 heures de travail",null,null,null,null,null,null,null,"450 heures /an"]
[null,"Vibrations transmises aux corps entier sur 8 heures de travail: 5m/s2 sur 8 heures de travail"]
[]
["Environnement physique agressif"]
["Agents chimiques dangereux y compris les poussières et les fumées","Exposition à un agent chimique dangereux relevant d’une ou plusieurs classes ou catégories de danger définies à l’annexe I du règlement CE",null,null,null,null,null,null,null,"Seuils en cours d’élaboration"]
["Activités exercées en milieu hyperbare","Interventions ou travaux 1200 hectopascals",null,null,null,null,null,null,null,"60 interventions ou travaux /an"]
["Bruit","Niveau d’exposition au bruit rapporté à une période de référence de 8h d’au moins 80dB(A)",null,null,null,null,null,null,null,"600 heures /an"]
[null,"Exposition à un niveau de pression acoustique de crête au moins égale à 135dB(A)",null,null,null,null,null,null,null,"120 fois /an"]
["Températures extrêmes","Température inférieure ou égale à 5°C ou au moins égale à 30°C",null,null,null,null,null,null,null,"900 heures /an"]
[]
["Certains rythmes physiques"]
["Travail de nuit","Une heure de travail entre 24 heures et 5 heures",null,null,null,null,null,null,null,"120 nuits / an"]
["Travail en équipes successives alternantes","Travail en équipes successives alternantes impliquant au minimum une heure de travail entre 24 heures et 5 heures",null,null,null,null,null,null,null,"50 nuits /an"]
["Travail répétitif caractérisé par la répétition d’un même geste, à une cadence contrainte, imposée ou non par le déplacement automatique d’une pièce ou par la rémunération à la pièce avec un temps de cycle défini","Temps de cycle inférieur ou égal à 1 minute",null,null,null,null,null,null,null,"900 heures /an"]
[null,"30 actions techniques ou plus par minute avec un temps de cycle supérieur à 1 minute"]
[]
["Positionnement du Pôle Santé Prévention"]
["Afin de répondre à cette obligation règlementaire, voici les trois étapes à suivre par la collectivité:"]
["1-      Réalisation de l’évaluation des risques professionnels "]
["Accompagnement possible des conseillers en hygiène et sécurité du CDG/médecin de prévention"]
["2-      Identification apriori des activités générant  des facteurs de pénibilités "]
["Accompagnement possible des conseillers en hygiène et sécurité du CDG/médecin de prévention"]
["Voici la grille présente dans les documents uniques pour répertorier les facteurs de pénibilités par unités de travail en fonction de l’évaluation réalisée. Elle est actuellement en test dans une collectivité."]
[]
[]
[]
[]
[]
[]
[]
[]
[]
[]
["Non concerné : pas de présence de facteurs de pénibilité"]
["Concerné : facteurs de pénibilité présents mais seuils non atteint"]
["Pénibilité reconnue : Seuils d’exposition atteints et/ou dépassés"]
["3-      Recueil des informations pour attester des seuils de pénibilité identifiés"]
["Accompagnement du médecin de prévention"]
["Pour les unités de travail concernées, la collectivité en collaboration avec le médecin de prévention devra quantifier la pénibilité."]
["Pour les agents exposés au-delà des seuils, la collectivité devra établir une fiche individuelle de suivi comportant les facteurs de pénibilités auxquels ils sont exposés."]
[]
[null,null,"Facteurs de pénibilité",null,null,"de ",{"$f":"+Collectivité!B2","v":"Centre Mixte "}]
["Unité de travail","ETP","Manutention manuelle de charge","Posture de travail contraignante","Vibrations","Substances chimiques, poussières et fumées","Bruit","Températures extrêmes","Travail de nuit","Travail en équipe alternante","Travail répétitif",null,null,null,null,"Non concerné"]
[{"$f":"+Direction!C6","v":"Direction"},{"$f":"+Direction!J3","v":1.33},null,null,null,null,null,"Non concerné","Non concerné","Non concerné","Non concerné",null,null,null,null,"Concerné"]
[{"$f":"+Secrétariat!C6","v":"Secrétariat"},{"$f":"+Secrétariat!J3","v":6.3999999999999995},null,null,null,null,null,"Non concerné","Non concerné","Non concerné","Non concerné",null,null,null,null,"Pénibilité reconnue"]
[{"$f":"+'Chaine de commandement'!C6","v":"Chaine de commandement"},{"$f":"+'Chaine de commandement'!J3","v":1.6},null,null,null,null,null,"Non concerné","Non concerné","Non concerné","Non concerné"]
[{"$f":"+'Services administratifs'!C6","v":"Services administratifs"},{"$f":"+'Services administratifs'!J3","v":0.33},null,null,null,null,null,"Non concerné","Non concerné","Non concerné","Non concerné"]
[{"$f":"+STASS!C6","v":"STASS"},{"$f":"+STASS!J3","v":0.7},null,null,null,null,null,"Non concerné","Non concerné","Non concerné","Non concerné"]
[{"$f":"+'Vie collective'!C6","v":"Vie collective"},{"$f":"+'Vie collective'!J3","v":0.4},null,null,null,null,null,"Non concerné","Non concerné","Non concerné","Non concerné"]
[{"$f":"+'Manœuvre et formation'!C6","v":"Manœuvre et formation"},{"$f":"+'Manœuvre et formation'!J3","v":0.4},null,null,null,null,null,"Non concerné","Non concerné","Non concerné","Non concerné"]
[{"$f":"+APS!C6","v":"APS"},{"$f":"+APS!J3","v":0.4},null,null,null,null,null,"Non concerné","Non concerné","Non concerné","Non concerné"]
[{"$f":"+'Espace vert'!C6","v":"Espace vert"},{"$f":"+'Espace vert'!J3","v":0.4},null,null,null,null,null,"Non concerné","Non concerné","Non concerné","Non concerné"]
[{"$f":"+Habillement!C6","v":"Habillement"},{"$f":"+Habillement!J3","v":3},null,null,null,null,null,"Non concerné","Non concerné","Non concerné","Non concerné"]

{"sheet":"4ièmeCouv","index":25,"n_rows":1,"n_cols":1,"rows_kept":1,"cut":false,"hidden":false,"merged":[]}
["4 ième de couverture"]

{"sheet":"_CF_Calculate_Ranges","index":26,"n_rows":0,"n_cols":0,"rows_kept":0,"cut":false,"hidden":true,"merged":[]}

{"sheet":"_CF_Format_References","index":27,"n_rows":163,"n_cols":1,"rows_kept":163,"cut":false,"hidden":true,"merged":[]}
[]
["AaBbCc"]
[]
[]
[]
[]
[]
[]
["AaBbCc"]
["AaBbCc"]
["AaBbCc"]
["AaBbCc"]
["AaBbCc"]
["AaBbCc"]
[]
[]
[]
[]
[]
["AaBbCc"]
[]
[]
["AaBbCc"]
["AaBbCc"]
["AaBbCc"]
["AaBbCc"]
["AaBbCc"]
["AaBbCc"]
["AaBbCc"]
[]
[]
[]
["AaBbCc"]
["AaBbCc"]
["AaBbCc"]
[]
[]
[]
[]
[]
[]
["AaBbCc"]
[]
["AaBbCc"]
["AaBbCc"]
[]
[]
["AaBbCc"]
[]
["AaBbCc"]
[]
["AaBbCc"]
[]
["AaBbCc"]
[]
["AaBbCc"]
[]
["AaBbCc"]
[]
["AaBbCc"]
[]
["AaBbCc"]
[]
["AaBbCc"]
[]
["AaBbCc"]
[]
["AaBbCc"]
[]
["AaBbCc"]
[]
["AaBbCc"]
[]
["AaBbCc"]
[]
["AaBbCc"]
[]
["AaBbCc"]
[]
["AaBbCc"]
[]
["AaBbCc"]
[]
["AaBbCc"]
[]
["AaBbCc"]
[]
["AaBbCc"]
[]
["AaBbCc"]
[]
["AaBbCc"]
[]
["AaBbCc"]
[]
["AaBbCc"]
[]
["AaBbCc"]
[]
["AaBbCc"]
[]
["AaBbCc"]
[]
["AaBbCc"]
[]
["AaBbCc"]
[]
["AaBbCc"]
[]
["AaBbCc"]
[]
["AaBbCc"]
[]
["AaBbCc"]
[]
["AaBbCc"]
[]
["AaBbCc"]
[]
["AaBbCc"]
[]
["AaBbCc"]
[]
["AaBbCc"]
[]
["AaBbCc"]
[]
["AaBbCc"]
[]
["AaBbCc"]
[]
["AaBbCc"]
[]
["AaBbCc"]
[]
["AaBbCc"]
[]
["AaBbCc"]
[]
["AaBbCc"]
[]
["AaBbCc"]
[]
["AaBbCc"]
[]
["AaBbCc"]
[]
["AaBbCc"]
[]
["AaBbCc"]
["AaBbCc"]
["AaBbCc"]
["AaBbCc"]
["AaBbCc"]
["AaBbCc"]
["AaBbCc"]
["AaBbCc"]
["AaBbCc"]
["AaBbCc"]
["AaBbCc"]
["AaBbCc"]
["AaBbCc"]
["AaBbCc"]

{"sheet":"BdD","index":28,"n_rows":24,"n_cols":2,"rows_kept":24,"cut":false,"hidden":false,"merged":[]}
["Plain pied",1]
["Hauteur",2]
["Route",3]
["Charge",5]
["Manutention",6]
["Chimique",7]
["Biologique",8]
["Equipement",9]
["Chute objet",10]
["Bruit",11]
["Thermique",12]
["Incendie",13]
["Electricité",14]
["Lumière",15]
["Rayonnement",16]
["PSY",17]
["Ergonomie",18]
["Piéton",19]
["Vibration",20]
["Air",21]
["Ecran",22]
["Hygiène",23]
["EE",24]
["Agression",25]

{"sheet":"Planing visites","index":29,"n_rows":20,"n_cols":7,"rows_kept":20,"cut":false,"hidden":false,"merged":[[0,0,0,7]]}
["PLANNING DES VISITES DE CENTRES "]
[]
[]
["VISTE DES CS GPT EST ","FAIT","A FAIRE",null,"VISITE DES CS GPT SUD","FAIT","A FAIRE"]
["THIERS","2018-09-05","2018-11-13",null,"ISSOIRE","2018-09-14","2018-09-14"]
[]
[]
[]
[]
[]
[]
[]
[]
[]
["VISITE DES CS GPT NORD","FAIT","A FAIRE ",null,"VISITE DES CS GPT CENTRE","FAIT","A FAIRE "]
["RIOM",null,"2018-11-13",null,"AUBIERE",null,"2018-11-14"]
[null,null,null,null,"COURNON",null,"2018-11-15"]
[null,null,null,null,"GERZAT","2018-10-10"]
[null,null,null,null,"CHAMALIERES","2018-09-25","2018-09-25"]
[null,null,null,null,"CLERMONT-FERRAND ","2018-10-09","2018-10-04"]

{"sheet":"Feuil1","index":30,"n_rows":3,"n_cols":13,"rows_kept":3,"cut":false,"hidden":false,"merged":[]}
[]
["Rèf","Unité de travail","Zone","Situation dangereuse","Risque","G","F","E","Ibrut","M","Inet","Moyens de prévention","Plan d'action"]
["TH_Ad_001","Administratif","Bureau de XX","L'agent utilise une chaise de bureau pour remplacer le néon","Chute de hauteur",null,null,null,null,null,null,"Affichage"]